Departmental Family,Entity,Date,Expense Type,Expense Area,Supplier,Transaction Number,Amount
Department for Education,DEPARTMENT FOR EDUCATION,04/11/2010,CAPITAL GRANTS,Children and Families Early Years Extended Schools and Special Needs,DERBY CITY COUNCIL,4000039274,451582
Department for Education,DEPARTMENT FOR EDUCATION,04/11/2010,CAPITAL GRANTS,Children and Families Early Years Extended Schools and Special Needs,HALTON BOROUGH COUNCIL,4000039277,317860
Department for Education,DEPARTMENT FOR EDUCATION,04/11/2010,CAPITAL GRANTS,Children and Families Early Years Extended Schools and Special Needs,LONDON BOROUGH OF HARINGEY,4000039280,595441
Department for Education,DEPARTMENT FOR EDUCATION,08/11/2010,CAPITAL GRANTS,School Resources Group,BUILDING SCHOOL FOR THE FUTURE INVESTMENTS LLP,4000039440,222602
Department for Education,DEPARTMENT FOR EDUCATION,08/11/2010,CAPITAL GRANTS,Curriculum and Pupil Well Being Improving Behaviour and Attendance Unit,DARLINGTON BOROUGH COUNCIL,4000039447,140200
Department for Education,DEPARTMENT FOR EDUCATION,09/11/2010,CAPITAL GRANTS,Chief Information Officer Group,HERTFORDSHIRE,4000039532,617691
Department for Education,DEPARTMENT FOR EDUCATION,10/11/2010,CAPITAL GRANTS,Curriculum and Pupil Well Being Improving Behaviour and Attendance Unit,COVENTRY CITY COUNCIL,4000039618,550747
Department for Education,DEPARTMENT FOR EDUCATION,18/11/2010,CAPITAL GRANTS,Children and Families Early Years Extended Schools and Special Needs,DERBYSHIRE COUNTY COUNCIL,4000040034,2062523
Department for Education,DEPARTMENT FOR EDUCATION,18/11/2010,CAPITAL GRANTS,Children and Families Early Years Extended Schools and Special Needs,HAMPSHIRE COUNTY COUNCIL,4000040035,3684656
Department for Education,DEPARTMENT FOR EDUCATION,18/11/2010,CAPITAL GRANTS,Children and Families Early Years Extended Schools and Special Needs,LANCASHIRE COUNTY COUNCIL,4000040036,2815716
Department for Education,DEPARTMENT FOR EDUCATION,18/11/2010,CAPITAL GRANTS,Children and Families Early Years Extended Schools and Special Needs,LONDON BOROUGH OF HAVERING COUNCIL,4000040037,114181
Department for Education,DEPARTMENT FOR EDUCATION,18/11/2010,CAPITAL GRANTS,Children and Families Early Years Extended Schools and Special Needs,SOUTH TYNESIDE,4000040038,502475
Department for Education,DEPARTMENT FOR EDUCATION,19/11/2010,CAPITAL GRANTS,Curriculum and Pupil Well Being Improving Behaviour and Attendance Unit,KNOWSLEY MBC,4000040330,210717
Department for Education,DEPARTMENT FOR EDUCATION,24/11/2010,CAPITAL GRANTS,Children and Families Early Years Extended Schools and Special Needs,DEVON COUNTY COUNCIL,4000040541,1409779
Department for Education,DEPARTMENT FOR EDUCATION,24/11/2010,CAPITAL GRANTS,Children and Families Early Years Extended Schools and Special Needs,RUTLAND COUNTY COUNCIL,4000040572,85943
Department for Education,DEPARTMENT FOR EDUCATION,25/11/2010,CAPITAL GRANTS,Children and Families Early Years Extended Schools and Special Needs,BARNSLEY MBC,4000040588,74800
Department for Education,DEPARTMENT FOR EDUCATION,25/11/2010,CAPITAL GRANTS,Children and Families Early Years Extended Schools and Special Needs,BATH & NORTH EAST SOMERSET COUNCIL,4000040589,35075
Department for Education,DEPARTMENT FOR EDUCATION,25/11/2010,CAPITAL GRANTS,Children and Families Early Years Extended Schools and Special Needs,BEDFORD BOROUGH COUNCIL,4000040590,48040
Department for Education,DEPARTMENT FOR EDUCATION,25/11/2010,CAPITAL GRANTS,Children and Families Early Years Extended Schools and Special Needs,BIRMINGHAM CITY COUNCIL,4000040591,404675
Department for Education,DEPARTMENT FOR EDUCATION,25/11/2010,CAPITAL GRANTS,Children and Families Early Years Extended Schools and Special Needs,BLACKBURN WITH DARWEN BOROUGH COUNCIL,4000040592,44600
Department for Education,DEPARTMENT FOR EDUCATION,25/11/2010,CAPITAL GRANTS,Children and Families Early Years Extended Schools and Special Needs,BLACKPOOL BOROUGH COUNCIL,4000040593,42550
Department for Education,DEPARTMENT FOR EDUCATION,25/11/2010,CAPITAL GRANTS,Children and Families Early Years Extended Schools and Special Needs,BRACKNELL FOREST BOROUGH COUNCIL,4000040596,42625
Department for Education,DEPARTMENT FOR EDUCATION,25/11/2010,CAPITAL GRANTS,Children and Families Early Years Extended Schools and Special Needs,BRISTOL CITY COUNCIL,4000040598,124175
Department for Education,DEPARTMENT FOR EDUCATION,25/11/2010,CAPITAL GRANTS,Children and Families Early Years Extended Schools and Special Needs,BUCKINGHAMSHIRE COUNTY COUNCIL,4000040599,146100
Department for Education,DEPARTMENT FOR EDUCATION,25/11/2010,CAPITAL GRANTS,Children and Families Early Years Extended Schools and Special Needs,BURY MBC,4000040600,60400
Department for Education,DEPARTMENT FOR EDUCATION,25/11/2010,CAPITAL GRANTS,Children and Families Early Years Extended Schools and Special Needs,CALDERDALE MBC,4000040601,61825
Department for Education,DEPARTMENT FOR EDUCATION,25/11/2010,CAPITAL GRANTS,Children and Families Early Years Extended Schools and Special Needs,CAMBRIDGESHIRE COUNTY COUNCIL,4000040602,186700
Department for Education,DEPARTMENT FOR EDUCATION,25/11/2010,CAPITAL GRANTS,Children and Families Early Years Extended Schools and Special Needs,CENTRAL BEDFORDSHIRE COUNCIL,4000040603,79760
Department for Education,DEPARTMENT FOR EDUCATION,25/11/2010,CAPITAL GRANTS,Children and Families Early Years Extended Schools and Special Needs,CHESHIRE EAST COUNCIL,4000040604,97842
Department for Education,DEPARTMENT FOR EDUCATION,25/11/2010,CAPITAL GRANTS,Children and Families Early Years Extended Schools and Special Needs,CHESHIRE WEST & CHESTER COUNCIL,4000040605,96908
Department for Education,DEPARTMENT FOR EDUCATION,25/11/2010,CAPITAL GRANTS,Children and Families Early Years Extended Schools and Special Needs,CORNWALL COUNCIL,4000040607,115525
Department for Education,DEPARTMENT FOR EDUCATION,25/11/2010,CAPITAL GRANTS,Children and Families Early Years Extended Schools and Special Needs,COVENTRY CITY COUNCIL,4000040610,99850
Department for Education,DEPARTMENT FOR EDUCATION,25/11/2010,CAPITAL GRANTS,Children and Families Early Years Extended Schools and Special Needs,CUMBRIA COUNTY COUNCIL,4000040611,131500
Department for Education,DEPARTMENT FOR EDUCATION,25/11/2010,CAPITAL GRANTS,Children and Families Early Years Extended Schools and Special Needs,DARLINGTON BOROUGH COUNCIL,4000040612,28650
Department for Education,DEPARTMENT FOR EDUCATION,25/11/2010,CAPITAL GRANTS,Children and Families Early Years Extended Schools and Special Needs,DERBY CITY COUNCIL,4000040613,66500
Department for Education,DEPARTMENT FOR EDUCATION,25/11/2010,CAPITAL GRANTS,Children and Families Early Years Extended Schools and Special Needs,DEVON COUNTY COUNCIL,4000040615,154475
Department for Education,DEPARTMENT FOR EDUCATION,25/11/2010,CAPITAL GRANTS,Children and Families Early Years Extended Schools and Special Needs,DONCASTER MBC,4000040616,85100
Department for Education,DEPARTMENT FOR EDUCATION,25/11/2010,CAPITAL GRANTS,Children and Families Early Years Extended Schools and Special Needs,DURHAM COUNTY COUNCIL,4000040619,156225
Department for Education,DEPARTMENT FOR EDUCATION,25/11/2010,CAPITAL GRANTS,Children and Families Early Years Extended Schools and Special Needs,EAST RIDING OF YORKSHIRE,4000040620,81500
Department for Education,DEPARTMENT FOR EDUCATION,25/11/2010,CAPITAL GRANTS,Children and Families Early Years Extended Schools and Special Needs,EAST SUSSEX COUNTY COUNCIL,4000040621,149475
Department for Education,DEPARTMENT FOR EDUCATION,25/11/2010,CAPITAL GRANTS,Children and Families Early Years Extended Schools and Special Needs,ESSEX COUNTY COUNCIL,4000040622,423775
Department for Education,DEPARTMENT FOR EDUCATION,25/11/2010,CAPITAL GRANTS,Children and Families Early Years Extended Schools and Special Needs,HAMPSHIRE COUNTY COUNCIL,4000040626,397025
Department for Education,DEPARTMENT FOR EDUCATION,25/11/2010,CAPITAL GRANTS,Children and Families Early Years Extended Schools and Special Needs,HARTLEPOOL BOROUGH COUNCIL,4000040627,31275
Department for Education,DEPARTMENT FOR EDUCATION,25/11/2010,CAPITAL GRANTS,Children and Families Early Years Extended Schools and Special Needs,HEREFORDSHIRE COUNCIL,4000040628,41575
Department for Education,DEPARTMENT FOR EDUCATION,25/11/2010,CAPITAL GRANTS,Children and Families Early Years Extended Schools and Special Needs,HERTFORDSHIRE,4000040629,343425
Department for Education,DEPARTMENT FOR EDUCATION,25/11/2010,CAPITAL GRANTS,Children and Families Early Years Extended Schools and Special Needs,ISLE OF WIGHT COUNCIL,4000040630,41400
Department for Education,DEPARTMENT FOR EDUCATION,25/11/2010,CAPITAL GRANTS,Children and Families Early Years Extended Schools and Special Needs,KINGSTON UPON HULL COUNCIL,4000040632,74400
Department for Education,DEPARTMENT FOR EDUCATION,25/11/2010,CAPITAL GRANTS,Children and Families Early Years Extended Schools and Special Needs,KIRKLEES COUNCIL,4000040633,117075
Department for Education,DEPARTMENT FOR EDUCATION,25/11/2010,CAPITAL GRANTS,Children and Families Early Years Extended Schools and Special Needs,KNOWSLEY MBC,4000040634,72100
Department for Education,DEPARTMENT FOR EDUCATION,25/11/2010,CAPITAL GRANTS,Children and Families Early Years Extended Schools and Special Needs,LANCASHIRE COUNTY COUNCIL,4000040635,348625
Department for Education,DEPARTMENT FOR EDUCATION,25/11/2010,CAPITAL GRANTS,Children and Families Early Years Extended Schools and Special Needs,LEEDS CITY COUNCIL,4000040636,187525
Department for Education,DEPARTMENT FOR EDUCATION,25/11/2010,CAPITAL GRANTS,Children and Families Early Years Extended Schools and Special Needs,LEICESTER CITY COUNCIL,4000040637,84775
Department for Education,DEPARTMENT FOR EDUCATION,25/11/2010,CAPITAL GRANTS,Children and Families Early Years Extended Schools and Special Needs,LEICESTERSHIRE COUNTY COUNCIL,4000040638,158875
Department for Education,DEPARTMENT FOR EDUCATION,25/11/2010,CAPITAL GRANTS,Children and Families Early Years Extended Schools and Special Needs,LINCOLNSHIRE COUNTY COUNCIL,4000040639,189800
Department for Education,DEPARTMENT FOR EDUCATION,25/11/2010,CAPITAL GRANTS,Children and Families Early Years Extended Schools and Special Needs,LIVERPOOL CITY COUNCIL,4000040640,189975
Department for Education,DEPARTMENT FOR EDUCATION,25/11/2010,CAPITAL GRANTS,Children and Families Early Years Extended Schools and Special Needs,LONDON BOROUGH OF BARKING & DAGENHAM COUNCIL,4000040641,70725
Department for Education,DEPARTMENT FOR EDUCATION,25/11/2010,CAPITAL GRANTS,Children and Families Early Years Extended Schools and Special Needs,LONDON BOROUGH OF BARNET COUNCIL,4000040642,110925
Department for Education,DEPARTMENT FOR EDUCATION,25/11/2010,CAPITAL GRANTS,Children and Families Early Years Extended Schools and Special Needs,LONDON BOROUGH OF BEXLEY COUNCIL,4000040643,77250
Department for Education,DEPARTMENT FOR EDUCATION,25/11/2010,CAPITAL GRANTS,Children and Families Early Years Extended Schools and Special Needs,LONDON BOROUGH OF BRENT,4000040644,81700
Department for Education,DEPARTMENT FOR EDUCATION,25/11/2010,CAPITAL GRANTS,Children and Families Early Years Extended Schools and Special Needs,LONDON BOROUGH OF BROMLEY COUNCIL,4000040645,107825
Department for Education,DEPARTMENT FOR EDUCATION,25/11/2010,CAPITAL GRANTS,Children and Families Early Years Extended Schools and Special Needs,LONDON BOROUGH OF CAMDEN,4000040646,68150
Department for Education,DEPARTMENT FOR EDUCATION,25/11/2010,CAPITAL GRANTS,Children and Families Early Years Extended Schools and Special Needs,LONDON BOROUGH OF CROYDON COUNCIL,4000040647,119525
Department for Education,DEPARTMENT FOR EDUCATION,25/11/2010,CAPITAL GRANTS,Children and Families Early Years Extended Schools and Special Needs,LONDON BOROUGH OF EALING COUNCIL,4000040648,95925
Department for Education,DEPARTMENT FOR EDUCATION,25/11/2010,CAPITAL GRANTS,Children and Families Early Years Extended Schools and Special Needs,LONDON BOROUGH OF GREENWICH,4000040650,102375
Department for Education,DEPARTMENT FOR EDUCATION,25/11/2010,CAPITAL GRANTS,Children and Families Early Years Extended Schools and Special Needs,LONDON BOROUGH OF HAMMERSMITH & FULHAM COUNCIL,4000040651,55125
Department for Education,DEPARTMENT FOR EDUCATION,25/11/2010,CAPITAL GRANTS,Children and Families Early Years Extended Schools and Special Needs,LONDON BOROUGH OF HARINGEY,4000040652,82300
Department for Education,DEPARTMENT FOR EDUCATION,25/11/2010,CAPITAL GRANTS,Children and Families Early Years Extended Schools and Special Needs,LONDON BOROUGH OF HARROW COUNCIL,4000040653,70750
Department for Education,DEPARTMENT FOR EDUCATION,25/11/2010,CAPITAL GRANTS,Children and Families Early Years Extended Schools and Special Needs,LONDON BOROUGH OF HAVERING COUNCIL,4000040654,82275
Department for Education,DEPARTMENT FOR EDUCATION,25/11/2010,CAPITAL GRANTS,Children and Families Early Years Extended Schools and Special Needs,LONDON BOROUGH OF HILLINGDON  COUNCIL,4000040655,91375
Department for Education,DEPARTMENT FOR EDUCATION,25/11/2010,CAPITAL GRANTS,Children and Families Early Years Extended Schools and Special Needs,LONDON BOROUGH OF HOUNSLOW COUNCIL,4000040656,68975
Department for Education,DEPARTMENT FOR EDUCATION,25/11/2010,CAPITAL GRANTS,Children and Families Early Years Extended Schools and Special Needs,LONDON BOROUGH OF ISLINGTON COUNCIL,4000040657,83550
Department for Education,DEPARTMENT FOR EDUCATION,25/11/2010,CAPITAL GRANTS,Children and Families Early Years Extended Schools and Special Needs,LONDON BOROUGH OF LAMBETH COUNCIL,4000040658,116700
Department for Education,DEPARTMENT FOR EDUCATION,25/11/2010,CAPITAL GRANTS,Children and Families Early Years Extended Schools and Special Needs,LONDON BOROUGH OF LEWISHAM,4000040659,117825
Department for Education,DEPARTMENT FOR EDUCATION,25/11/2010,CAPITAL GRANTS,Children and Families Early Years Extended Schools and Special Needs,LUTON BOROUGH COUNCIL,4000040660,68075
Department for Education,DEPARTMENT FOR EDUCATION,25/11/2010,CAPITAL GRANTS,Children and Families Early Years Extended Schools and Special Needs,ROYAL BOROUGH OF KINGSTON UPON THAMES COUNCIL,4000040661,43375
Department for Education,DEPARTMENT FOR EDUCATION,25/11/2010,CAPITAL GRANTS,Children and Families Early Years Extended Schools and Special Needs,THE LONDON BOROUGH OF HACKNEY,4000040662,108650
Department for Education,DEPARTMENT FOR EDUCATION,25/11/2010,CAPITAL GRANTS,Children and Families Early Years Extended Schools and Special Needs,THE ROYAL BOROUGH OF KENSINGTON & CHELSEA COUNCIL,4000040663,37050
Department for Education,DEPARTMENT FOR EDUCATION,25/11/2010,CAPITAL GRANTS,Children and Families Early Years Extended Schools and Special Needs,BEDFORD BOROUGH COUNCIL,4000040665,42457
Department for Education,DEPARTMENT FOR EDUCATION,25/11/2010,CAPITAL GRANTS,Children and Families Early Years Extended Schools and Special Needs,BIRMINGHAM CITY COUNCIL,4000040666,6709492
Department for Education,DEPARTMENT FOR EDUCATION,25/11/2010,CAPITAL GRANTS,Children and Families Early Years Extended Schools and Special Needs,BLACKPOOL BOROUGH COUNCIL,4000040667,181981
Department for Education,DEPARTMENT FOR EDUCATION,25/11/2010,CAPITAL GRANTS,Children and Families Early Years Extended Schools and Special Needs,BOLTON MBC,4000040668,676147
Department for Education,DEPARTMENT FOR EDUCATION,25/11/2010,CAPITAL GRANTS,Children and Families Early Years Extended Schools and Special Needs,BOURNEMOUTH BOROUGH COUNCIL,4000040669,105102
Department for Education,DEPARTMENT FOR EDUCATION,25/11/2010,CAPITAL GRANTS,Children and Families Early Years Extended Schools and Special Needs,BRACKNELL FOREST BOROUGH COUNCIL,4000040670,446175
Department for Education,DEPARTMENT FOR EDUCATION,25/11/2010,CAPITAL GRANTS,Children and Families Early Years Extended Schools and Special Needs,BUCKINGHAMSHIRE COUNTY COUNCIL,4000040671,906977
Department for Education,DEPARTMENT FOR EDUCATION,25/11/2010,CAPITAL GRANTS,Children and Families Early Years Extended Schools and Special Needs,BURY MBC,4000040672,779683
Department for Education,DEPARTMENT FOR EDUCATION,25/11/2010,CAPITAL GRANTS,Children and Families Early Years Extended Schools and Special Needs,CALDERDALE MBC,4000040673,382963
Department for Education,DEPARTMENT FOR EDUCATION,25/11/2010,CAPITAL GRANTS,Children and Families Early Years Extended Schools and Special Needs,CAMBRIDGESHIRE COUNTY COUNCIL,4000040674,1499166
Department for Education,DEPARTMENT FOR EDUCATION,25/11/2010,CAPITAL GRANTS,Children and Families Early Years Extended Schools and Special Needs,CENTRAL BEDFORDSHIRE COUNCIL,4000040675,548391
Department for Education,DEPARTMENT FOR EDUCATION,25/11/2010,CAPITAL GRANTS,Children and Families Early Years Extended Schools and Special Needs,CHESHIRE WEST & CHESTER COUNCIL,4000040676,760448
Department for Education,DEPARTMENT FOR EDUCATION,25/11/2010,CAPITAL GRANTS,Children and Families Early Years Extended Schools and Special Needs,CITY OF WESTMINSTER,4000040677,1019309
Department for Education,DEPARTMENT FOR EDUCATION,25/11/2010,CAPITAL GRANTS,Children and Families Early Years Extended Schools and Special Needs,CORNWALL COUNCIL,4000040678,2262963
Department for Education,DEPARTMENT FOR EDUCATION,25/11/2010,CAPITAL GRANTS,Children and Families Early Years Extended Schools and Special Needs,COVENTRY CITY COUNCIL,4000040679,311200
Department for Education,DEPARTMENT FOR EDUCATION,25/11/2010,CAPITAL GRANTS,Children and Families Early Years Extended Schools and Special Needs,DERBY CITY COUNCIL,4000040680,389616
Department for Education,DEPARTMENT FOR EDUCATION,25/11/2010,CAPITAL GRANTS,Children and Families Early Years Extended Schools and Special Needs,DERBYSHIRE COUNTY COUNCIL,4000040681,2235986
Department for Education,DEPARTMENT FOR EDUCATION,25/11/2010,CAPITAL GRANTS,Children and Families Early Years Extended Schools and Special Needs,DONCASTER MBC,4000040682,974069
Department for Education,DEPARTMENT FOR EDUCATION,25/11/2010,CAPITAL GRANTS,Children and Families Early Years Extended Schools and Special Needs,DORSET COUNTY COUNCIL,4000040683,892864
Department for Education,DEPARTMENT FOR EDUCATION,25/11/2010,CAPITAL GRANTS,Children and Families Early Years Extended Schools and Special Needs,DUDLEY MBC,4000040684,819234
Department for Education,DEPARTMENT FOR EDUCATION,25/11/2010,CAPITAL GRANTS,Children and Families Early Years Extended Schools and Special Needs,EAST RIDING OF YORKSHIRE,4000040685,25138
Department for Education,DEPARTMENT FOR EDUCATION,25/11/2010,CAPITAL GRANTS,Children and Families Early Years Extended Schools and Special Needs,GLOUCESTERSHIRE COUNTY COUNCIL,4000040686,2165021
Department for Education,DEPARTMENT FOR EDUCATION,25/11/2010,CAPITAL GRANTS,Children and Families Early Years Extended Schools and Special Needs,HALTON BOROUGH COUNCIL,4000040687,850040
Department for Education,DEPARTMENT FOR EDUCATION,25/11/2010,CAPITAL GRANTS,Children and Families Early Years Extended Schools and Special Needs,HAMPSHIRE COUNTY COUNCIL,4000040688,7696831
Department for Education,DEPARTMENT FOR EDUCATION,25/11/2010,CAPITAL GRANTS,Children and Families Early Years Extended Schools and Special Needs,HEREFORDSHIRE COUNCIL,4000040689,260286
Department for Education,DEPARTMENT FOR EDUCATION,25/11/2010,CAPITAL GRANTS,Children and Families Early Years Extended Schools and Special Needs,HERTFORDSHIRE,4000040690,6535356
Department for Education,DEPARTMENT FOR EDUCATION,25/11/2010,CAPITAL GRANTS,Children and Families Early Years Extended Schools and Special Needs,KENT COUNTY COUNCIL,4000040691,5158411
Department for Education,DEPARTMENT FOR EDUCATION,25/11/2010,CAPITAL GRANTS,Children and Families Early Years Extended Schools and Special Needs,KINGSTON UPON HULL COUNCIL,4000040692,705471
Department for Education,DEPARTMENT FOR EDUCATION,25/11/2010,CAPITAL GRANTS,Children and Families Early Years Extended Schools and Special Needs,KIRKLEES COUNCIL,4000040693,499388
Department for Education,DEPARTMENT FOR EDUCATION,25/11/2010,CAPITAL GRANTS,Children and Families Early Years Extended Schools and Special Needs,LEEDS CITY COUNCIL,4000040694,1580250
Department for Education,DEPARTMENT FOR EDUCATION,25/11/2010,CAPITAL GRANTS,Children and Families Early Years Extended Schools and Special Needs,LEICESTER CITY COUNCIL,4000040695,1814750
Department for Education,DEPARTMENT FOR EDUCATION,25/11/2010,CAPITAL GRANTS,Children and Families Early Years Extended Schools and Special Needs,LIVERPOOL CITY COUNCIL,4000040696,52414
Department for Education,DEPARTMENT FOR EDUCATION,25/11/2010,CAPITAL GRANTS,Children and Families Early Years Extended Schools and Special Needs,LONDON BOROUGH OF BARNET COUNCIL,4000040697,1390531
Department for Education,DEPARTMENT FOR EDUCATION,25/11/2010,CAPITAL GRANTS,Children and Families Early Years Extended Schools and Special Needs,LONDON BOROUGH OF BRENT,4000040698,923127
Department for Education,DEPARTMENT FOR EDUCATION,25/11/2010,CAPITAL GRANTS,Children and Families Early Years Extended Schools and Special Needs,LONDON BOROUGH OF EALING COUNCIL,4000040699,2538472
Department for Education,DEPARTMENT FOR EDUCATION,25/11/2010,CAPITAL GRANTS,Children and Families Early Years Extended Schools and Special Needs,LONDON BOROUGH OF GREENWICH,4000040700,1120675
Department for Education,DEPARTMENT FOR EDUCATION,25/11/2010,CAPITAL GRANTS,Children and Families Early Years Extended Schools and Special Needs,LONDON BOROUGH OF HAMMERSMITH & FULHAM COUNCIL,4000040701,865204
Department for Education,DEPARTMENT FOR EDUCATION,25/11/2010,CAPITAL GRANTS,Children and Families Early Years Extended Schools and Special Needs,LONDON BOROUGH OF HARINGEY,4000040702,1965946
Department for Education,DEPARTMENT FOR EDUCATION,25/11/2010,CAPITAL GRANTS,Children and Families Early Years Extended Schools and Special Needs,LONDON BOROUGH OF HARROW COUNCIL,4000040703,531414
Department for Education,DEPARTMENT FOR EDUCATION,25/11/2010,CAPITAL GRANTS,Children and Families Early Years Extended Schools and Special Needs,LONDON BOROUGH OF HAVERING COUNCIL,4000040704,712957
Department for Education,DEPARTMENT FOR EDUCATION,25/11/2010,CAPITAL GRANTS,Children and Families Early Years Extended Schools and Special Needs,LONDON BOROUGH OF LAMBETH COUNCIL,4000040705,618647
Department for Education,DEPARTMENT FOR EDUCATION,25/11/2010,CAPITAL GRANTS,Children and Families Early Years Extended Schools and Special Needs,LONDON BOROUGH OF LEWISHAM,4000040706,1154426
Department for Education,DEPARTMENT FOR EDUCATION,25/11/2010,CAPITAL GRANTS,Children and Families Early Years Extended Schools and Special Needs,LONDON BOROUGH OF SOUTHWARK COUNCIL,4000040707,210955
Department for Education,DEPARTMENT FOR EDUCATION,25/11/2010,CAPITAL GRANTS,Children and Families Early Years Extended Schools and Special Needs,LONDON BOROUGH OF SUTTON,4000040708,145750
Department for Education,DEPARTMENT FOR EDUCATION,25/11/2010,CAPITAL GRANTS,Children and Families Early Years Extended Schools and Special Needs,LONDON BOROUGH OF WANDSWORTH COUNCIL,4000040709,1580962
Department for Education,DEPARTMENT FOR EDUCATION,25/11/2010,CAPITAL GRANTS,Children and Families Early Years Extended Schools and Special Needs,LUTON BOROUGH COUNCIL,4000040710,426363
Department for Education,DEPARTMENT FOR EDUCATION,25/11/2010,CAPITAL GRANTS,Children and Families Early Years Extended Schools and Special Needs,MANCHESTER CITY COUNCIL,4000040711,2335618
Department for Education,DEPARTMENT FOR EDUCATION,25/11/2010,CAPITAL GRANTS,Children and Families Early Years Extended Schools and Special Needs,MEDWAY COUNCIL,4000040712,766806
Department for Education,DEPARTMENT FOR EDUCATION,25/11/2010,CAPITAL GRANTS,Children and Families Early Years Extended Schools and Special Needs,METROPOLITAN BOROUGH OF WIRRAL,4000040713,544000
Department for Education,DEPARTMENT FOR EDUCATION,25/11/2010,CAPITAL GRANTS,Children and Families Early Years Extended Schools and Special Needs,MIDDLESBROUGH COUNCIL,4000040714,184117
Department for Education,DEPARTMENT FOR EDUCATION,25/11/2010,CAPITAL GRANTS,Children and Families Early Years Extended Schools and Special Needs,MILTON KEYNES COUNCIL,4000040715,552193
Department for Education,DEPARTMENT FOR EDUCATION,25/11/2010,CAPITAL GRANTS,Children and Families Early Years Extended Schools and Special Needs,NEWCASTLE CITY COUNCIL,4000040716,966620
Department for Education,DEPARTMENT FOR EDUCATION,25/11/2010,CAPITAL GRANTS,Children and Families Early Years Extended Schools and Special Needs,NORFOLK COUNTY COUNCIL,4000040717,2771083
Department for Education,DEPARTMENT FOR EDUCATION,25/11/2010,CAPITAL GRANTS,Children and Families Early Years Extended Schools and Special Needs,NORTH EAST LINCOLNSHIRE COUNCIL,4000040718,286829
Department for Education,DEPARTMENT FOR EDUCATION,25/11/2010,CAPITAL GRANTS,Children and Families Early Years Extended Schools and Special Needs,NORTH TYNESIDE,4000040719,100000
Department for Education,DEPARTMENT FOR EDUCATION,25/11/2010,CAPITAL GRANTS,Children and Families Early Years Extended Schools and Special Needs,NORTH YORKSHIRE COUNTY COUNCIL,4000040720,1731984
Department for Education,DEPARTMENT FOR EDUCATION,25/11/2010,CAPITAL GRANTS,Children and Families Early Years Extended Schools and Special Needs,NORTHAMPTONSHIRE COUNTY COUNCIL,4000040721,2347111
Department for Education,DEPARTMENT FOR EDUCATION,25/11/2010,CAPITAL GRANTS,Children and Families Early Years Extended Schools and Special Needs,NORTHUMBERLAND COUNTY COUNCIL,4000040722,828981
Department for Education,DEPARTMENT FOR EDUCATION,25/11/2010,CAPITAL GRANTS,Children and Families Early Years Extended Schools and Special Needs,NOTTINGHAM CITY COUNCIL,4000040723,310945
Department for Education,DEPARTMENT FOR EDUCATION,25/11/2010,CAPITAL GRANTS,Children and Families Early Years Extended Schools and Special Needs,NOTTINGHAMSHIRE COUNTY COUNCIL,4000040724,1247173
Department for Education,DEPARTMENT FOR EDUCATION,25/11/2010,CAPITAL GRANTS,Children and Families Early Years Extended Schools and Special Needs,OXFORDSHIRE COUNTY COUNCIL,4000040725,2195912
Department for Education,DEPARTMENT FOR EDUCATION,25/11/2010,CAPITAL GRANTS,Children and Families Early Years Extended Schools and Special Needs,PETERBOROUGH CITY COUNCIL,4000040726,428286
Department for Education,DEPARTMENT FOR EDUCATION,25/11/2010,CAPITAL GRANTS,Children and Families Early Years Extended Schools and Special Needs,POOLE BOROUGH COUNCIL,4000040727,510847
Department for Education,DEPARTMENT FOR EDUCATION,25/11/2010,CAPITAL GRANTS,Children and Families Early Years Extended Schools and Special Needs,PORTSMOUTH CITY COUNCIL,4000040728,422130
Department for Education,DEPARTMENT FOR EDUCATION,25/11/2010,CAPITAL GRANTS,Children and Families Early Years Extended Schools and Special Needs,REDCAR & CLEVELAND BOROUGH COUNCIL,4000040729,106542
Department for Education,DEPARTMENT FOR EDUCATION,25/11/2010,CAPITAL GRANTS,Children and Families Early Years Extended Schools and Special Needs,ROCHDALE MBC,4000040730,167273
Department for Education,DEPARTMENT FOR EDUCATION,25/11/2010,CAPITAL GRANTS,Children and Families Early Years Extended Schools and Special Needs,ROTHERHAM MBC,4000040731,522183
Department for Education,DEPARTMENT FOR EDUCATION,25/11/2010,CAPITAL GRANTS,Children and Families Early Years Extended Schools and Special Needs,ROYAL BOROUGH OF KINGSTON UPON THAMES COUNCIL,4000040732,489075
Department for Education,DEPARTMENT FOR EDUCATION,25/11/2010,CAPITAL GRANTS,Children and Families Early Years Extended Schools and Special Needs,RUTLAND COUNTY COUNCIL,4000040733,48974
Department for Education,DEPARTMENT FOR EDUCATION,25/11/2010,CAPITAL GRANTS,Children and Families Early Years Extended Schools and Special Needs,SALFORD CITY COUNCIL,4000040734,981991
Department for Education,DEPARTMENT FOR EDUCATION,25/11/2010,CAPITAL GRANTS,Children and Families Early Years Extended Schools and Special Needs,SEFTON COUNCIL,4000040735,716789
Department for Education,DEPARTMENT FOR EDUCATION,25/11/2010,CAPITAL GRANTS,Children and Families Early Years Extended Schools and Special Needs,SHEFFIELD CITY COUNCIL,4000040736,1385802
Department for Education,DEPARTMENT FOR EDUCATION,25/11/2010,CAPITAL GRANTS,Children and Families Early Years Extended Schools and Special Needs,SHROPSHIRE COUNCIL,4000040737,827923
Department for Education,DEPARTMENT FOR EDUCATION,25/11/2010,CAPITAL GRANTS,Children and Families Early Years Extended Schools and Special Needs,SLOUGH BOROUGH COUNCIL,4000040738,73706
Department for Education,DEPARTMENT FOR EDUCATION,25/11/2010,CAPITAL GRANTS,Children and Families Early Years Extended Schools and Special Needs,SOLIHULL MBC,4000040739,383140
Department for Education,DEPARTMENT FOR EDUCATION,25/11/2010,CAPITAL GRANTS,Children and Families Early Years Extended Schools and Special Needs,SOMERSET COUNTY COUNCIL,4000040740,463494
Department for Education,DEPARTMENT FOR EDUCATION,25/11/2010,CAPITAL GRANTS,Children and Families Early Years Extended Schools and Special Needs,SOUTH GLOUCEST,4000040741,263261
Department for Education,DEPARTMENT FOR EDUCATION,25/11/2010,CAPITAL GRANTS,Children and Families Early Years Extended Schools and Special Needs,SOUTH TYNESIDE,4000040742,399419
Department for Education,DEPARTMENT FOR EDUCATION,25/11/2010,CAPITAL GRANTS,Children and Families Early Years Extended Schools and Special Needs,SOUTHEND ON SEA BOROUGH COUNCIL,4000040743,610617
Department for Education,DEPARTMENT FOR EDUCATION,25/11/2010,CAPITAL GRANTS,Children and Families Early Years Extended Schools and Special Needs,ST HELENS MBC,4000040744,164418
Department for Education,DEPARTMENT FOR EDUCATION,25/11/2010,CAPITAL GRANTS,Children and Families Early Years Extended Schools and Special Needs,STOCKPORT MBC,4000040746,729764
Department for Education,DEPARTMENT FOR EDUCATION,25/11/2010,CAPITAL GRANTS,Children and Families Early Years Extended Schools and Special Needs,STOCKTON ON TEES,4000040747,227281
Department for Education,DEPARTMENT FOR EDUCATION,25/11/2010,CAPITAL GRANTS,Children and Families Early Years Extended Schools and Special Needs,STOKE ON TRENT CITY COUNCIL,4000040748,849000
Department for Education,DEPARTMENT FOR EDUCATION,25/11/2010,CAPITAL GRANTS,Children and Families Early Years Extended Schools and Special Needs,SUFFOLK COUNTY COUNCIL,4000040749,1750000
Department for Education,DEPARTMENT FOR EDUCATION,25/11/2010,CAPITAL GRANTS,Children and Families Early Years Extended Schools and Special Needs,SUNDERLAND CITY COUNCIL,4000040750,724015
Department for Education,DEPARTMENT FOR EDUCATION,25/11/2010,CAPITAL GRANTS,Children and Families Early Years Extended Schools and Special Needs,SURREY COUNTY COUNCIL,4000040751,3676607
Department for Education,DEPARTMENT FOR EDUCATION,25/11/2010,CAPITAL GRANTS,Children and Families Early Years Extended Schools and Special Needs,SWINDON BOROUGH COUNCIL,4000040752,276599
Department for Education,DEPARTMENT FOR EDUCATION,25/11/2010,CAPITAL GRANTS,Children and Families Early Years Extended Schools and Special Needs,TAMESIDE MBC,4000040753,901543
Department for Education,DEPARTMENT FOR EDUCATION,25/11/2010,CAPITAL GRANTS,Children and Families Early Years Extended Schools and Special Needs,THE ROYAL BOROUGH OF KENSINGTON & CHELSEA COUNCIL,4000040754,40000
Department for Education,DEPARTMENT FOR EDUCATION,25/11/2010,CAPITAL GRANTS,Children and Families Early Years Extended Schools and Special Needs,THE ROYAL BOROUGH OF WINDSOR & MAIDENHEAD,4000040755,606156
Department for Education,DEPARTMENT FOR EDUCATION,25/11/2010,CAPITAL GRANTS,Children and Families Early Years Extended Schools and Special Needs,TORBAY COUNCIL,4000040756,400943
Department for Education,DEPARTMENT FOR EDUCATION,25/11/2010,CAPITAL GRANTS,Children and Families Early Years Extended Schools and Special Needs,TRAFFORD MB COUNCIL,4000040757,357046
Department for Education,DEPARTMENT FOR EDUCATION,25/11/2010,CAPITAL GRANTS,Children and Families Early Years Extended Schools and Special Needs,WAKEFIELD MDC,4000040758,1114601
Department for Education,DEPARTMENT FOR EDUCATION,25/11/2010,CAPITAL GRANTS,Children and Families Early Years Extended Schools and Special Needs,WARWICKSHIRE COUNTY COUNCIL,4000040759,1317677
Department for Education,DEPARTMENT FOR EDUCATION,25/11/2010,CAPITAL GRANTS,Children and Families Early Years Extended Schools and Special Needs,WOLVERHAMPTON CITY COUNCIL,4000040760,1192334
Department for Education,DEPARTMENT FOR EDUCATION,25/11/2010,CAPITAL GRANTS,Children and Families Early Years Extended Schools and Special Needs,WORCESTERSHIRE COUNTY COUNCIL,4000040761,2690059
Department for Education,DEPARTMENT FOR EDUCATION,25/11/2010,CAPITAL GRANTS,Children and Families Early Years Extended Schools and Special Needs,CITY OF WESTMINSTER,4000040762,48900
Department for Education,DEPARTMENT FOR EDUCATION,25/11/2010,CAPITAL GRANTS,Children and Families Early Years Extended Schools and Special Needs,LONDON BOROUGH OF MERTON COUNCIL,4000040763,56600
Department for Education,DEPARTMENT FOR EDUCATION,25/11/2010,CAPITAL GRANTS,Children and Families Early Years Extended Schools and Special Needs,LONDON BOROUGH OF NEWHAM,4000040764,108175
Department for Education,DEPARTMENT FOR EDUCATION,25/11/2010,CAPITAL GRANTS,Children and Families Early Years Extended Schools and Special Needs,LONDON BOROUGH OF REDBRIDGE,4000040765,79900
Department for Education,DEPARTMENT FOR EDUCATION,25/11/2010,CAPITAL GRANTS,Children and Families Early Years Extended Schools and Special Needs,LONDON BOROUGH OF RICHMOND UPON THAMES,4000040766,51575
Department for Education,DEPARTMENT FOR EDUCATION,25/11/2010,CAPITAL GRANTS,Children and Families Early Years Extended Schools and Special Needs,LONDON BOROUGH OF SOUTHWARK COUNCIL,4000040767,99275
Department for Education,DEPARTMENT FOR EDUCATION,25/11/2010,CAPITAL GRANTS,Children and Families Early Years Extended Schools and Special Needs,LONDON BOROUGH OF TOWER HAMLETS COUNCIL,4000040769,103050
Department for Education,DEPARTMENT FOR EDUCATION,25/11/2010,CAPITAL GRANTS,Children and Families Early Years Extended Schools and Special Needs,LONDON BOROUGH OF WALTHAM FOREST COUNCIL,4000040770,78325
Department for Education,DEPARTMENT FOR EDUCATION,25/11/2010,CAPITAL GRANTS,Children and Families Early Years Extended Schools and Special Needs,LONDON BOROUGH OF WANDSWORTH COUNCIL,4000040771,83375
Department for Education,DEPARTMENT FOR EDUCATION,25/11/2010,CAPITAL GRANTS,Children and Families Early Years Extended Schools and Special Needs,MANCHESTER CITY COUNCIL,4000040772,180425
Department for Education,DEPARTMENT FOR EDUCATION,25/11/2010,CAPITAL GRANTS,Children and Families Early Years Extended Schools and Special Needs,MEDWAY COUNCIL,4000040773,97975
Department for Education,DEPARTMENT FOR EDUCATION,25/11/2010,CAPITAL GRANTS,Children and Families Early Years Extended Schools and Special Needs,METROPOLITAN BOROUGH OF WIRRAL,4000040774,147125
Department for Education,DEPARTMENT FOR EDUCATION,25/11/2010,CAPITAL GRANTS,Children and Families Early Years Extended Schools and Special Needs,MIDDLESBROUGH COUNCIL,4000040775,63925
Department for Education,DEPARTMENT FOR EDUCATION,25/11/2010,CAPITAL GRANTS,Children and Families Early Years Extended Schools and Special Needs,MILTON KEYNES COUNCIL,4000040776,69975
Department for Education,DEPARTMENT FOR EDUCATION,25/11/2010,CAPITAL GRANTS,Children and Families Early Years Extended Schools and Special Needs,NEWCASTLE CITY COUNCIL,4000040777,87975
Department for Education,DEPARTMENT FOR EDUCATION,25/11/2010,CAPITAL GRANTS,Children and Families Early Years Extended Schools and Special Needs,NORTH EAST LINCOLNSHIRE COUNCIL,4000040779,57475
Department for Education,DEPARTMENT FOR EDUCATION,25/11/2010,CAPITAL GRANTS,Children and Families Early Years Extended Schools and Special Needs,NORTH LINCOLNSHIRE COUNCIL,4000040780,52125
Department for Education,DEPARTMENT FOR EDUCATION,25/11/2010,CAPITAL GRANTS,Children and Families Early Years Extended Schools and Special Needs,NORTH SOMERSET COUNCIL,4000040781,51750
Department for Education,DEPARTMENT FOR EDUCATION,25/11/2010,CAPITAL GRANTS,Children and Families Early Years Extended Schools and Special Needs,NORTHAMPTONSHIRE COUNTY COUNCIL,4000040784,204050
Department for Education,DEPARTMENT FOR EDUCATION,25/11/2010,CAPITAL GRANTS,Children and Families Early Years Extended Schools and Special Needs,NORTHUMBERLAND COUNTY COUNCIL,4000040785,86875
Department for Education,DEPARTMENT FOR EDUCATION,25/11/2010,CAPITAL GRANTS,Children and Families Early Years Extended Schools and Special Needs,NOTTINGHAM CITY COUNCIL,4000040786,98625
Department for Education,DEPARTMENT FOR EDUCATION,25/11/2010,CAPITAL GRANTS,Children and Families Early Years Extended Schools and Special Needs,OLDHAM MBC,4000040788,71125
Department for Education,DEPARTMENT FOR EDUCATION,25/11/2010,CAPITAL GRANTS,Children and Families Early Years Extended Schools and Special Needs,OXFORDSHIRE COUNTY COUNCIL,4000040789,174400
Department for Education,DEPARTMENT FOR EDUCATION,25/11/2010,CAPITAL GRANTS,Children and Families Early Years Extended Schools and Special Needs,PETERBOROUGH CITY COUNCIL,4000040790,53825
Department for Education,DEPARTMENT FOR EDUCATION,25/11/2010,CAPITAL GRANTS,Children and Families Early Years Extended Schools and Special Needs,PLYMOUTH CITY COUNCIL,4000040791,67500
Department for Education,DEPARTMENT FOR EDUCATION,25/11/2010,CAPITAL GRANTS,Children and Families Early Years Extended Schools and Special Needs,PORTSMOUTH CITY COUNCIL,4000040793,53575
Department for Education,DEPARTMENT FOR EDUCATION,25/11/2010,CAPITAL GRANTS,Children and Families Early Years Extended Schools and Special Needs,READING BOROUGH COUNCIL,4000040794,43050
Department for Education,DEPARTMENT FOR EDUCATION,25/11/2010,CAPITAL GRANTS,Children and Families Early Years Extended Schools and Special Needs,REDCAR & CLEVELAND BOROUGH COUNCIL,4000040795,51550
Department for Education,DEPARTMENT FOR EDUCATION,25/11/2010,CAPITAL GRANTS,Children and Families Early Years Extended Schools and Special Needs,ROCHDALE MBC,4000040796,74800
Department for Education,DEPARTMENT FOR EDUCATION,25/11/2010,CAPITAL GRANTS,Children and Families Early Years Extended Schools and Special Needs,ROTHERHAM MBC,4000040797,100125
Department for Education,DEPARTMENT FOR EDUCATION,25/11/2010,CAPITAL GRANTS,Children and Families Early Years Extended Schools and Special Needs,RUTLAND COUNTY COUNCIL,4000040798,4750
Department for Education,DEPARTMENT FOR EDUCATION,25/11/2010,CAPITAL GRANTS,Children and Families Early Years Extended Schools and Special Needs,SALFORD CITY COUNCIL,4000040799,83375
Department for Education,DEPARTMENT FOR EDUCATION,25/11/2010,CAPITAL GRANTS,Children and Families Early Years Extended Schools and Special Needs,SANDWELL MBC,4000040800,79625
Department for Education,DEPARTMENT FOR EDUCATION,25/11/2010,CAPITAL GRANTS,Children and Families Early Years Extended Schools and Special Needs,SEFTON COUNCIL,4000040801,97775
Department for Education,DEPARTMENT FOR EDUCATION,25/11/2010,CAPITAL GRANTS,Children and Families Early Years Extended Schools and Special Needs,SHEFFIELD CITY COUNCIL,4000040802,184275
Department for Education,DEPARTMENT FOR EDUCATION,25/11/2010,CAPITAL GRANTS,Children and Families Early Years Extended Schools and Special Needs,SHROPSHIRE COUNCIL,4000040803,69700
Department for Education,DEPARTMENT FOR EDUCATION,25/11/2010,CAPITAL GRANTS,Children and Families Early Years Extended Schools and Special Needs,SLOUGH BOROUGH COUNCIL,4000040804,36150
Department for Education,DEPARTMENT FOR EDUCATION,25/11/2010,CAPITAL GRANTS,Children and Families Early Years Extended Schools and Special Needs,SOLIHULL MBC,4000040805,59000
Department for Education,DEPARTMENT FOR EDUCATION,25/11/2010,CAPITAL GRANTS,Children and Families Early Years Extended Schools and Special Needs,SOMERSET COUNTY COUNCIL,4000040806,115675
Department for Education,DEPARTMENT FOR EDUCATION,25/11/2010,CAPITAL GRANTS,Children and Families Early Years Extended Schools and Special Needs,SOUTH GLOUCEST,4000040807,73875
Department for Education,DEPARTMENT FOR EDUCATION,25/11/2010,CAPITAL GRANTS,Children and Families Early Years Extended Schools and Special Needs,SOUTH TYNESIDE,4000040808,49100
Department for Education,DEPARTMENT FOR EDUCATION,25/11/2010,CAPITAL GRANTS,Children and Families Early Years Extended Schools and Special Needs,SOUTHAMPTON CITY COUNCIL,4000040809,64550
Department for Education,DEPARTMENT FOR EDUCATION,25/11/2010,CAPITAL GRANTS,Children and Families Early Years Extended Schools and Special Needs,SOUTHEND ON SEA BOROUGH COUNCIL,4000040810,51925
Department for Education,DEPARTMENT FOR EDUCATION,25/11/2010,CAPITAL GRANTS,Children and Families Early Years Extended Schools and Special Needs,ST HELENS MBC,4000040811,62325
Department for Education,DEPARTMENT FOR EDUCATION,25/11/2010,CAPITAL GRANTS,Children and Families Early Years Extended Schools and Special Needs,STAFFORDSHIRE COUNCIL,4000040812,224125
Department for Education,DEPARTMENT FOR EDUCATION,25/11/2010,CAPITAL GRANTS,Children and Families Early Years Extended Schools and Special Needs,STOCKPORT MBC,4000040813,91325
Department for Education,DEPARTMENT FOR EDUCATION,25/11/2010,CAPITAL GRANTS,Children and Families Early Years Extended Schools and Special Needs,STOCKTON ON TEES,4000040814,73250
Department for Education,DEPARTMENT FOR EDUCATION,25/11/2010,CAPITAL GRANTS,Children and Families Early Years Extended Schools and Special Needs,STOKE ON TRENT CITY COUNCIL,4000040815,68650
Department for Education,DEPARTMENT FOR EDUCATION,25/11/2010,CAPITAL GRANTS,Children and Families Early Years Extended Schools and Special Needs,SURREY COUNTY COUNCIL,4000040818,355675
Department for Education,DEPARTMENT FOR EDUCATION,25/11/2010,CAPITAL GRANTS,Children and Families Early Years Extended Schools and Special Needs,SWINDON BOROUGH COUNCIL,4000040819,53325
Department for Education,DEPARTMENT FOR EDUCATION,25/11/2010,CAPITAL GRANTS,Children and Families Early Years Extended Schools and Special Needs,TAMESIDE MBC,4000040820,69100
Department for Education,DEPARTMENT FOR EDUCATION,25/11/2010,CAPITAL GRANTS,Children and Families Early Years Extended Schools and Special Needs,THE ROYAL BOROUGH OF WINDSOR & MAIDENHEAD,4000040822,39800
Department for Education,DEPARTMENT FOR EDUCATION,25/11/2010,CAPITAL GRANTS,Children and Families Early Years Extended Schools and Special Needs,THURROCK COUNCIL,4000040823,62900
Department for Education,DEPARTMENT FOR EDUCATION,25/11/2010,CAPITAL GRANTS,Children and Families Early Years Extended Schools and Special Needs,TORBAY COUNCIL,4000040824,36500
Department for Education,DEPARTMENT FOR EDUCATION,25/11/2010,CAPITAL GRANTS,Children and Families Early Years Extended Schools and Special Needs,TRAFFORD MB COUNCIL,4000040825,59075
Department for Education,DEPARTMENT FOR EDUCATION,25/11/2010,CAPITAL GRANTS,Children and Families Early Years Extended Schools and Special Needs,WAKEFIELD MDC,4000040826,100800
Department for Education,DEPARTMENT FOR EDUCATION,25/11/2010,CAPITAL GRANTS,Children and Families Early Years Extended Schools and Special Needs,WALSALL MBC,4000040827,68400
Department for Education,DEPARTMENT FOR EDUCATION,25/11/2010,CAPITAL GRANTS,Children and Families Early Years Extended Schools and Special Needs,WARRINGTON BOROUGH COUNCIL,4000040828,63550
Department for Education,DEPARTMENT FOR EDUCATION,25/11/2010,CAPITAL GRANTS,Children and Families Early Years Extended Schools and Special Needs,WARWICKSHIRE COUNTY COUNCIL,4000040829,146450
Department for Education,DEPARTMENT FOR EDUCATION,25/11/2010,CAPITAL GRANTS,Children and Families Early Years Extended Schools and Special Needs,WEST BERKSHIRE COUNCIL,4000040830,44000
Department for Education,DEPARTMENT FOR EDUCATION,25/11/2010,CAPITAL GRANTS,Children and Families Early Years Extended Schools and Special Needs,WEST SUSSEX COUNTY COUNCIL,4000040831,211475
Department for Education,DEPARTMENT FOR EDUCATION,25/11/2010,CAPITAL GRANTS,Children and Families Early Years Extended Schools and Special Needs,WIGAN MBC,4000040832,103275
Department for Education,DEPARTMENT FOR EDUCATION,25/11/2010,CAPITAL GRANTS,Children and Families Early Years Extended Schools and Special Needs,WILTSHIRE COUNCIL,4000040833,119600
Department for Education,DEPARTMENT FOR EDUCATION,25/11/2010,CAPITAL GRANTS,Children and Families Early Years Extended Schools and Special Needs,WOKINGHAM BOROUGH COUNCIL,4000040834,47775
Department for Education,DEPARTMENT FOR EDUCATION,25/11/2010,CAPITAL GRANTS,Children and Families Early Years Extended Schools and Special Needs,WOLVERHAMPTON CITY COUNCIL,4000040835,71825
Department for Education,DEPARTMENT FOR EDUCATION,25/11/2010,CAPITAL GRANTS,Children and Families Early Years Extended Schools and Special Needs,WORCESTERSHIRE COUNTY COUNCIL,4000040836,165450
Department for Education,DEPARTMENT FOR EDUCATION,25/11/2010,CAPITAL GRANTS,Children and Families Early Years Extended Schools and Special Needs,YORK CITY COUNCIL,4000040837,42100
Department for Education,DEPARTMENT FOR EDUCATION,26/11/2010,CAPITAL GRANTS,Curriculum and Pupil Well Being Improving Behaviour and Attendance Unit,OXFORDSHIRE COUNTY COUNCIL,4000040929,600000
Department for Education,DEPARTMENT FOR EDUCATION,01/11/2010,CAPITAL GRANTS,School Formation and Investment Group,DARWEN ACADEMY,4000038748,390393
Department for Education,DEPARTMENT FOR EDUCATION,01/11/2010,CAPITAL GRANTS,School Formation and Investment Group,SIR CHARLES LUCAS ARTS COLLEGE,4000038773,146935
Department for Education,DEPARTMENT FOR EDUCATION,02/11/2010,CAPITAL GRANTS,School Formation and Investment Group,MERCHANTS ACADEMY WITHYWOOD,4000038906,80697
Department for Education,DEPARTMENT FOR EDUCATION,03/11/2010,CAPITAL GRANTS,School Formation and Investment Group,ACADEMY ENTERPRISE TRUST,4000039164,83193
Department for Education,DEPARTMENT FOR EDUCATION,03/11/2010,CAPITAL GRANTS,School Formation and Investment Group,NORFOLK COUNTY COUNCIL,4000039202,130988
Department for Education,DEPARTMENT FOR EDUCATION,03/11/2010,CAPITAL GRANTS,School Formation and Investment Group,ORMISTON BOLINGBROKE ACADEMY,4000039205,54417
Department for Education,DEPARTMENT FOR EDUCATION,03/11/2010,CAPITAL GRANTS,School Formation and Investment Group,THE HAREFIELD ACADEMY,4000039216,99610
Department for Education,DEPARTMENT FOR EDUCATION,05/11/2010,CAPITAL GRANTS,School Formation and Investment Group,MANCHESTER CITY COUNCIL,4000039375,78925
Department for Education,DEPARTMENT FOR EDUCATION,08/11/2010,CAPITAL GRANTS,School Formation and Investment Group,THE SAMWORTH ENTERPRISE ACADEMY RECURRENT,4000039487,28046
Department for Education,DEPARTMENT FOR EDUCATION,09/11/2010,CAPITAL GRANTS,School Formation and Investment Group,HARRIS CTC,4000039530,935992
Department for Education,DEPARTMENT FOR EDUCATION,09/11/2010,CAPITAL GRANTS,School Formation and Investment Group,HEREFORD STEINER ACADEMY,4000039531,470851
Department for Education,DEPARTMENT FOR EDUCATION,10/11/2010,CAPITAL GRANTS,School Formation and Investment Group,CITY OF LONDON ACADEMY ISLINGTON LTD,4000039615,145738
Department for Education,DEPARTMENT FOR EDUCATION,10/11/2010,CAPITAL GRANTS,School Formation and Investment Group,HAMMERSMITH ACADEMY TRUST ACCOUNT,4000039623,1743470
Department for Education,DEPARTMENT FOR EDUCATION,11/11/2010,CAPITAL GRANTS,School Formation and Investment Group,BIRMINGHAM CITY COUNCIL,4000039674,139850
Department for Education,DEPARTMENT FOR EDUCATION,11/11/2010,CAPITAL GRANTS,School Formation and Investment Group,KINGSHURST CTC,4000039707,69780
Department for Education,DEPARTMENT FOR EDUCATION,12/11/2010,CAPITAL GRANTS,School Formation and Investment Group,RSA ACADEMY,4000039819,319971
Department for Education,DEPARTMENT FOR EDUCATION,15/11/2010,CAPITAL GRANTS,School Formation and Investment Group,KINGSHURST CTC,4000039871,187463
Department for Education,DEPARTMENT FOR EDUCATION,16/11/2010,CAPITAL GRANTS,School Formation and Investment Group,ARK,4000039918,399073
Department for Education,DEPARTMENT FOR EDUCATION,16/11/2010,CAPITAL GRANTS,School Formation and Investment Group,CITY OF LONDON ACADEMY ISLINGTON LTD,4000039925,282150
Department for Education,DEPARTMENT FOR EDUCATION,17/11/2010,CAPITAL GRANTS,School Formation and Investment Group,BEDE ACADEMY,4000040001,38306
Department for Education,DEPARTMENT FOR EDUCATION,19/11/2010,CAPITAL GRANTS,School Formation and Investment Group,MALCOLM ARNOLD ACADEMY,4000040332,88443
Department for Education,DEPARTMENT FOR EDUCATION,22/11/2010,CAPITAL GRANTS,School Formation and Investment Group,DARWEN ACADEMY,4000040390,1208636
Department for Education,DEPARTMENT FOR EDUCATION,22/11/2010,CAPITAL GRANTS,School Formation and Investment Group,SANDWELL ACADEMY TRUST LTD,4000040404,128662
Department for Education,DEPARTMENT FOR EDUCATION,22/11/2010,CAPITAL GRANTS,School Formation and Investment Group,THE QUAERERE ACADEMY TRUST,4000040411,50379
Department for Education,DEPARTMENT FOR EDUCATION,23/11/2010,CAPITAL GRANTS,School Formation and Investment Group,SIDNEY STRINGER SCHOOL,4000040470,116299
Department for Education,DEPARTMENT FOR EDUCATION,23/11/2010,CAPITAL GRANTS,School Formation and Investment Group,WHITTON SCHOOL & SPORTS COLLEGE,4000040480,135000
Department for Education,DEPARTMENT FOR EDUCATION,24/11/2010,CAPITAL GRANTS,School Formation and Investment Group,BOLTON MBC,4000040529,200000
Department for Education,DEPARTMENT FOR EDUCATION,24/11/2010,CAPITAL GRANTS,School Formation and Investment Group,GRACE ACADEMY  COVENTRY,4000040548,249696
Department for Education,DEPARTMENT FOR EDUCATION,25/11/2010,CAPITAL GRANTS,School Formation and Investment Group,HEREFORD STEINER ACADEMY,4000040871,169617
Department for Education,DEPARTMENT FOR EDUCATION,26/11/2010,CAPITAL GRANTS,School Formation and Investment Group,THE ST MATTHEWS ACADEMY CAPITAL,4000040938,128244
Department for Education,DEPARTMENT FOR EDUCATION,02/11/2010,CAPITAL GRANTS,School Performance and Reform Group,RNIB RUSHTON SCHOOL,4000038936,20000
Department for Education,DEPARTMENT FOR EDUCATION,01/11/2010,CAPITAL GRANTS,School Formation and Investment Group,BURO FOUR PROJECT SERVICES LTD,4000038740,48887
Department for Education,DEPARTMENT FOR EDUCATION,09/11/2010,CAPITAL GRANTS,School Formation and Investment Group,W S ATKINS SERVICES LTD,4000039560,91720
Department for Education,DEPARTMENT FOR EDUCATION,22/11/2010,CAPITAL GRANTS,School Formation and Investment Group,NPS SOUTH EAST LTD,4000040398,87534
Department for Education,DEPARTMENT FOR EDUCATION,05/11/2010,CAPITAL LICENCES & INTANGIBLES,Corporate and Internal Communications Group,TEACHERS TV C/O EDUCATION DIGITAL 2 LTD,4000039403,427867
Department for Education,DEPARTMENT FOR EDUCATION,15/11/2010,CAPITAL LICENCES & INTANGIBLES,Corporate and Internal Communications Group,EDUSERV,4000039869,70350
Department for Education,DEPARTMENT FOR EDUCATION,22/11/2010,CAPITAL LICENCES & INTANGIBLES,Chief Information Officer Group,CAPGEMINI UK PLC,4000040386,12761
Department for Education,DEPARTMENT FOR EDUCATION,09/11/2010,COMMUNICATIONS & PUBLICITY,Group Legal Advisors Office,BARCLAYCARD BANK PLC,4000039521,2770
Department for Education,DEPARTMENT FOR EDUCATION,22/11/2010,COMMUNICATIONS & PUBLICITY,Children and Families Child Well Being Group,PROLOG,4000040400,16
Department for Education,DEPARTMENT FOR EDUCATION,22/11/2010,COMMUNICATIONS & PUBLICITY,Children and Families Early Years Extended Schools and Special Needs,PROLOG,4000040400,502
Department for Education,DEPARTMENT FOR EDUCATION,22/11/2010,COMMUNICATIONS & PUBLICITY,Children and Families Early Years Extended Schools and Special Needs,PROLOG,4000040400,78
Department for Education,DEPARTMENT FOR EDUCATION,22/11/2010,COMMUNICATIONS & PUBLICITY,Children and Families Early Years Extended Schools and Special Needs,PROLOG,4000040400,273
Department for Education,DEPARTMENT FOR EDUCATION,22/11/2010,COMMUNICATIONS & PUBLICITY,Children and Families Early Years Extended Schools and Special Needs,PROLOG,4000040400,220
Department for Education,DEPARTMENT FOR EDUCATION,22/11/2010,COMMUNICATIONS & PUBLICITY,Children and Families Early Years Extended Schools and Special Needs,PROLOG,4000040400,73
Department for Education,DEPARTMENT FOR EDUCATION,22/11/2010,COMMUNICATIONS & PUBLICITY,Children and Families Early Years Extended Schools and Special Needs,PROLOG,4000040400,27059
Department for Education,DEPARTMENT FOR EDUCATION,22/11/2010,COMMUNICATIONS & PUBLICITY,Children and Families Early Years Extended Schools and Special Needs,PROLOG,4000040400,74
Department for Education,DEPARTMENT FOR EDUCATION,22/11/2010,COMMUNICATIONS & PUBLICITY,Children and Families Early Years Extended Schools and Special Needs,PROLOG,4000040400,14515
Department for Education,DEPARTMENT FOR EDUCATION,22/11/2010,COMMUNICATIONS & PUBLICITY,Children and Families Group,PROLOG,4000040400,317
Department for Education,DEPARTMENT FOR EDUCATION,22/11/2010,COMMUNICATIONS & PUBLICITY,Children and Families Group,PROLOG,4000040400,172
Department for Education,DEPARTMENT FOR EDUCATION,22/11/2010,COMMUNICATIONS & PUBLICITY,Children and Families Group,PROLOG,4000040400,3046
Department for Education,DEPARTMENT FOR EDUCATION,22/11/2010,COMMUNICATIONS & PUBLICITY,Children and Families Group,PROLOG,4000040400,203
Department for Education,DEPARTMENT FOR EDUCATION,22/11/2010,COMMUNICATIONS & PUBLICITY,Children and Families Group,PROLOG,4000040400,548
Department for Education,DEPARTMENT FOR EDUCATION,22/11/2010,COMMUNICATIONS & PUBLICITY,Children and Families Safeguarding Group,PROLOG,4000040400,21645
Department for Education,DEPARTMENT FOR EDUCATION,22/11/2010,COMMUNICATIONS & PUBLICITY,Children and Families Safeguarding Group,PROLOG,4000040400,1900
Department for Education,DEPARTMENT FOR EDUCATION,22/11/2010,COMMUNICATIONS & PUBLICITY,Children and Families Supporting Delivery Group,PROLOG,4000040400,66
Department for Education,DEPARTMENT FOR EDUCATION,22/11/2010,COMMUNICATIONS & PUBLICITY,Children and Families Early Years Extended Schools and Special Needs,PROLOG,4000040400,194
Department for Education,DEPARTMENT FOR EDUCATION,22/11/2010,COMMUNICATIONS & PUBLICITY,School Formation and Investment Group,PROLOG,4000040400,237
Department for Education,DEPARTMENT FOR EDUCATION,22/11/2010,COMMUNICATIONS & PUBLICITY,School Formation and Investment Group,PROLOG,4000040400,65
Department for Education,DEPARTMENT FOR EDUCATION,22/11/2010,COMMUNICATIONS & PUBLICITY,School Formation and Investment Group,PROLOG,4000040400,70
Department for Education,DEPARTMENT FOR EDUCATION,22/11/2010,COMMUNICATIONS & PUBLICITY,School Formation and Investment Group,PROLOG,4000040400,106
Department for Education,DEPARTMENT FOR EDUCATION,22/11/2010,COMMUNICATIONS & PUBLICITY,School Formation and Investment Group,PROLOG,4000040400,986
Department for Education,DEPARTMENT FOR EDUCATION,22/11/2010,COMMUNICATIONS & PUBLICITY,School Resources Group,PROLOG,4000040400,73
Department for Education,DEPARTMENT FOR EDUCATION,22/11/2010,COMMUNICATIONS & PUBLICITY,School Resources Group,PROLOG,4000040400,73
Department for Education,DEPARTMENT FOR EDUCATION,22/11/2010,COMMUNICATIONS & PUBLICITY,School Performance and Reform Group,PROLOG,4000040400,22
Department for Education,DEPARTMENT FOR EDUCATION,22/11/2010,COMMUNICATIONS & PUBLICITY,School Performance and Reform Group,PROLOG,4000040400,1807
Department for Education,DEPARTMENT FOR EDUCATION,22/11/2010,COMMUNICATIONS & PUBLICITY,School Performance and Reform Group,PROLOG,4000040400,8
Department for Education,DEPARTMENT FOR EDUCATION,22/11/2010,COMMUNICATIONS & PUBLICITY,School Performance and Reform Office of the Schools Commissioner,PROLOG,4000040400,13
Department for Education,DEPARTMENT FOR EDUCATION,22/11/2010,COMMUNICATIONS & PUBLICITY,School Standards Group,PROLOG,4000040400,1043
Department for Education,DEPARTMENT FOR EDUCATION,22/11/2010,COMMUNICATIONS & PUBLICITY,School Standards Group,PROLOG,4000040400,45
Department for Education,DEPARTMENT FOR EDUCATION,22/11/2010,COMMUNICATIONS & PUBLICITY,School Standards Group,PROLOG,4000040400,794
Department for Education,DEPARTMENT FOR EDUCATION,22/11/2010,COMMUNICATIONS & PUBLICITY,School Standards Group,PROLOG,4000040400,802
Department for Education,DEPARTMENT FOR EDUCATION,22/11/2010,COMMUNICATIONS & PUBLICITY,School Standards Group,PROLOG,4000040400,334
Department for Education,DEPARTMENT FOR EDUCATION,22/11/2010,COMMUNICATIONS & PUBLICITY,School Standards Group,PROLOG,4000040400,89
Department for Education,DEPARTMENT FOR EDUCATION,22/11/2010,COMMUNICATIONS & PUBLICITY,Curriculum and Pupil Well Being Curriculum Unit,PROLOG,4000040400,442
Department for Education,DEPARTMENT FOR EDUCATION,22/11/2010,COMMUNICATIONS & PUBLICITY,Curriculum and Pupil Well Being Curriculum Unit,PROLOG,4000040400,64
Department for Education,DEPARTMENT FOR EDUCATION,22/11/2010,COMMUNICATIONS & PUBLICITY,Curriculum and Pupil Well Being Curriculum Unit,PROLOG,4000040400,51
Department for Education,DEPARTMENT FOR EDUCATION,22/11/2010,COMMUNICATIONS & PUBLICITY,Curriculum and Pupil Well Being Curriculum Unit,PROLOG,4000040400,239
Department for Education,DEPARTMENT FOR EDUCATION,22/11/2010,COMMUNICATIONS & PUBLICITY,Curriculum and Pupil Well Being Curriculum Unit,PROLOG,4000040400,2924
Department for Education,DEPARTMENT FOR EDUCATION,22/11/2010,COMMUNICATIONS & PUBLICITY,Curriculum and Pupil Well Being Curriculum Unit,PROLOG,4000040400,4485
Department for Education,DEPARTMENT FOR EDUCATION,22/11/2010,COMMUNICATIONS & PUBLICITY,Curriculum and Pupil Well Being Curriculum Unit,PROLOG,4000040400,46
Department for Education,DEPARTMENT FOR EDUCATION,22/11/2010,COMMUNICATIONS & PUBLICITY,Curriculum and Pupil Well Being Curriculum Unit,PROLOG,4000040400,89
Department for Education,DEPARTMENT FOR EDUCATION,22/11/2010,COMMUNICATIONS & PUBLICITY,Curriculum and Pupil Well Being Unit,PROLOG,4000040400,717
Department for Education,DEPARTMENT FOR EDUCATION,22/11/2010,COMMUNICATIONS & PUBLICITY,Curriculum and Pupil Well Being Improving Behaviour and Attendance Unit,PROLOG,4000040400,1156
Department for Education,DEPARTMENT FOR EDUCATION,22/11/2010,COMMUNICATIONS & PUBLICITY,Curriculum and Pupil Well Being Improving Behaviour and Attendance Unit,PROLOG,4000040400,1153
Department for Education,DEPARTMENT FOR EDUCATION,22/11/2010,COMMUNICATIONS & PUBLICITY,Curriculum and Pupil Well Being Improving Behaviour and Attendance Unit,PROLOG,4000040400,830
Department for Education,DEPARTMENT FOR EDUCATION,22/11/2010,COMMUNICATIONS & PUBLICITY,Curriculum and Pupil Well Being Improving Behaviour and Attendance Unit,PROLOG,4000040400,794
Department for Education,DEPARTMENT FOR EDUCATION,22/11/2010,COMMUNICATIONS & PUBLICITY,Curriculum and Pupil Well Being,PROLOG,4000040400,544
Department for Education,DEPARTMENT FOR EDUCATION,22/11/2010,COMMUNICATIONS & PUBLICITY,Talent And Enterprise Taskforce Group,PROLOG,4000040400,14
Department for Education,DEPARTMENT FOR EDUCATION,22/11/2010,COMMUNICATIONS & PUBLICITY,Supporting Children and Young People as Risk,PROLOG,4000040400,604
Department for Education,DEPARTMENT FOR EDUCATION,22/11/2010,COMMUNICATIONS & PUBLICITY,14 - 19 Reform Young People Guidance,PROLOG,4000040400,134
Department for Education,DEPARTMENT FOR EDUCATION,22/11/2010,COMMUNICATIONS & PUBLICITY,14 - 19 Reform Young People Guidance,PROLOG,4000040400,194
Department for Education,DEPARTMENT FOR EDUCATION,22/11/2010,COMMUNICATIONS & PUBLICITY,Supporting Children and Young People Youth Task Force,PROLOG,4000040400,89
Department for Education,DEPARTMENT FOR EDUCATION,22/11/2010,COMMUNICATIONS & PUBLICITY,Supporting Children and Young People Youth Task Force,PROLOG,4000040400,182
Department for Education,DEPARTMENT FOR EDUCATION,22/11/2010,COMMUNICATIONS & PUBLICITY,14 - 19 Reform Participation and Attainment,PROLOG,4000040400,138
Department for Education,DEPARTMENT FOR EDUCATION,22/11/2010,COMMUNICATIONS & PUBLICITY,14 - 19 Reform Qualification Standards and Reform,PROLOG,4000040400,159
Department for Education,DEPARTMENT FOR EDUCATION,22/11/2010,COMMUNICATIONS & PUBLICITY,Workforce Group Young People Workforce,PROLOG,4000040400,67
Department for Education,DEPARTMENT FOR EDUCATION,22/11/2010,COMMUNICATIONS & PUBLICITY,Workforce Group Children and Families Workforce,PROLOG,4000040400,49
Department for Education,DEPARTMENT FOR EDUCATION,22/11/2010,COMMUNICATIONS & PUBLICITY,Workforce Group Young People Workforce,PROLOG,4000040400,8
Department for Education,DEPARTMENT FOR EDUCATION,22/11/2010,COMMUNICATIONS & PUBLICITY,Workforce Group Young People Workforce,PROLOG,4000040400,1273
Department for Education,DEPARTMENT FOR EDUCATION,22/11/2010,COMMUNICATIONS & PUBLICITY,Workforce Group Young People Workforce,PROLOG,4000040400,65
Department for Education,DEPARTMENT FOR EDUCATION,22/11/2010,COMMUNICATIONS & PUBLICITY,Corporate and Internal Communications Group,PROLOG,4000040400,1263
Department for Education,DEPARTMENT FOR EDUCATION,22/11/2010,COMMUNICATIONS & PUBLICITY,Marketing Group,PROLOG,4000040400,356
Department for Education,DEPARTMENT FOR EDUCATION,01/11/2010,COMMUNICATIONS & PUBLICITY,Corporate and Internal Communications Group,CENTRAL OFFICE OF INFORMATION,4000038743,47339
Department for Education,DEPARTMENT FOR EDUCATION,01/11/2010,COMMUNICATIONS & PUBLICITY,Corporate and Internal Communications Group,COI CENTRAL OFFICE OF INFORMATION,4000038746,94000
Department for Education,DEPARTMENT FOR EDUCATION,04/11/2010,COMMUNICATIONS & PUBLICITY,Corporate and Internal Communications Group,TEACHERS TV C/O EDUCATION DIGITAL 2 LTD,4000039292,261405
Department for Education,DEPARTMENT FOR EDUCATION,05/11/2010,COMMUNICATIONS & PUBLICITY,Corporate and Internal Communications Group,TEACHERS TV C/O EDUCATION DIGITAL 2 LTD,4000039403,1156453
Department for Education,DEPARTMENT FOR EDUCATION,09/11/2010,COMMUNICATIONS & PUBLICITY,Corporate and Internal Communications Group,REDHOUSE LANE COMMUNICATIONS LTD,4000039550,67372
Department for Education,DEPARTMENT FOR EDUCATION,22/11/2010,COMMUNICATIONS & PUBLICITY,Corporate and Internal Communications Group,PROLOG,4000040400,63445
Department for Education,DEPARTMENT FOR EDUCATION,02/11/2010,COMMUNICATIONS & PUBLICITY,Children and Families Group,LEWIS LIVE LTD,4000038875,48127
Department for Education,DEPARTMENT FOR EDUCATION,22/11/2010,COMMUNICATIONS & PUBLICITY,Communications Strategy and Insight Group,PROLOG,4000040400,367
Department for Education,DEPARTMENT FOR EDUCATION,23/11/2010,COMMUNICATIONS & PUBLICITY,Children and Families Group,LEWIS LIVE LTD,4000040463,51223
Department for Education,DEPARTMENT FOR EDUCATION,04/11/2010,COMMUNICATIONS & PUBLICITY,Children and Families Supporting Delivery Group,NATIONAL FUND FOR EDUCATIONAL RESEARCH,1000289,70527
Department for Education,DEPARTMENT FOR EDUCATION,15/11/2010,COMMUNICATIONS & PUBLICITY,Corporate and Internal Communications Group,CAPGEMINI UK PLC,4000039865,12012
Department for Education,DEPARTMENT FOR EDUCATION,09/11/2010,COMMUNICATIONS & PUBLICITY,Commercial Group Schools and Category Management,BARCLAYCARD BANK PLC,4000039521,53
Department for Education,DEPARTMENT FOR EDUCATION,22/11/2010,COMMUNICATIONS & PUBLICITY,14 - 19 Reform Participation and Attainment,PROLOG,4000040400,44
Department for Education,DEPARTMENT FOR EDUCATION,10/11/2010,CONTRACT PROGRAMME EXPENDITURE,Children and Families Safeguarding Group,THE FIRE FIGHTERS CHARITY,1000292,43625
Department for Education,DEPARTMENT FOR EDUCATION,08/11/2010,CONTRACT PROGRAMME EXPENDITURE,Workforce Group Young People Workforce,TEACHERS SUPERANN,2000254,317977
Department for Education,DEPARTMENT FOR EDUCATION,08/11/2010,CONTRACT PROGRAMME EXPENDITURE,Workforce Group Young People Workforce,TEACHERS SUPERANN,2000254,8535
Department for Education,DEPARTMENT FOR EDUCATION,08/11/2010,CONTRACT PROGRAMME EXPENDITURE,Workforce Group Young People Workforce,TEACHERS SUPERANN,2000254,658536
Department for Education,DEPARTMENT FOR EDUCATION,12/11/2010,CONTRACT PROGRAMME EXPENDITURE,Workforce Group Young People Workforce,BIS DEPARTMENT FOR BUSINESS INNOVATION & SKILLS,2000257,359853
Department for Education,DEPARTMENT FOR EDUCATION,12/11/2010,CONTRACT PROGRAMME EXPENDITURE,Workforce Group Young People Workforce,BIS DEPARTMENT FOR BUSINESS INNOVATION & SKILLS,2000258,957368
Department for Education,DEPARTMENT FOR EDUCATION,01/11/2010,CONTRACT PROGRAMME EXPENDITURE,Children and Families Safeguarding Group,BEAT BULLYING LTD,4000038738,39433
Department for Education,DEPARTMENT FOR EDUCATION,01/11/2010,CONTRACT PROGRAMME EXPENDITURE,Children and Families Child Well Being Group,NATIONAL CHILDRENS BUREAU,4000038765,53482
Department for Education,DEPARTMENT FOR EDUCATION,01/11/2010,CONTRACT PROGRAMME EXPENDITURE,Children and Families Early Years Extended Schools and Special Needs,SERCO LTD,4000038772,347684
Department for Education,DEPARTMENT FOR EDUCATION,01/11/2010,CONTRACT PROGRAMME EXPENDITURE,Children and Families Early Years Extended Schools and Special Needs,SERCO LTD,4000038772,64859
Department for Education,DEPARTMENT FOR EDUCATION,01/11/2010,CONTRACT PROGRAMME EXPENDITURE,Children and Families Early Years Extended Schools and Special Needs,SERCO LTD,4000038772,632807
Department for Education,DEPARTMENT FOR EDUCATION,01/11/2010,CONTRACT PROGRAMME EXPENDITURE,Curriculum and Pupil Well Being Curriculum Unit,UNIVERSITY OF SOUTHAMPTON,4000038781,221750
Department for Education,DEPARTMENT FOR EDUCATION,02/11/2010,CONTRACT PROGRAMME EXPENDITURE,School Formation and Investment Group,OWEN EDUCATION LTD,4000038925,48888
Department for Education,DEPARTMENT FOR EDUCATION,02/11/2010,CONTRACT PROGRAMME EXPENDITURE,School Formation and Investment Group,PKF UK LIMITED,4000038929,45942
Department for Education,DEPARTMENT FOR EDUCATION,02/11/2010,CONTRACT PROGRAMME EXPENDITURE,School Formation and Investment Group,PLACE GROUP LIMITED,4000038930,110952
Department for Education,DEPARTMENT FOR EDUCATION,02/11/2010,CONTRACT PROGRAMME EXPENDITURE,Children and Families Early Years Extended Schools and Special Needs,ROYAL COLLEGE OF SPEECH & LANGUAGE THERAPISTS,4000038940,45320
Department for Education,DEPARTMENT FOR EDUCATION,02/11/2010,CONTRACT PROGRAMME EXPENDITURE,School Formation and Investment Group,SOLIHULL MBC,4000038950,5100
Department for Education,DEPARTMENT FOR EDUCATION,02/11/2010,CONTRACT PROGRAMME EXPENDITURE,Curriculum and Pupil Well Being Curriculum Unit,BABCOCK 4S LTD,4000038983,30405
Department for Education,DEPARTMENT FOR EDUCATION,03/11/2010,CONTRACT PROGRAMME EXPENDITURE,Curriculum and Pupil Well Being Curriculum Unit,PERSONAL FINANCE EDUCATION GROUP PFEG,4000039206,194386
Department for Education,DEPARTMENT FOR EDUCATION,04/11/2010,CONTRACT PROGRAMME EXPENDITURE,Supporting Children and Young People Community Cohesion,SDSA,4000039289,60000
Department for Education,DEPARTMENT FOR EDUCATION,05/11/2010,CONTRACT PROGRAMME EXPENDITURE,School Standards Group,CAPITA BUSINESS SERVICES LTD,4000039338,6312116
Department for Education,DEPARTMENT FOR EDUCATION,05/11/2010,CONTRACT PROGRAMME EXPENDITURE,School Standards Group,CAPITA BUSINESS SERVICES LTD,4000039339,663513
Department for Education,DEPARTMENT FOR EDUCATION,05/11/2010,CONTRACT PROGRAMME EXPENDITURE,School Standards Group,CAPITA BUSINESS SERVICES LTD,4000039340,118972
Department for Education,DEPARTMENT FOR EDUCATION,05/11/2010,CONTRACT PROGRAMME EXPENDITURE,School Standards Group,CAPITA BUSINESS SERVICES LTD,4000039341,712347
Department for Education,DEPARTMENT FOR EDUCATION,05/11/2010,CONTRACT PROGRAMME EXPENDITURE,School Standards Group,CAPITA BUSINESS SERVICES LTD,4000039342,139256
Department for Education,DEPARTMENT FOR EDUCATION,05/11/2010,CONTRACT PROGRAMME EXPENDITURE,Children and Families Group,CAPITA RESOURCING LTD,4000039343,7299
Department for Education,DEPARTMENT FOR EDUCATION,05/11/2010,CONTRACT PROGRAMME EXPENDITURE,Curriculum and Pupil Well Being Curriculum Unit,MATHEMATICS IN EDUCATION & INDUSTRY,4000039376,96421
Department for Education,DEPARTMENT FOR EDUCATION,05/11/2010,CONTRACT PROGRAMME EXPENDITURE,Curriculum and Pupil Well Being Curriculum Unit,NATIONAL SCIENCE LEARNING CENTRE,4000039386,164494
Department for Education,DEPARTMENT FOR EDUCATION,08/11/2010,CONTRACT PROGRAMME EXPENDITURE,Children and Families Group,KINGS COLLEGE LONDON,4000039463,182532
Department for Education,DEPARTMENT FOR EDUCATION,08/11/2010,CONTRACT PROGRAMME EXPENDITURE,School Formation and Investment Group,PKF UK LIMITED,4000039469,79983
Department for Education,DEPARTMENT FOR EDUCATION,08/11/2010,CONTRACT PROGRAMME EXPENDITURE,School Formation and Investment Group,PKF UK LLP,4000039470,56703
Department for Education,DEPARTMENT FOR EDUCATION,08/11/2010,CONTRACT PROGRAMME EXPENDITURE,School Formation and Investment Group,PLACE GROUP LIMITED,4000039471,55509
Department for Education,DEPARTMENT FOR EDUCATION,08/11/2010,CONTRACT PROGRAMME EXPENDITURE,School Standards Group,RESEARCH MACHINES PLC,4000039475,841182
Department for Education,DEPARTMENT FOR EDUCATION,08/11/2010,CONTRACT PROGRAMME EXPENDITURE,School Standards Group,RM DATA SOLUTIONS,4000039477,75733
Department for Education,DEPARTMENT FOR EDUCATION,08/11/2010,CONTRACT PROGRAMME EXPENDITURE,Children and Families Safeguarding Group,ROCHDALE METROPOLITAN BOROUGH COUNCIL,4000039480,29762
Department for Education,DEPARTMENT FOR EDUCATION,08/11/2010,CONTRACT PROGRAMME EXPENDITURE,14 - 19 Reform Qualification Standards and Reform,SPECIALIST SCHOOLS AND ACADEMIES TRUST,4000039484,1013996
Department for Education,DEPARTMENT FOR EDUCATION,08/11/2010,CONTRACT PROGRAMME EXPENDITURE,School Resources Group,TRIBAL CONSULTING LTD,4000039488,112267
Department for Education,DEPARTMENT FOR EDUCATION,09/11/2010,CONTRACT PROGRAMME EXPENDITURE,Curriculum and Pupil Well Being Curriculum Unit,C I L T,4000039522,39651
Department for Education,DEPARTMENT FOR EDUCATION,09/11/2010,CONTRACT PROGRAMME EXPENDITURE,Children and Families Supporting Delivery Group,THE LEARNING TRUST,4000039556,27028
Department for Education,DEPARTMENT FOR EDUCATION,09/11/2010,CONTRACT PROGRAMME EXPENDITURE,School Standards Group,THE MANCHESTER METROPOLITAN UNIVERSITY,4000039557,26890
Department for Education,DEPARTMENT FOR EDUCATION,11/11/2010,CONTRACT PROGRAMME EXPENDITURE,Children and Families Improving Information Sharing and Management Group,BRITISH TELECOMMUNICATIONS PLC,4000039679,157861
Department for Education,DEPARTMENT FOR EDUCATION,11/11/2010,CONTRACT PROGRAMME EXPENDITURE,School Formation and Investment Group,EDUTRUST ACADEMIES CHARITABLE TRUST,4000039693,145285
Department for Education,DEPARTMENT FOR EDUCATION,11/11/2010,CONTRACT PROGRAMME EXPENDITURE,Children and Families Safeguarding Group,ROSPA,4000039740,323509
Department for Education,DEPARTMENT FOR EDUCATION,11/11/2010,CONTRACT PROGRAMME EXPENDITURE,Workforce Group Children and Families Workforce,TRIBAL CONSULTING LTD,4000039751,92952
Department for Education,DEPARTMENT FOR EDUCATION,11/11/2010,CONTRACT PROGRAMME EXPENDITURE,School Formation and Investment Group,TRIBAL EDUCATION,4000039752,69678
Department for Education,DEPARTMENT FOR EDUCATION,12/11/2010,CONTRACT PROGRAMME EXPENDITURE,Curriculum and Pupil Well Being Curriculum Unit,LEARNING AND SKILLS NETWORK LTD,4000039808,189411
Department for Education,DEPARTMENT FOR EDUCATION,12/11/2010,CONTRACT PROGRAMME EXPENDITURE,Children and Families Early Years Extended Schools and Special Needs,SERCO LTD,4000039823,580281
Department for Education,DEPARTMENT FOR EDUCATION,15/11/2010,CONTRACT PROGRAMME EXPENDITURE,Children and Families Group,CAPITA RESOURCING LTD,4000039866,9765
Department for Education,DEPARTMENT FOR EDUCATION,15/11/2010,CONTRACT PROGRAMME EXPENDITURE,School Formation and Investment Group,PKF UK LIMITED,4000039881,54043
Department for Education,DEPARTMENT FOR EDUCATION,16/11/2010,CONTRACT PROGRAMME EXPENDITURE,Children and Families Safeguarding Group,BEAT BULLYING LTD,4000039919,38490
Department for Education,DEPARTMENT FOR EDUCATION,16/11/2010,CONTRACT PROGRAMME EXPENDITURE,School Standards Group,MCI UK LTD,4000039940,62104
Department for Education,DEPARTMENT FOR EDUCATION,16/11/2010,CONTRACT PROGRAMME EXPENDITURE,Curriculum and Pupil Well Being Improving Behaviour and Attendance Unit,NCB,4000039943,209271
Department for Education,DEPARTMENT FOR EDUCATION,16/11/2010,CONTRACT PROGRAMME EXPENDITURE,School Formation and Investment Group,SPECIALIST SCHOOLS AND ACADEMIES TRUST,4000039950,671106
Department for Education,DEPARTMENT FOR EDUCATION,16/11/2010,CONTRACT PROGRAMME EXPENDITURE,Supporting Children and Young People Group Activities and Engagement,SUBSTANCE 2005 LTD,4000039953,53361
Department for Education,DEPARTMENT FOR EDUCATION,17/11/2010,CONTRACT PROGRAMME EXPENDITURE,Workforce Group Young People Workforce,BABCOCK 4S LTD,4000040000,227813
Department for Education,DEPARTMENT FOR EDUCATION,17/11/2010,CONTRACT PROGRAMME EXPENDITURE,Children and Families Group,ONE PLUS ONE,4000040025,27974
Department for Education,DEPARTMENT FOR EDUCATION,17/11/2010,CONTRACT PROGRAMME EXPENDITURE,School Formation and Investment Group,PLACE GROUP LIMITED,4000040026,81787
Department for Education,DEPARTMENT FOR EDUCATION,18/11/2010,CONTRACT PROGRAMME EXPENDITURE,14 - 19 Reform Young People Guidance,THE ESSENTIA GROUP LTD,4000040123,407956
Department for Education,DEPARTMENT FOR EDUCATION,18/11/2010,CONTRACT PROGRAMME EXPENDITURE,Children and Families Group,THE FOSTERING NETWORK,4000040124,33100
Department for Education,DEPARTMENT FOR EDUCATION,19/11/2010,CONTRACT PROGRAMME EXPENDITURE,Children and Families Group,BEGRAND NET LTD,4000040313,81227
Department for Education,DEPARTMENT FOR EDUCATION,19/11/2010,CONTRACT PROGRAMME EXPENDITURE,Children and Families Group,CAPITA RESOURCING LTD,4000040317,10758
Department for Education,DEPARTMENT FOR EDUCATION,19/11/2010,CONTRACT PROGRAMME EXPENDITURE,Children and Families Group,PARENTLINE PLUS,4000040340,26020
Department for Education,DEPARTMENT FOR EDUCATION,19/11/2010,CONTRACT PROGRAMME EXPENDITURE,Children and Families Safeguarding Group,ROSPA,4000040344,47350
Department for Education,DEPARTMENT FOR EDUCATION,22/11/2010,CONTRACT PROGRAMME EXPENDITURE,Curriculum and Pupil Well Being Curriculum Unit,LEARNING AND SKILLS NETWORK LTD,4000040393,227843
Department for Education,DEPARTMENT FOR EDUCATION,22/11/2010,CONTRACT PROGRAMME EXPENDITURE,Children and Families Early Years Extended Schools and Special Needs,PROLOG,4000040400,140
Department for Education,DEPARTMENT FOR EDUCATION,22/11/2010,CONTRACT PROGRAMME EXPENDITURE,Curriculum and Pupil Well Being Curriculum Unit,PROLOG,4000040400,1231
Department for Education,DEPARTMENT FOR EDUCATION,22/11/2010,CONTRACT PROGRAMME EXPENDITURE,14 - 19 Reform Qualification Standards and Reform,SPECIALIST SCHOOLS & ACADEMIES TRUST,4000040407,107538
Department for Education,DEPARTMENT FOR EDUCATION,22/11/2010,CONTRACT PROGRAMME EXPENDITURE,School Formation and Investment Group,THE TREASURY SOLICITOR,4000040412,31324
Department for Education,DEPARTMENT FOR EDUCATION,22/11/2010,CONTRACT PROGRAMME EXPENDITURE,Curriculum and Pupil Well Being Curriculum Unit,TRIBAL EDUCATION LTD CONSULTING,4000040413,560548
Department for Education,DEPARTMENT FOR EDUCATION,22/11/2010,CONTRACT PROGRAMME EXPENDITURE,Children and Families Group,YORK CONSULTING LLP,4000040415,97445
Department for Education,DEPARTMENT FOR EDUCATION,23/11/2010,CONTRACT PROGRAMME EXPENDITURE,School Formation and Investment Group,EC HARRIS LLP,4000040460,64324
Department for Education,DEPARTMENT FOR EDUCATION,23/11/2010,CONTRACT PROGRAMME EXPENDITURE,School Formation and Investment Group,PLACE GROUP LIMITED,4000040465,29878
Department for Education,DEPARTMENT FOR EDUCATION,23/11/2010,CONTRACT PROGRAMME EXPENDITURE,Children and Families Safeguarding Group,ROSPA,4000040469,337412
Department for Education,DEPARTMENT FOR EDUCATION,23/11/2010,CONTRACT PROGRAMME EXPENDITURE,Curriculum and Pupil Well Being Curriculum Unit,UNIVERSITY OF SOUTHAMPTON,4000040476,301083
Department for Education,DEPARTMENT FOR EDUCATION,24/11/2010,CONTRACT PROGRAMME EXPENDITURE,Children and Families Early Years Extended Schools and Special Needs,CONTINYOU SOLUTIONS LTD,4000040536,82000
Department for Education,DEPARTMENT FOR EDUCATION,24/11/2010,CONTRACT PROGRAMME EXPENDITURE,Children and Families Early Years Extended Schools and Special Needs,COUNCIL FOR DISABLED,4000040537,55013
Department for Education,DEPARTMENT FOR EDUCATION,24/11/2010,CONTRACT PROGRAMME EXPENDITURE,School Formation and Investment Group,EC HARRIS LLP,4000040542,43463
Department for Education,DEPARTMENT FOR EDUCATION,24/11/2010,CONTRACT PROGRAMME EXPENDITURE,Children and Families Group,PARENT INNOVATION CONSORTIUM,4000040564,42674
Department for Education,DEPARTMENT FOR EDUCATION,24/11/2010,CONTRACT PROGRAMME EXPENDITURE,Children and Families Group,RELATE,4000040570,62543
Department for Education,DEPARTMENT FOR EDUCATION,24/11/2010,CONTRACT PROGRAMME EXPENDITURE,Children and Families Group,RELATE,4000040570,12500
Department for Education,DEPARTMENT FOR EDUCATION,24/11/2010,CONTRACT PROGRAMME EXPENDITURE,Children and Families Early Years Extended Schools and Special Needs,SERCO LTD,4000040575,347684
Department for Education,DEPARTMENT FOR EDUCATION,24/11/2010,CONTRACT PROGRAMME EXPENDITURE,Children and Families Early Years Extended Schools and Special Needs,SERCO LTD,4000040575,64859
Department for Education,DEPARTMENT FOR EDUCATION,24/11/2010,CONTRACT PROGRAMME EXPENDITURE,Children and Families Supporting Delivery Group,SPRINGBOARD,4000040579,562218
Department for Education,DEPARTMENT FOR EDUCATION,24/11/2010,CONTRACT PROGRAMME EXPENDITURE,Workforce Group Children and Families Workforce,TRIBAL CONSULTING LTD,4000040581,30158
Department for Education,DEPARTMENT FOR EDUCATION,24/11/2010,CONTRACT PROGRAMME EXPENDITURE,Workforce Group Children and Families Workforce,UNIVERSITY OF CENTRAL LANCASHIRE,4000040582,63767
Department for Education,DEPARTMENT FOR EDUCATION,25/11/2010,CONTRACT PROGRAMME EXPENDITURE,School Formation and Investment Group,APPLEYARDS LTD,4000040866,46548
Department for Education,DEPARTMENT FOR EDUCATION,25/11/2010,CONTRACT PROGRAMME EXPENDITURE,Workforce Group Children and Families Workforce,ISLINGTON PCT,4000040873,39144
Department for Education,DEPARTMENT FOR EDUCATION,25/11/2010,CONTRACT PROGRAMME EXPENDITURE,School Formation and Investment Group,OWEN EDUCATION LTD,4000040874,57157
Department for Education,DEPARTMENT FOR EDUCATION,25/11/2010,CONTRACT PROGRAMME EXPENDITURE,School Formation and Investment Group,THE TREASURY SOLICITOR,4000040882,29503
Department for Education,DEPARTMENT FOR EDUCATION,26/11/2010,CONTRACT PROGRAMME EXPENDITURE,Workforce Group Young People Workforce,BABCOCK 4S LTD,4000040910,165940
Department for Education,DEPARTMENT FOR EDUCATION,29/11/2010,CONTRACT PROGRAMME EXPENDITURE,Children and Families Group,PARENT INNOVATION CONSORTIUM,4000041002,113148
Department for Education,DEPARTMENT FOR EDUCATION,29/11/2010,CONTRACT PROGRAMME EXPENDITURE,Children and Families Group,PARENT INNOVATION CONSORTIUM,4000041002,4352
Department for Education,DEPARTMENT FOR EDUCATION,29/11/2010,CONTRACT PROGRAMME EXPENDITURE,14 - 19 Reform Qualification Standards and Reform,SPECIALIST SCHOOLS AND ACADEMIES TRUST,4000041011,134944
Department for Education,DEPARTMENT FOR EDUCATION,04/11/2010,CONTRACT PROGRAMME EXPENDITURE,Children and Families Group,ATTICMEDIA LTD,1000286,21367
Department for Education,DEPARTMENT FOR EDUCATION,01/11/2010,CONTRACT PROGRAMME EXPENDITURE,Children and Families Early Years Extended Schools and Special Needs,COI CENTRAL OFFICE OF INFORMATION,4000038746,17652
Department for Education,DEPARTMENT FOR EDUCATION,01/11/2010,CONTRACT PROGRAMME EXPENDITURE,Curriculum and Pupil Well Being Curriculum Unit,DESIGN & TECHNOLOGY ASSOCIATION,4000038751,107125
Department for Education,DEPARTMENT FOR EDUCATION,04/11/2010,CONTRACT PROGRAMME EXPENDITURE,Workforce Group Young People Workforce,CAPITA BUSINESS SERVICES LTD,4000039268,655962
Department for Education,DEPARTMENT FOR EDUCATION,04/11/2010,CONTRACT PROGRAMME EXPENDITURE,Workforce Group Young People Workforce,CAPITA BUSINESS SERVICES LTD,4000039269,151691
Department for Education,DEPARTMENT FOR EDUCATION,04/11/2010,CONTRACT PROGRAMME EXPENDITURE,Workforce Group Young People Workforce,CAPITA BUSINESS SERVICES LTD,4000039269,2917
Department for Education,DEPARTMENT FOR EDUCATION,04/11/2010,CONTRACT PROGRAMME EXPENDITURE,Workforce Group Young People Workforce,CAPITA BUSINESS SERVICES LTD,4000039269,150
Department for Education,DEPARTMENT FOR EDUCATION,09/11/2010,CONTRACT PROGRAMME EXPENDITURE,Supporting Children and Young People Group Activities and Engagement,YHA ENGLAND & WALES LTD,4000039562,450000
Department for Education,DEPARTMENT FOR EDUCATION,11/11/2010,CONTRACT PROGRAMME EXPENDITURE,Children and Families Child Well Being Group,SKILLS ACTIVE,4000039744,25350
Department for Education,DEPARTMENT FOR EDUCATION,22/11/2010,CONTRACT PROGRAMME EXPENDITURE,Children and Families Early Years Extended Schools and Special Needs,NPS PROPERTY CONSULTANTS LTD,4000040397,28256
Department for Education,DEPARTMENT FOR EDUCATION,22/11/2010,CONTRACT PROGRAMME EXPENDITURE,Children and Families Safeguarding Group,PROLOG,4000040400,380
Department for Education,DEPARTMENT FOR EDUCATION,22/11/2010,CONTRACT PROGRAMME EXPENDITURE,Children and Families Safeguarding Group,PROLOG,4000040400,823
Department for Education,DEPARTMENT FOR EDUCATION,22/11/2010,CONTRACT PROGRAMME EXPENDITURE,Children and Families Early Years Extended Schools and Special Needs,PROLOG,4000040400,57
Department for Education,DEPARTMENT FOR EDUCATION,24/11/2010,CONTRACT PROGRAMME EXPENDITURE,Children and Families Group,ATTICMEDIA LTD,4000040524,43337
Department for Education,DEPARTMENT FOR EDUCATION,29/11/2010,CONTRACT PROGRAMME EXPENDITURE,Curriculum and Pupil Well Being Curriculum Unit,DESIGN & TECHNOLOGY ASSOCIATION,4000040981,107125
Department for Education,DEPARTMENT FOR EDUCATION,02/11/2010,CURRENT GRANTS,Curriculum and Pupil Well Being Unit,DURHAM COUNTY COUNCIL,4000038844,490842
Department for Education,DEPARTMENT FOR EDUCATION,04/11/2010,CURRENT GRANTS,Curriculum and Pupil Well Being Curriculum Unit,BRIGHTON & HOVE CITY COUNCIL,4000039265,332000
Department for Education,DEPARTMENT FOR EDUCATION,04/11/2010,CURRENT GRANTS,Curriculum and Pupil Well Being Curriculum Unit,LINCOLNSHIRE COUNTY COUNCIL,4000039279,192639
Department for Education,DEPARTMENT FOR EDUCATION,08/11/2010,CURRENT GRANTS,Curriculum and Pupil Well Being Improving Behaviour and Attendance Unit,DARLINGTON BOROUGH COUNCIL,4000039447,58585
Department for Education,DEPARTMENT FOR EDUCATION,10/11/2010,CURRENT GRANTS,Curriculum and Pupil Well Being Improving Behaviour and Attendance Unit,COVENTRY CITY COUNCIL,4000039618,97000
Department for Education,DEPARTMENT FOR EDUCATION,10/11/2010,CURRENT GRANTS,Curriculum and Pupil Well Being Improving Behaviour and Attendance Unit,WAKEFIELD DISTRICT COMMUNITY SCHOOL,4000039645,99800
Department for Education,DEPARTMENT FOR EDUCATION,15/11/2010,CURRENT GRANTS,Curriculum and Pupil Well Being Improving Behaviour and Attendance Unit,LONDON COUNCILS,4000039872,31230
Department for Education,DEPARTMENT FOR EDUCATION,19/11/2010,CURRENT GRANTS,Curriculum and Pupil Well Being Improving Behaviour and Attendance Unit,KNOWSLEY MBC,4000040330,55455
Department for Education,DEPARTMENT FOR EDUCATION,01/11/2010,CURRENT GRANTS,Children and Families Child Well Being Group,LUTON BOROUGH COUNCIL,703107,78750
Department for Education,DEPARTMENT FOR EDUCATION,10/11/2010,CURRENT GRANTS,14 - 19 Reform Participation and Attainment,LONDON COUNCILS,1000291,57633
Department for Education,DEPARTMENT FOR EDUCATION,01/11/2010,CURRENT GRANTS,Children and Families Group,CHESHIRE EAST COUNCIL,4000038744,27750
Department for Education,DEPARTMENT FOR EDUCATION,01/11/2010,CURRENT GRANTS,Children and Families Group,CHESHIRE WEST & CHESTER COUNCIL,4000038745,40706
Department for Education,DEPARTMENT FOR EDUCATION,01/11/2010,CURRENT GRANTS,14 - 19 Reform Participation and Attainment,CONNEXIONS KENT & MEDWAY,4000038747,113225
Department for Education,DEPARTMENT FOR EDUCATION,01/11/2010,CURRENT GRANTS,Children and Families Group,DORSET COUNTY COUNCIL,4000038752,29090
Department for Education,DEPARTMENT FOR EDUCATION,01/11/2010,CURRENT GRANTS,14 - 19 Reform Participation and Attainment,LANCASHIRE COUNTY COUNCIL,4000038759,227593
Department for Education,DEPARTMENT FOR EDUCATION,01/11/2010,CURRENT GRANTS,Children and Families Group,LONDON BOROUGH OF MERTON,4000038760,25750
Department for Education,DEPARTMENT FOR EDUCATION,01/11/2010,CURRENT GRANTS,Children and Families Group,NORTH TYNESIDE,4000038768,37500
Department for Education,DEPARTMENT FOR EDUCATION,01/11/2010,CURRENT GRANTS,Children and Families Group,WARWICKSHIRE COUNTY COUNCIL,4000038783,43750
Department for Education,DEPARTMENT FOR EDUCATION,02/11/2010,CURRENT GRANTS,Children and Families Child Well Being Group,BARNSLEY MBC,4000038810,74846
Department for Education,DEPARTMENT FOR EDUCATION,02/11/2010,CURRENT GRANTS,Children and Families Child Well Being Group,BATH & NORTH EAST SOMERSET COUNCIL,4000038811,111250
Department for Education,DEPARTMENT FOR EDUCATION,02/11/2010,CURRENT GRANTS,Children and Families Child Well Being Group,BEDFORD BOROUGH COUNCIL,4000038812,50872
Department for Education,DEPARTMENT FOR EDUCATION,02/11/2010,CURRENT GRANTS,Children and Families Child Well Being Group,BIRMINGHAM CITY COUNCIL,4000038813,111250
Department for Education,DEPARTMENT FOR EDUCATION,02/11/2010,CURRENT GRANTS,Children and Families Child Well Being Group,BLACKBURN WITH DARWEN BOROUGH COUNCIL,4000038814,77500
Department for Education,DEPARTMENT FOR EDUCATION,02/11/2010,CURRENT GRANTS,Children and Families Child Well Being Group,BLACKPOOL BOROUGH COUNCIL,4000038815,78750
Department for Education,DEPARTMENT FOR EDUCATION,02/11/2010,CURRENT GRANTS,Children and Families Child Well Being Group,BOLTON MBC,4000038816,111250
Department for Education,DEPARTMENT FOR EDUCATION,02/11/2010,CURRENT GRANTS,Children and Families Child Well Being Group,BOURNEMOUTH BOROUGH COUNCIL,4000038818,111250
Department for Education,DEPARTMENT FOR EDUCATION,02/11/2010,CURRENT GRANTS,Children and Families Child Well Being Group,BRACKNELL FOREST BOROUGH COUNCIL,4000038819,108691
Department for Education,DEPARTMENT FOR EDUCATION,02/11/2010,CURRENT GRANTS,Children and Families Child Well Being Group,BRIGHTON & HOVE CITY COUNCIL,4000038820,78500
Department for Education,DEPARTMENT FOR EDUCATION,02/11/2010,CURRENT GRANTS,Children and Families Child Well Being Group,BRISTOL CITY COUNCIL,4000038821,111250
Department for Education,DEPARTMENT FOR EDUCATION,02/11/2010,CURRENT GRANTS,Children and Families Child Well Being Group,BUCKINGHAMSHIRE COUNTY COUNCIL,4000038822,111250
Department for Education,DEPARTMENT FOR EDUCATION,02/11/2010,CURRENT GRANTS,Children and Families Child Well Being Group,BURY MBC,4000038823,84700
Department for Education,DEPARTMENT FOR EDUCATION,02/11/2010,CURRENT GRANTS,Children and Families Child Well Being Group,CALDERDALE MBC,4000038825,111250
Department for Education,DEPARTMENT FOR EDUCATION,02/11/2010,CURRENT GRANTS,Children and Families Child Well Being Group,CAMBRIDGESHIRE COUNTY COUNCIL,4000038826,111250
Department for Education,DEPARTMENT FOR EDUCATION,02/11/2010,CURRENT GRANTS,Children and Families Child Well Being Group,CENTRAL BEDFORDSHIRE COUNCIL,4000038829,75000
Department for Education,DEPARTMENT FOR EDUCATION,02/11/2010,CURRENT GRANTS,Children and Families Child Well Being Group,CHESHIRE EAST COUNCIL,4000038830,111250
Department for Education,DEPARTMENT FOR EDUCATION,02/11/2010,CURRENT GRANTS,Children and Families Child Well Being Group,CITY OF BRADFORD METROPOLITAN DISTRICT COUNCIL,4000038832,111250
Department for Education,DEPARTMENT FOR EDUCATION,02/11/2010,CURRENT GRANTS,Children and Families Child Well Being Group,CITY OF WESTMINSTER,4000038833,111250
Department for Education,DEPARTMENT FOR EDUCATION,02/11/2010,CURRENT GRANTS,Children and Families Child Well Being Group,CORNWALL COUNCIL,4000038834,78500
Department for Education,DEPARTMENT FOR EDUCATION,02/11/2010,CURRENT GRANTS,Children and Families Child Well Being Group,COUNCIL OF THE ISLES OF SCILLY,4000038835,50000
Department for Education,DEPARTMENT FOR EDUCATION,02/11/2010,CURRENT GRANTS,Children and Families Child Well Being Group,COVENTRY CITY COUNCIL,4000038836,92832
Department for Education,DEPARTMENT FOR EDUCATION,02/11/2010,CURRENT GRANTS,Children and Families Child Well Being Group,CUMBRIA COUNTY COUNCIL,4000038837,111250
Department for Education,DEPARTMENT FOR EDUCATION,02/11/2010,CURRENT GRANTS,Children and Families Child Well Being Group,DARLINGTON BOROUGH COUNCIL,4000038838,111250
Department for Education,DEPARTMENT FOR EDUCATION,02/11/2010,CURRENT GRANTS,Children and Families Child Well Being Group,DERBY CITY COUNCIL,4000038839,111250
Department for Education,DEPARTMENT FOR EDUCATION,02/11/2010,CURRENT GRANTS,Children and Families Child Well Being Group,DERBYSHIRE COUNTY COUNCIL,4000038840,111250
Department for Education,DEPARTMENT FOR EDUCATION,02/11/2010,CURRENT GRANTS,Children and Families Child Well Being Group,DEVON COUNTY COUNCIL,4000038841,75000
Department for Education,DEPARTMENT FOR EDUCATION,02/11/2010,CURRENT GRANTS,Children and Families Child Well Being Group,DORSET COUNTY COUNCIL,4000038842,75000
Department for Education,DEPARTMENT FOR EDUCATION,02/11/2010,CURRENT GRANTS,Children and Families Child Well Being Group,DUDLEY MBC,4000038843,111250
Department for Education,DEPARTMENT FOR EDUCATION,02/11/2010,CURRENT GRANTS,Children and Families Child Well Being Group,DURHAM COUNTY COUNCIL,4000038844,111240
Department for Education,DEPARTMENT FOR EDUCATION,02/11/2010,CURRENT GRANTS,Children and Families Child Well Being Group,EAST RIDING OF YORKSHIRE COUNCIL,4000038845,63645
Department for Education,DEPARTMENT FOR EDUCATION,02/11/2010,CURRENT GRANTS,Children and Families Child Well Being Group,EAST SUSSEX COUNTY COUNCIL,4000038846,111250
Department for Education,DEPARTMENT FOR EDUCATION,02/11/2010,CURRENT GRANTS,Children and Families Child Well Being Group,ESSEX COUNTY COUNCIL,4000038853,111250
Department for Education,DEPARTMENT FOR EDUCATION,02/11/2010,CURRENT GRANTS,Children and Families Child Well Being Group,GATESHEAD MBC,4000038856,78750
Department for Education,DEPARTMENT FOR EDUCATION,02/11/2010,CURRENT GRANTS,Children and Families Child Well Being Group,GLOUCESTERSHIRE COUNTY COUNCIL,4000038858,77500
Department for Education,DEPARTMENT FOR EDUCATION,02/11/2010,CURRENT GRANTS,Children and Families Child Well Being Group,HALTON BOROUGH COUNCIL,4000038859,75000
Department for Education,DEPARTMENT FOR EDUCATION,02/11/2010,CURRENT GRANTS,Children and Families Child Well Being Group,HAMPSHIRE COUNTY COUNCIL,4000038860,75000
Department for Education,DEPARTMENT FOR EDUCATION,02/11/2010,CURRENT GRANTS,Children and Families Child Well Being Group,HARINGEY COUNCIL,4000038861,75000
Department for Education,DEPARTMENT FOR EDUCATION,02/11/2010,CURRENT GRANTS,Children and Families Child Well Being Group,HARTLEPOOL BOROUGH COUNCIL,4000038862,111250
Department for Education,DEPARTMENT FOR EDUCATION,02/11/2010,CURRENT GRANTS,Children and Families Child Well Being Group,HEREFORDSHIRE COUNCIL,4000038863,75000
Department for Education,DEPARTMENT FOR EDUCATION,02/11/2010,CURRENT GRANTS,Children and Families Child Well Being Group,HERTFORDSHIRE,4000038864,74598
Department for Education,DEPARTMENT FOR EDUCATION,02/11/2010,CURRENT GRANTS,Children and Families Child Well Being Group,ISLE OF WIGHT COUNCIL,4000038865,111250
Department for Education,DEPARTMENT FOR EDUCATION,02/11/2010,CURRENT GRANTS,Children and Families Child Well Being Group,KENT COUNTY COUNCIL,4000038867,75064
Department for Education,DEPARTMENT FOR EDUCATION,02/11/2010,CURRENT GRANTS,Children and Families Child Well Being Group,KINGSTON UPON HULL COUNCIL,4000038868,75000
Department for Education,DEPARTMENT FOR EDUCATION,02/11/2010,CURRENT GRANTS,Children and Families Child Well Being Group,KIRKLEES COUNCIL,4000038869,111250
Department for Education,DEPARTMENT FOR EDUCATION,02/11/2010,CURRENT GRANTS,Children and Families Child Well Being Group,KNOWSLEY MBC,4000038870,111250
Department for Education,DEPARTMENT FOR EDUCATION,02/11/2010,CURRENT GRANTS,Children and Families Child Well Being Group,LANCASHIRE COUNTY COUNCIL,4000038871,75000
Department for Education,DEPARTMENT FOR EDUCATION,02/11/2010,CURRENT GRANTS,Children and Families Child Well Being Group,LEEDS CITY COUNCIL,4000038872,97050
Department for Education,DEPARTMENT FOR EDUCATION,02/11/2010,CURRENT GRANTS,Children and Families Child Well Being Group,LEICESTER CITY COUNCIL,4000038873,82500
Department for Education,DEPARTMENT FOR EDUCATION,02/11/2010,CURRENT GRANTS,Children and Families Child Well Being Group,LEICESTERSHIRE COUNTY COUNCIL,4000038874,75000
Department for Education,DEPARTMENT FOR EDUCATION,02/11/2010,CURRENT GRANTS,Children and Families Child Well Being Group,LINCOLNSHIRE COUNTY COUNCIL,4000038876,78750
Department for Education,DEPARTMENT FOR EDUCATION,02/11/2010,CURRENT GRANTS,Children and Families Child Well Being Group,LIVERPOOL CITY COUNCIL,4000038877,75000
Department for Education,DEPARTMENT FOR EDUCATION,02/11/2010,CURRENT GRANTS,Children and Families Child Well Being Group,LONDON BOROUGH OF BARKING & DAGENHAM COUNCIL,4000038878,111250
Department for Education,DEPARTMENT FOR EDUCATION,02/11/2010,CURRENT GRANTS,Children and Families Child Well Being Group,LONDON BOROUGH OF BARNET COUNCIL,4000038879,75000
Department for Education,DEPARTMENT FOR EDUCATION,02/11/2010,CURRENT GRANTS,Children and Families Child Well Being Group,LONDON BOROUGH OF BEXLEY COUNCIL,4000038880,75000
Department for Education,DEPARTMENT FOR EDUCATION,02/11/2010,CURRENT GRANTS,Children and Families Child Well Being Group,LONDON BOROUGH OF BRENT,4000038881,75000
Department for Education,DEPARTMENT FOR EDUCATION,02/11/2010,CURRENT GRANTS,Children and Families Child Well Being Group,LONDON BOROUGH OF BROMLEY COUNCIL,4000038882,75000
Department for Education,DEPARTMENT FOR EDUCATION,02/11/2010,CURRENT GRANTS,Children and Families Child Well Being Group,LONDON BOROUGH OF CAMDEN,4000038883,75000
Department for Education,DEPARTMENT FOR EDUCATION,02/11/2010,CURRENT GRANTS,Children and Families Child Well Being Group,LONDON BOROUGH OF CROYDON COUNCIL,4000038884,111250
Department for Education,DEPARTMENT FOR EDUCATION,02/11/2010,CURRENT GRANTS,Children and Families Child Well Being Group,LONDON BOROUGH OF EALING COUNCIL,4000038885,75000
Department for Education,DEPARTMENT FOR EDUCATION,02/11/2010,CURRENT GRANTS,Children and Families Child Well Being Group,LONDON BOROUGH OF ENFIELD COUNCIL,4000038886,111250
Department for Education,DEPARTMENT FOR EDUCATION,02/11/2010,CURRENT GRANTS,Children and Families Child Well Being Group,LONDON BOROUGH OF GREENWICH,4000038887,75000
Department for Education,DEPARTMENT FOR EDUCATION,02/11/2010,CURRENT GRANTS,Children and Families Child Well Being Group,LONDON BOROUGH OF HAMMERSMITH & FULHAM COUNCIL,4000038888,111250
Department for Education,DEPARTMENT FOR EDUCATION,02/11/2010,CURRENT GRANTS,Children and Families Child Well Being Group,LONDON BOROUGH OF HARROW COUNCIL,4000038889,111250
Department for Education,DEPARTMENT FOR EDUCATION,02/11/2010,CURRENT GRANTS,Children and Families Child Well Being Group,LONDON BOROUGH OF HAVERING COUNCIL,4000038890,111250
Department for Education,DEPARTMENT FOR EDUCATION,02/11/2010,CURRENT GRANTS,Children and Families Child Well Being Group,LONDON BOROUGH OF HILLINGDON  COUNCIL,4000038891,111250
Department for Education,DEPARTMENT FOR EDUCATION,02/11/2010,CURRENT GRANTS,Children and Families Child Well Being Group,LONDON BOROUGH OF HOUNSLOW COUNCIL,4000038892,111250
Department for Education,DEPARTMENT FOR EDUCATION,02/11/2010,CURRENT GRANTS,Children and Families Child Well Being Group,LONDON BOROUGH OF ISLINGTON COUNCIL,4000038893,75000
Department for Education,DEPARTMENT FOR EDUCATION,02/11/2010,CURRENT GRANTS,Children and Families Child Well Being Group,LONDON BOROUGH OF LAMBETH,4000038894,111126
Department for Education,DEPARTMENT FOR EDUCATION,02/11/2010,CURRENT GRANTS,Children and Families Child Well Being Group,LONDON BOROUGH OF LEWISHAM,4000038895,108850
Department for Education,DEPARTMENT FOR EDUCATION,02/11/2010,CURRENT GRANTS,Children and Families Child Well Being Group,LONDON BOROUGH OF MERTON,4000038896,78750
Department for Education,DEPARTMENT FOR EDUCATION,02/11/2010,CURRENT GRANTS,Children and Families Child Well Being Group,LONDON BOROUGH OF NEWHAM,4000038897,111250
Department for Education,DEPARTMENT FOR EDUCATION,02/11/2010,CURRENT GRANTS,Children and Families Child Well Being Group,LONDON BOROUGH OF REDBRIDGE,4000038898,111250
Department for Education,DEPARTMENT FOR EDUCATION,02/11/2010,CURRENT GRANTS,Children and Families Child Well Being Group,LONDON BOROUGH OF RICHMOND UPON THAMES,4000038899,75000
Department for Education,DEPARTMENT FOR EDUCATION,02/11/2010,CURRENT GRANTS,Children and Families Child Well Being Group,LONDON BOROUGH OF SOUTHWARK COUNCIL,4000038900,78000
Department for Education,DEPARTMENT FOR EDUCATION,02/11/2010,CURRENT GRANTS,Children and Families Child Well Being Group,LONDON BOROUGH OF SUTTON,4000038901,111250
Department for Education,DEPARTMENT FOR EDUCATION,02/11/2010,CURRENT GRANTS,Children and Families Child Well Being Group,LONDON BOROUGH OF TOWER HAMLETS COUNCIL,4000038902,111250
Department for Education,DEPARTMENT FOR EDUCATION,02/11/2010,CURRENT GRANTS,Children and Families Child Well Being Group,LONDON BOROUGH OF WALTHAM FOREST COUNCIL,4000038903,74501
Department for Education,DEPARTMENT FOR EDUCATION,02/11/2010,CURRENT GRANTS,Children and Families Child Well Being Group,LONDON BOROUGH OF WANDSWORTH COUNCIL,4000038904,73756
Department for Education,DEPARTMENT FOR EDUCATION,02/11/2010,CURRENT GRANTS,Children and Families Child Well Being Group,MEDWAY COUNCIL,4000038905,75000
Department for Education,DEPARTMENT FOR EDUCATION,02/11/2010,CURRENT GRANTS,Children and Families Child Well Being Group,METROPOLITAN BOROUGH OF WIRRAL,4000038907,75000
Department for Education,DEPARTMENT FOR EDUCATION,02/11/2010,CURRENT GRANTS,Children and Families Child Well Being Group,MIDDLESBROUGH COUNCIL,4000038909,111250
Department for Education,DEPARTMENT FOR EDUCATION,02/11/2010,CURRENT GRANTS,Children and Families Child Well Being Group,MILTON KEYNES COUNCIL,4000038910,111250
Department for Education,DEPARTMENT FOR EDUCATION,02/11/2010,CURRENT GRANTS,Children and Families Child Well Being Group,NORFOLK COUNTY COUNCIL,4000038913,85923
Department for Education,DEPARTMENT FOR EDUCATION,02/11/2010,CURRENT GRANTS,Children and Families Child Well Being Group,NORTH EAST LINCOLNSHIRE COUNCIL,4000038914,80000
Department for Education,DEPARTMENT FOR EDUCATION,02/11/2010,CURRENT GRANTS,Children and Families Child Well Being Group,NORTH LINCOLNSHIRE COUNCIL,4000038915,111250
Department for Education,DEPARTMENT FOR EDUCATION,02/11/2010,CURRENT GRANTS,Children and Families Child Well Being Group,NORTH SOMERSET COUNCIL,4000038916,111250
Department for Education,DEPARTMENT FOR EDUCATION,02/11/2010,CURRENT GRANTS,Children and Families Child Well Being Group,NORTH TYNESIDE,4000038917,111250
Department for Education,DEPARTMENT FOR EDUCATION,02/11/2010,CURRENT GRANTS,Children and Families Child Well Being Group,NORTH YORKSHIRE COUNTY COUNCIL,4000038918,75000
Department for Education,DEPARTMENT FOR EDUCATION,02/11/2010,CURRENT GRANTS,Children and Families Child Well Being Group,NORTHAMPTONSHIRE COUNTY COUNCIL,4000038919,74978
Department for Education,DEPARTMENT FOR EDUCATION,02/11/2010,CURRENT GRANTS,Children and Families Child Well Being Group,NORTHUMBERLAND COUNTY COUNCIL,4000038920,78750
Department for Education,DEPARTMENT FOR EDUCATION,02/11/2010,CURRENT GRANTS,Children and Families Child Well Being Group,NOTTINGHAM CITY COUNCIL,4000038921,75000
Department for Education,DEPARTMENT FOR EDUCATION,02/11/2010,CURRENT GRANTS,Children and Families Child Well Being Group,NOTTINGHAMSHIRE COUNTY COUNCIL,4000038922,111250
Department for Education,DEPARTMENT FOR EDUCATION,02/11/2010,CURRENT GRANTS,Children and Families Child Well Being Group,OLDHAM MBC,4000038924,111250
Department for Education,DEPARTMENT FOR EDUCATION,02/11/2010,CURRENT GRANTS,Children and Families Child Well Being Group,OXFORDSHIRE COUNTY COUNCIL,4000038926,74687
Department for Education,DEPARTMENT FOR EDUCATION,02/11/2010,CURRENT GRANTS,Children and Families Child Well Being Group,PETERBOROUGH CITY COUNCIL,4000038927,111250
Department for Education,DEPARTMENT FOR EDUCATION,02/11/2010,CURRENT GRANTS,Children and Families Child Well Being Group,PLYMOUTH CITY COUNCIL,4000038931,75000
Department for Education,DEPARTMENT FOR EDUCATION,02/11/2010,CURRENT GRANTS,Children and Families Child Well Being Group,POOLE BOROUGH COUNCIL,4000038932,75000
Department for Education,DEPARTMENT FOR EDUCATION,02/11/2010,CURRENT GRANTS,Children and Families Child Well Being Group,PORTSMOUTH CITY COUNCIL,4000038933,111250
Department for Education,DEPARTMENT FOR EDUCATION,02/11/2010,CURRENT GRANTS,Children and Families Child Well Being Group,READING BOROUGH COUNCIL,4000038934,78000
Department for Education,DEPARTMENT FOR EDUCATION,02/11/2010,CURRENT GRANTS,Children and Families Child Well Being Group,REDCAR & CLEVELAND BOROUGH COUNCIL,4000038935,111250
Department for Education,DEPARTMENT FOR EDUCATION,02/11/2010,CURRENT GRANTS,Children and Families Child Well Being Group,ROCHDALE MBC,4000038937,111250
Department for Education,DEPARTMENT FOR EDUCATION,02/11/2010,CURRENT GRANTS,Children and Families Child Well Being Group,ROTHERHAM MBC,4000038938,111250
Department for Education,DEPARTMENT FOR EDUCATION,02/11/2010,CURRENT GRANTS,Children and Families Child Well Being Group,ROYAL BOROUGH OF KINGSTON UPON THAMES,4000038939,111250
Department for Education,DEPARTMENT FOR EDUCATION,02/11/2010,CURRENT GRANTS,Children and Families Child Well Being Group,RUTLAND COUNTY COUNCIL,4000038942,50000
Department for Education,DEPARTMENT FOR EDUCATION,02/11/2010,CURRENT GRANTS,Children and Families Child Well Being Group,SALFORD CITY COUNCIL,4000038943,75000
Department for Education,DEPARTMENT FOR EDUCATION,02/11/2010,CURRENT GRANTS,Children and Families Child Well Being Group,SANDWELL MBC,4000038944,111250
Department for Education,DEPARTMENT FOR EDUCATION,02/11/2010,CURRENT GRANTS,Children and Families Child Well Being Group,SEFTON COUNCIL,4000038946,111250
Department for Education,DEPARTMENT FOR EDUCATION,02/11/2010,CURRENT GRANTS,Children and Families Child Well Being Group,SHEFFIELD CITY COUNCIL,4000038947,37673
Department for Education,DEPARTMENT FOR EDUCATION,02/11/2010,CURRENT GRANTS,Children and Families Child Well Being Group,SHROPSHIRE COUNCIL,4000038948,78750
Department for Education,DEPARTMENT FOR EDUCATION,02/11/2010,CURRENT GRANTS,Children and Families Child Well Being Group,SLOUGH BOROUGH COUNCIL,4000038949,69270
Department for Education,DEPARTMENT FOR EDUCATION,02/11/2010,CURRENT GRANTS,Children and Families Child Well Being Group,SOLIHULL MBC,4000038950,111250
Department for Education,DEPARTMENT FOR EDUCATION,02/11/2010,CURRENT GRANTS,Children and Families Child Well Being Group,SOMERSET COUNTY COUNCIL,4000038951,111250
Department for Education,DEPARTMENT FOR EDUCATION,02/11/2010,CURRENT GRANTS,Children and Families Child Well Being Group,SOUTH GLOUCEST,4000038952,111250
Department for Education,DEPARTMENT FOR EDUCATION,02/11/2010,CURRENT GRANTS,Children and Families Child Well Being Group,SOUTH TYNESIDE,4000038953,75000
Department for Education,DEPARTMENT FOR EDUCATION,02/11/2010,CURRENT GRANTS,Children and Families Child Well Being Group,SOUTHAMPTON CITY COUNCIL,4000038954,111250
Department for Education,DEPARTMENT FOR EDUCATION,02/11/2010,CURRENT GRANTS,Children and Families Child Well Being Group,SOUTHEND ON SEA BOROUGH COUNCIL,4000038955,111250
Department for Education,DEPARTMENT FOR EDUCATION,02/11/2010,CURRENT GRANTS,Children and Families Child Well Being Group,ST HELENS MBC,4000038956,111250
Department for Education,DEPARTMENT FOR EDUCATION,02/11/2010,CURRENT GRANTS,Children and Families Child Well Being Group,STAFFORDSHIRE COUNCIL,4000038957,111250
Department for Education,DEPARTMENT FOR EDUCATION,02/11/2010,CURRENT GRANTS,Children and Families Child Well Being Group,STOCKPORT MBC,4000038958,65988
Department for Education,DEPARTMENT FOR EDUCATION,02/11/2010,CURRENT GRANTS,Children and Families Child Well Being Group,STOCKTON ON TEES,4000038959,75000
Department for Education,DEPARTMENT FOR EDUCATION,02/11/2010,CURRENT GRANTS,Children and Families Child Well Being Group,STOKE ON TRENT CITY COUNCIL,4000038960,111250
Department for Education,DEPARTMENT FOR EDUCATION,02/11/2010,CURRENT GRANTS,Children and Families Child Well Being Group,SUFFOLK COUNTY COUNCIL,4000038961,68000
Department for Education,DEPARTMENT FOR EDUCATION,02/11/2010,CURRENT GRANTS,Children and Families Child Well Being Group,SUNDERLAND CITY COUNCIL,4000038962,44048
Department for Education,DEPARTMENT FOR EDUCATION,02/11/2010,CURRENT GRANTS,Children and Families Child Well Being Group,SURREY COUNTY COUNCIL,4000038963,111250
Department for Education,DEPARTMENT FOR EDUCATION,02/11/2010,CURRENT GRANTS,Children and Families Child Well Being Group,SWINDON BOROUGH COUNCIL,4000038964,78750
Department for Education,DEPARTMENT FOR EDUCATION,02/11/2010,CURRENT GRANTS,Children and Families Child Well Being Group,TAMESIDE MBC,4000038965,111250
Department for Education,DEPARTMENT FOR EDUCATION,02/11/2010,CURRENT GRANTS,Children and Families Child Well Being Group,TELFORD & WREKIN COUNCIL,4000038966,75000
Department for Education,DEPARTMENT FOR EDUCATION,02/11/2010,CURRENT GRANTS,Children and Families Child Well Being Group,THE LONDON BOROUGH OF HACKNEY,4000038970,78500
Department for Education,DEPARTMENT FOR EDUCATION,02/11/2010,CURRENT GRANTS,Children and Families Child Well Being Group,THE ROYAL BOROUGH OF KENSINGTON & CHELSEA COUNCIL,4000038971,111250
Department for Education,DEPARTMENT FOR EDUCATION,02/11/2010,CURRENT GRANTS,Children and Families Child Well Being Group,THE ROYAL BOROUGH OF WINDSOR & MAIDENHEAD,4000038972,75000
Department for Education,DEPARTMENT FOR EDUCATION,02/11/2010,CURRENT GRANTS,Children and Families Child Well Being Group,THURROCK COUNCIL,4000038974,72696
Department for Education,DEPARTMENT FOR EDUCATION,02/11/2010,CURRENT GRANTS,Children and Families Child Well Being Group,TORBAY COUNCIL,4000038976,75000
Department for Education,DEPARTMENT FOR EDUCATION,02/11/2010,CURRENT GRANTS,Children and Families Child Well Being Group,TRAFFORD MB COUNCIL,4000038977,74579
Department for Education,DEPARTMENT FOR EDUCATION,02/11/2010,CURRENT GRANTS,Children and Families Child Well Being Group,UNIVERSITY OF NEWCASTLE UPON TYNE,4000038979,75000
Department for Education,DEPARTMENT FOR EDUCATION,02/11/2010,CURRENT GRANTS,Children and Families Child Well Being Group,WAKEFIELD MDC,4000038984,111250
Department for Education,DEPARTMENT FOR EDUCATION,02/11/2010,CURRENT GRANTS,Children and Families Child Well Being Group,WALSALL MBC,4000038985,75000
Department for Education,DEPARTMENT FOR EDUCATION,02/11/2010,CURRENT GRANTS,Children and Families Child Well Being Group,WARRINGTON BOROUGH COUNCIL,4000038986,111250
Department for Education,DEPARTMENT FOR EDUCATION,02/11/2010,CURRENT GRANTS,Children and Families Child Well Being Group,WARWICKSHIRE COUNTY COUNCIL,4000038987,75000
Department for Education,DEPARTMENT FOR EDUCATION,02/11/2010,CURRENT GRANTS,Children and Families Child Well Being Group,WEST BERKSHIRE COUNCIL,4000038988,71608
Department for Education,DEPARTMENT FOR EDUCATION,02/11/2010,CURRENT GRANTS,Children and Families Child Well Being Group,WEST SUSSEX COUNTY COUNCIL,4000038989,107250
Department for Education,DEPARTMENT FOR EDUCATION,02/11/2010,CURRENT GRANTS,Children and Families Child Well Being Group,WIGAN MBC,4000038990,75000
Department for Education,DEPARTMENT FOR EDUCATION,02/11/2010,CURRENT GRANTS,Children and Families Child Well Being Group,WILTSHIRE COUNCIL,4000038991,75000
Department for Education,DEPARTMENT FOR EDUCATION,02/11/2010,CURRENT GRANTS,Children and Families Child Well Being Group,WOKINGHAM BOROUGH COUNCIL,4000038992,111250
Department for Education,DEPARTMENT FOR EDUCATION,02/11/2010,CURRENT GRANTS,Children and Families Child Well Being Group,WOLVERHAMPTON CITY COUNCIL,4000038993,77500
Department for Education,DEPARTMENT FOR EDUCATION,02/11/2010,CURRENT GRANTS,Children and Families Child Well Being Group,WORCESTERSHIRE COUNTY COUNCIL,4000038994,75000
Department for Education,DEPARTMENT FOR EDUCATION,02/11/2010,CURRENT GRANTS,Children and Families Child Well Being Group,YORK CITY COUNCIL,4000038996,111250
Department for Education,DEPARTMENT FOR EDUCATION,05/11/2010,CURRENT GRANTS,Children and Families Child Well Being Group,COVENTRY & WARWICKSHIRE FAMILY MEDIATION LTD,4000039346,78124
Department for Education,DEPARTMENT FOR EDUCATION,05/11/2010,CURRENT GRANTS,Children and Families Child Well Being Group,ESSEX COUNTY COUNCIL,4000039353,87500
Department for Education,DEPARTMENT FOR EDUCATION,05/11/2010,CURRENT GRANTS,Children and Families Child Well Being Group,FAMILIES TALKING,4000039355,86996
Department for Education,DEPARTMENT FOR EDUCATION,05/11/2010,CURRENT GRANTS,Children and Families Child Well Being Group,FAMILY MEDIATION NORTH WILTSHIRE,4000039356,73027
Department for Education,DEPARTMENT FOR EDUCATION,05/11/2010,CURRENT GRANTS,Children and Families Child Well Being Group,HAVERSTOCK HEALTHCARE LTD,4000039360,76847
Department for Education,DEPARTMENT FOR EDUCATION,05/11/2010,CURRENT GRANTS,Children and Families Child Well Being Group,LINCOLNSHIRE COUNTY COUNCIL,4000039370,79538
Department for Education,DEPARTMENT FOR EDUCATION,05/11/2010,CURRENT GRANTS,Children and Families Child Well Being Group,LONDON BOROUGH OF MERTON,4000039372,81710
Department for Education,DEPARTMENT FOR EDUCATION,05/11/2010,CURRENT GRANTS,Children and Families Child Well Being Group,PRO CONTACT,4000039393,76352
Department for Education,DEPARTMENT FOR EDUCATION,05/11/2010,CURRENT GRANTS,Children and Families Child Well Being Group,RELATE LEEDS,4000039394,81150
Department for Education,DEPARTMENT FOR EDUCATION,10/11/2010,CURRENT GRANTS,Children and Families Child Well Being Group,NEWCASTLE CITY COUNCIL,4000039638,75000
Department for Education,DEPARTMENT FOR EDUCATION,11/11/2010,CURRENT GRANTS,Supporting Children and Young People Youth Task Force,BIRMINGHAM CITY COUNCIL,4000039674,49067
Department for Education,DEPARTMENT FOR EDUCATION,11/11/2010,CURRENT GRANTS,Supporting Children and Young People Youth Task Force,BOLTON MBC,4000039676,85628
Department for Education,DEPARTMENT FOR EDUCATION,11/11/2010,CURRENT GRANTS,Supporting Children and Young People Youth Task Force,BOURNEMOUTH BOROUGH COUNCIL,4000039677,121242
Department for Education,DEPARTMENT FOR EDUCATION,11/11/2010,CURRENT GRANTS,Supporting Children and Young People Youth Task Force,GATESHEAD MBC,4000039694,92257
Department for Education,DEPARTMENT FOR EDUCATION,11/11/2010,CURRENT GRANTS,Workforce Group Children and Families Workforce,KENT COUNTY COUNCIL,4000039706,60000
Department for Education,DEPARTMENT FOR EDUCATION,11/11/2010,CURRENT GRANTS,Supporting Children and Young People Youth Task Force,LIVERPOOL CITY COUNCIL,4000039709,36856
Department for Education,DEPARTMENT FOR EDUCATION,11/11/2010,CURRENT GRANTS,Supporting Children and Young People Youth Task Force,LONDON BOROUGH OF EALING COUNCIL,4000039711,128103
Department for Education,DEPARTMENT FOR EDUCATION,11/11/2010,CURRENT GRANTS,Supporting Children and Young People Youth Task Force,LONDON BOROUGH OF HAMMERSMITH & FULHAM COUNCIL,4000039712,201158
Department for Education,DEPARTMENT FOR EDUCATION,11/11/2010,CURRENT GRANTS,Supporting Children and Young People Youth Task Force,MANCHESTER CITY COUNCIL,4000039717,154220
Department for Education,DEPARTMENT FOR EDUCATION,11/11/2010,CURRENT GRANTS,Supporting Children and Young People Youth Task Force,NEWCASTLE CITY COUNCIL,4000039724,92847
Department for Education,DEPARTMENT FOR EDUCATION,11/11/2010,CURRENT GRANTS,Supporting Children and Young People Youth Task Force,NORTHAMPTONSHIRE COUNTY COUNCIL,4000039725,139658
Department for Education,DEPARTMENT FOR EDUCATION,11/11/2010,CURRENT GRANTS,Supporting Children and Young People Youth Task Force,NORTHAMPTONSHIRE COUNTY COUNCIL,4000039725,99912
Department for Education,DEPARTMENT FOR EDUCATION,11/11/2010,CURRENT GRANTS,Supporting Children and Young People Youth Task Force,NOTTINGHAM CITY COUNCIL,4000039726,71574
Department for Education,DEPARTMENT FOR EDUCATION,11/11/2010,CURRENT GRANTS,Supporting Children and Young People Youth Task Force,PLYMOUTH CITY COUNCIL,4000039730,86500
Department for Education,DEPARTMENT FOR EDUCATION,11/11/2010,CURRENT GRANTS,Supporting Children and Young People Youth Task Force,PORTSMOUTH CITY COUNCIL,4000039731,173250
Department for Education,DEPARTMENT FOR EDUCATION,11/11/2010,CURRENT GRANTS,Supporting Children and Young People Youth Task Force,READING BOROUGH COUNCIL,4000039738,76000
Department for Education,DEPARTMENT FOR EDUCATION,11/11/2010,CURRENT GRANTS,Supporting Children and Young People Youth Task Force,SHEFFIELD CITY COUNCIL,4000039743,88344
Department for Education,DEPARTMENT FOR EDUCATION,11/11/2010,CURRENT GRANTS,Supporting Children and Young People Youth Task Force,SOMERSET COUNTY COUNCIL,4000039745,143326
Department for Education,DEPARTMENT FOR EDUCATION,11/11/2010,CURRENT GRANTS,Supporting Children and Young People Youth Task Force,SWINDON BOROUGH COUNCIL,4000039746,91856
Department for Education,DEPARTMENT FOR EDUCATION,11/11/2010,CURRENT GRANTS,Supporting Children and Young People Youth Task Force,WORCESTERSHIRE COUNTY COUNCIL,4000039757,75082
Department for Education,DEPARTMENT FOR EDUCATION,12/11/2010,CURRENT GRANTS,14 - 19 Reform Participation and Attainment,CITY OF SUNDERLAND,4000039795,297338
Department for Education,DEPARTMENT FOR EDUCATION,15/11/2010,CURRENT GRANTS,14 - 19 Reform Participation and Attainment,BURY MBC GREATER MANCHESTER RESIDUARY BODY,4000039864,458744
Department for Education,DEPARTMENT FOR EDUCATION,16/11/2010,CURRENT GRANTS,14 - 19 Reform Participation and Attainment,BIRMINGHAM CITY COUNCIL,4000039920,224589
Department for Education,DEPARTMENT FOR EDUCATION,16/11/2010,CURRENT GRANTS,Workforce Group Children and Families Workforce,LONDON BOROUGH OF HILLINGDON  COUNCIL,4000039939,30000
Department for Education,DEPARTMENT FOR EDUCATION,16/11/2010,CURRENT GRANTS,14 - 19 Reform Participation and Attainment,SANDWELL MBC,4000039948,97321
Department for Education,DEPARTMENT FOR EDUCATION,17/11/2010,CURRENT GRANTS,14 - 19 Reform Participation and Attainment,LONDON EAST CONNEXIONS,4000040022,398512
Department for Education,DEPARTMENT FOR EDUCATION,22/11/2010,CURRENT GRANTS,Children and Families Group,PROLOG,4000040400,41
Department for Education,DEPARTMENT FOR EDUCATION,22/11/2010,CURRENT GRANTS,Children and Families Child Well Being Group,PROLOG,4000040400,120
Department for Education,DEPARTMENT FOR EDUCATION,22/11/2010,CURRENT GRANTS,Children and Families Child Well Being Group,PROLOG,4000040400,2323
Department for Education,DEPARTMENT FOR EDUCATION,22/11/2010,CURRENT GRANTS,Children and Families Group,PROLOG,4000040400,181
Department for Education,DEPARTMENT FOR EDUCATION,25/11/2010,CURRENT GRANTS,Children and Families Early Years Extended Schools and Special Needs,BARNSLEY MBC,4000040588,209050
Department for Education,DEPARTMENT FOR EDUCATION,25/11/2010,CURRENT GRANTS,Children and Families Early Years Extended Schools and Special Needs,BATH & NORTH EAST SOMERSET COUNCIL,4000040589,100825
Department for Education,DEPARTMENT FOR EDUCATION,25/11/2010,CURRENT GRANTS,Children and Families Early Years Extended Schools and Special Needs,BEDFORD BOROUGH COUNCIL,4000040590,138000
Department for Education,DEPARTMENT FOR EDUCATION,25/11/2010,CURRENT GRANTS,Children and Families Early Years Extended Schools and Special Needs,BIRMINGHAM CITY COUNCIL,4000040591,1108100
Department for Education,DEPARTMENT FOR EDUCATION,25/11/2010,CURRENT GRANTS,Children and Families Early Years Extended Schools and Special Needs,BLACKBURN WITH DARWEN BOROUGH COUNCIL,4000040592,123975
Department for Education,DEPARTMENT FOR EDUCATION,25/11/2010,CURRENT GRANTS,Children and Families Early Years Extended Schools and Special Needs,BLACKPOOL BOROUGH COUNCIL,4000040593,116625
Department for Education,DEPARTMENT FOR EDUCATION,25/11/2010,CURRENT GRANTS,Children and Families Early Years Extended Schools and Special Needs,BOLTON MBC,4000040594,227800
Department for Education,DEPARTMENT FOR EDUCATION,25/11/2010,CURRENT GRANTS,Children and Families Early Years Extended Schools and Special Needs,BOURNEMOUTH BOROUGH COUNCIL,4000040595,90575
Department for Education,DEPARTMENT FOR EDUCATION,25/11/2010,CURRENT GRANTS,Children and Families Early Years Extended Schools and Special Needs,BRACKNELL FOREST BOROUGH COUNCIL,4000040596,118100
Department for Education,DEPARTMENT FOR EDUCATION,25/11/2010,CURRENT GRANTS,Children and Families Early Years Extended Schools and Special Needs,BRIGHTON & HOVE CITY COUNCIL,4000040597,214725
Department for Education,DEPARTMENT FOR EDUCATION,25/11/2010,CURRENT GRANTS,Children and Families Early Years Extended Schools and Special Needs,BRISTOL CITY COUNCIL,4000040598,340125
Department for Education,DEPARTMENT FOR EDUCATION,25/11/2010,CURRENT GRANTS,Children and Families Early Years Extended Schools and Special Needs,BUCKINGHAMSHIRE COUNTY COUNCIL,4000040599,423250
Department for Education,DEPARTMENT FOR EDUCATION,25/11/2010,CURRENT GRANTS,Children and Families Early Years Extended Schools and Special Needs,BURY MBC,4000040600,166550
Department for Education,DEPARTMENT FOR EDUCATION,25/11/2010,CURRENT GRANTS,Children and Families Early Years Extended Schools and Special Needs,CALDERDALE MBC,4000040601,173475
Department for Education,DEPARTMENT FOR EDUCATION,25/11/2010,CURRENT GRANTS,Children and Families Early Years Extended Schools and Special Needs,CAMBRIDGESHIRE COUNTY COUNCIL,4000040602,547025
Department for Education,DEPARTMENT FOR EDUCATION,25/11/2010,CURRENT GRANTS,Children and Families Early Years Extended Schools and Special Needs,CENTRAL BEDFORDSHIRE COUNCIL,4000040603,229126
Department for Education,DEPARTMENT FOR EDUCATION,25/11/2010,CURRENT GRANTS,Children and Families Early Years Extended Schools and Special Needs,CHESHIRE EAST COUNCIL,4000040604,280502
Department for Education,DEPARTMENT FOR EDUCATION,25/11/2010,CURRENT GRANTS,Children and Families Early Years Extended Schools and Special Needs,CHESHIRE WEST & CHESTER COUNCIL,4000040605,277823
Department for Education,DEPARTMENT FOR EDUCATION,25/11/2010,CURRENT GRANTS,Children and Families Early Years Extended Schools and Special Needs,CITY OF BRADFORD METROPOLITAN DISTRICT COUNCIL,4000040606,457525
Department for Education,DEPARTMENT FOR EDUCATION,25/11/2010,CURRENT GRANTS,Children and Families Early Years Extended Schools and Special Needs,CORNWALL COUNCIL,4000040607,354450
Department for Education,DEPARTMENT FOR EDUCATION,25/11/2010,CURRENT GRANTS,Children and Families Early Years Extended Schools and Special Needs,CORPORATION OF LONDON,4000040608,2500
Department for Education,DEPARTMENT FOR EDUCATION,25/11/2010,CURRENT GRANTS,Children and Families Early Years Extended Schools and Special Needs,COUNCIL OF THE ISLES OF SCILLY,4000040609,2500
Department for Education,DEPARTMENT FOR EDUCATION,25/11/2010,CURRENT GRANTS,Children and Families Early Years Extended Schools and Special Needs,COVENTRY CITY COUNCIL,4000040610,566667
Department for Education,DEPARTMENT FOR EDUCATION,25/11/2010,CURRENT GRANTS,Children and Families Early Years Extended Schools and Special Needs,COVENTRY CITY COUNCIL,4000040610,306925
Department for Education,DEPARTMENT FOR EDUCATION,25/11/2010,CURRENT GRANTS,Children and Families Early Years Extended Schools and Special Needs,CUMBRIA COUNTY COUNCIL,4000040611,396100
Department for Education,DEPARTMENT FOR EDUCATION,25/11/2010,CURRENT GRANTS,Children and Families Early Years Extended Schools and Special Needs,DARLINGTON BOROUGH COUNCIL,4000040612,80050
Department for Education,DEPARTMENT FOR EDUCATION,25/11/2010,CURRENT GRANTS,Children and Families Early Years Extended Schools and Special Needs,DERBY CITY COUNCIL,4000040613,182575
Department for Education,DEPARTMENT FOR EDUCATION,25/11/2010,CURRENT GRANTS,Children and Families Early Years Extended Schools and Special Needs,DERBYSHIRE COUNTY COUNCIL,4000040614,629300
Department for Education,DEPARTMENT FOR EDUCATION,25/11/2010,CURRENT GRANTS,Children and Families Early Years Extended Schools and Special Needs,DEVON COUNTY COUNCIL,4000040615,475175
Department for Education,DEPARTMENT FOR EDUCATION,25/11/2010,CURRENT GRANTS,Children and Families Early Years Extended Schools and Special Needs,DONCASTER MBC,4000040616,239850
Department for Education,DEPARTMENT FOR EDUCATION,25/11/2010,CURRENT GRANTS,Children and Families Early Years Extended Schools and Special Needs,DORSET COUNTY COUNCIL,4000040617,263125
Department for Education,DEPARTMENT FOR EDUCATION,25/11/2010,CURRENT GRANTS,Children and Families Early Years Extended Schools and Special Needs,DUDLEY MBC,4000040618,224825
Department for Education,DEPARTMENT FOR EDUCATION,25/11/2010,CURRENT GRANTS,Children and Families Early Years Extended Schools and Special Needs,DURHAM COUNTY COUNCIL,4000040619,443150
Department for Education,DEPARTMENT FOR EDUCATION,25/11/2010,CURRENT GRANTS,Children and Families Early Years Extended Schools and Special Needs,EAST RIDING OF YORKSHIRE,4000040620,244475
Department for Education,DEPARTMENT FOR EDUCATION,25/11/2010,CURRENT GRANTS,Children and Families Early Years Extended Schools and Special Needs,EAST SUSSEX COUNTY COUNCIL,4000040621,566667
Department for Education,DEPARTMENT FOR EDUCATION,25/11/2010,CURRENT GRANTS,Children and Families Early Years Extended Schools and Special Needs,EAST SUSSEX COUNTY COUNCIL,4000040621,430625
Department for Education,DEPARTMENT FOR EDUCATION,25/11/2010,CURRENT GRANTS,Children and Families Early Years Extended Schools and Special Needs,ESSEX COUNTY COUNCIL,4000040622,566667
Department for Education,DEPARTMENT FOR EDUCATION,25/11/2010,CURRENT GRANTS,Children and Families Early Years Extended Schools and Special Needs,ESSEX COUNTY COUNCIL,4000040622,1230300
Department for Education,DEPARTMENT FOR EDUCATION,25/11/2010,CURRENT GRANTS,Children and Families Early Years Extended Schools and Special Needs,GATESHEAD MBC,4000040623,190563
Department for Education,DEPARTMENT FOR EDUCATION,25/11/2010,CURRENT GRANTS,Children and Families Early Years Extended Schools and Special Needs,GLOUCESTERSHIRE COUNTY COUNCIL,4000040624,566667
Department for Education,DEPARTMENT FOR EDUCATION,25/11/2010,CURRENT GRANTS,Children and Families Early Years Extended Schools and Special Needs,GLOUCESTERSHIRE COUNTY COUNCIL,4000040624,427550
Department for Education,DEPARTMENT FOR EDUCATION,25/11/2010,CURRENT GRANTS,Children and Families Early Years Extended Schools and Special Needs,HALTON BOROUGH COUNCIL,4000040625,137925
Department for Education,DEPARTMENT FOR EDUCATION,25/11/2010,CURRENT GRANTS,Children and Families Early Years Extended Schools and Special Needs,HAMPSHIRE COUNTY COUNCIL,4000040626,1126625
Department for Education,DEPARTMENT FOR EDUCATION,25/11/2010,CURRENT GRANTS,Children and Families Early Years Extended Schools and Special Needs,HARTLEPOOL BOROUGH COUNCIL,4000040627,86450
Department for Education,DEPARTMENT FOR EDUCATION,25/11/2010,CURRENT GRANTS,Children and Families Early Years Extended Schools and Special Needs,HEREFORDSHIRE COUNCIL,4000040628,134300
Department for Education,DEPARTMENT FOR EDUCATION,25/11/2010,CURRENT GRANTS,Children and Families Early Years Extended Schools and Special Needs,HERTFORDSHIRE,4000040629,962400
Department for Education,DEPARTMENT FOR EDUCATION,25/11/2010,CURRENT GRANTS,Children and Families Early Years Extended Schools and Special Needs,ISLE OF WIGHT COUNCIL,4000040630,118275
Department for Education,DEPARTMENT FOR EDUCATION,25/11/2010,CURRENT GRANTS,Children and Families Early Years Extended Schools and Special Needs,KENT COUNTY COUNCIL,4000040631,1340250
Department for Education,DEPARTMENT FOR EDUCATION,25/11/2010,CURRENT GRANTS,Children and Families Early Years Extended Schools and Special Needs,KINGSTON UPON HULL COUNCIL,4000040632,204000
Department for Education,DEPARTMENT FOR EDUCATION,25/11/2010,CURRENT GRANTS,Children and Families Early Years Extended Schools and Special Needs,KIRKLEES COUNCIL,4000040633,325600
Department for Education,DEPARTMENT FOR EDUCATION,25/11/2010,CURRENT GRANTS,Children and Families Early Years Extended Schools and Special Needs,KNOWSLEY MBC,4000040634,198425
Department for Education,DEPARTMENT FOR EDUCATION,25/11/2010,CURRENT GRANTS,Children and Families Early Years Extended Schools and Special Needs,LANCASHIRE COUNTY COUNCIL,4000040635,985775
Department for Education,DEPARTMENT FOR EDUCATION,25/11/2010,CURRENT GRANTS,Children and Families Early Years Extended Schools and Special Needs,LEEDS CITY COUNCIL,4000040636,519075
Department for Education,DEPARTMENT FOR EDUCATION,25/11/2010,CURRENT GRANTS,Children and Families Early Years Extended Schools and Special Needs,LEICESTER CITY COUNCIL,4000040637,232300
Department for Education,DEPARTMENT FOR EDUCATION,25/11/2010,CURRENT GRANTS,Children and Families Early Years Extended Schools and Special Needs,LEICESTERSHIRE COUNTY COUNCIL,4000040638,461975
Department for Education,DEPARTMENT FOR EDUCATION,25/11/2010,CURRENT GRANTS,Children and Families Early Years Extended Schools and Special Needs,LINCOLNSHIRE COUNTY COUNCIL,4000040639,574425
Department for Education,DEPARTMENT FOR EDUCATION,25/11/2010,CURRENT GRANTS,Children and Families Early Years Extended Schools and Special Needs,LIVERPOOL CITY COUNCIL,4000040640,520050
Department for Education,DEPARTMENT FOR EDUCATION,25/11/2010,CURRENT GRANTS,Children and Families Early Years Extended Schools and Special Needs,LONDON BOROUGH OF BARKING & DAGENHAM COUNCIL,4000040641,193800
Department for Education,DEPARTMENT FOR EDUCATION,25/11/2010,CURRENT GRANTS,Children and Families Early Years Extended Schools and Special Needs,LONDON BOROUGH OF BARNET COUNCIL,4000040642,304200
Department for Education,DEPARTMENT FOR EDUCATION,25/11/2010,CURRENT GRANTS,Children and Families Early Years Extended Schools and Special Needs,LONDON BOROUGH OF BEXLEY COUNCIL,4000040643,566667
Department for Education,DEPARTMENT FOR EDUCATION,25/11/2010,CURRENT GRANTS,Children and Families Early Years Extended Schools and Special Needs,LONDON BOROUGH OF BEXLEY COUNCIL,4000040643,211800
Department for Education,DEPARTMENT FOR EDUCATION,25/11/2010,CURRENT GRANTS,Children and Families Early Years Extended Schools and Special Needs,LONDON BOROUGH OF BRENT,4000040644,223575
Department for Education,DEPARTMENT FOR EDUCATION,25/11/2010,CURRENT GRANTS,Children and Families Early Years Extended Schools and Special Needs,LONDON BOROUGH OF BROMLEY COUNCIL,4000040645,296650
Department for Education,DEPARTMENT FOR EDUCATION,25/11/2010,CURRENT GRANTS,Children and Families Early Years Extended Schools and Special Needs,LONDON BOROUGH OF CAMDEN,4000040646,566667
Department for Education,DEPARTMENT FOR EDUCATION,25/11/2010,CURRENT GRANTS,Children and Families Early Years Extended Schools and Special Needs,LONDON BOROUGH OF CAMDEN,4000040646,186550
Department for Education,DEPARTMENT FOR EDUCATION,25/11/2010,CURRENT GRANTS,Children and Families Early Years Extended Schools and Special Needs,LONDON BOROUGH OF CROYDON COUNCIL,4000040647,327550
Department for Education,DEPARTMENT FOR EDUCATION,25/11/2010,CURRENT GRANTS,Children and Families Early Years Extended Schools and Special Needs,LONDON BOROUGH OF EALING COUNCIL,4000040648,262475
Department for Education,DEPARTMENT FOR EDUCATION,25/11/2010,CURRENT GRANTS,Children and Families Early Years Extended Schools and Special Needs,LONDON BOROUGH OF ENFIELD COUNCIL,4000040649,251050
Department for Education,DEPARTMENT FOR EDUCATION,25/11/2010,CURRENT GRANTS,Children and Families Early Years Extended Schools and Special Needs,LONDON BOROUGH OF GREENWICH,4000040650,280300
Department for Education,DEPARTMENT FOR EDUCATION,25/11/2010,CURRENT GRANTS,Children and Families Early Years Extended Schools and Special Needs,LONDON BOROUGH OF HAMMERSMITH & FULHAM COUNCIL,4000040651,150825
Department for Education,DEPARTMENT FOR EDUCATION,25/11/2010,CURRENT GRANTS,Children and Families Early Years Extended Schools and Special Needs,LONDON BOROUGH OF HARINGEY,4000040652,225125
Department for Education,DEPARTMENT FOR EDUCATION,25/11/2010,CURRENT GRANTS,Children and Families Early Years Extended Schools and Special Needs,LONDON BOROUGH OF HARROW COUNCIL,4000040653,203775
Department for Education,DEPARTMENT FOR EDUCATION,25/11/2010,CURRENT GRANTS,Children and Families Early Years Extended Schools and Special Needs,LONDON BOROUGH OF HAVERING COUNCIL,4000040654,226225
Department for Education,DEPARTMENT FOR EDUCATION,25/11/2010,CURRENT GRANTS,Children and Families Early Years Extended Schools and Special Needs,LONDON BOROUGH OF HILLINGDON  COUNCIL,4000040655,251400
Department for Education,DEPARTMENT FOR EDUCATION,25/11/2010,CURRENT GRANTS,Children and Families Early Years Extended Schools and Special Needs,LONDON BOROUGH OF HOUNSLOW COUNCIL,4000040656,189200
Department for Education,DEPARTMENT FOR EDUCATION,25/11/2010,CURRENT GRANTS,Children and Families Early Years Extended Schools and Special Needs,LONDON BOROUGH OF ISLINGTON COUNCIL,4000040657,228575
Department for Education,DEPARTMENT FOR EDUCATION,25/11/2010,CURRENT GRANTS,Children and Families Early Years Extended Schools and Special Needs,LONDON BOROUGH OF LAMBETH COUNCIL,4000040658,319275
Department for Education,DEPARTMENT FOR EDUCATION,25/11/2010,CURRENT GRANTS,Children and Families Early Years Extended Schools and Special Needs,LONDON BOROUGH OF LEWISHAM,4000040659,322350
Department for Education,DEPARTMENT FOR EDUCATION,25/11/2010,CURRENT GRANTS,Children and Families Early Years Extended Schools and Special Needs,LUTON BOROUGH COUNCIL,4000040660,186475
Department for Education,DEPARTMENT FOR EDUCATION,25/11/2010,CURRENT GRANTS,Children and Families Early Years Extended Schools and Special Needs,ROYAL BOROUGH OF KINGSTON UPON THAMES COUNCIL,4000040661,118825
Department for Education,DEPARTMENT FOR EDUCATION,25/11/2010,CURRENT GRANTS,Children and Families Early Years Extended Schools and Special Needs,THE LONDON BOROUGH OF HACKNEY,4000040662,297250
Department for Education,DEPARTMENT FOR EDUCATION,25/11/2010,CURRENT GRANTS,Children and Families Early Years Extended Schools and Special Needs,THE ROYAL BOROUGH OF KENSINGTON & CHELSEA COUNCIL,4000040663,101375
Department for Education,DEPARTMENT FOR EDUCATION,25/11/2010,CURRENT GRANTS,Children and Families Early Years Extended Schools and Special Needs,CITY OF WESTMINSTER,4000040762,133925
Department for Education,DEPARTMENT FOR EDUCATION,25/11/2010,CURRENT GRANTS,Children and Families Early Years Extended Schools and Special Needs,LONDON BOROUGH OF MERTON COUNCIL,4000040763,154950
Department for Education,DEPARTMENT FOR EDUCATION,25/11/2010,CURRENT GRANTS,Children and Families Early Years Extended Schools and Special Needs,LONDON BOROUGH OF NEWHAM,4000040764,296250
Department for Education,DEPARTMENT FOR EDUCATION,25/11/2010,CURRENT GRANTS,Children and Families Early Years Extended Schools and Special Needs,LONDON BOROUGH OF REDBRIDGE,4000040765,218775
Department for Education,DEPARTMENT FOR EDUCATION,25/11/2010,CURRENT GRANTS,Children and Families Early Years Extended Schools and Special Needs,LONDON BOROUGH OF RICHMOND UPON THAMES,4000040766,141725
Department for Education,DEPARTMENT FOR EDUCATION,25/11/2010,CURRENT GRANTS,Children and Families Early Years Extended Schools and Special Needs,LONDON BOROUGH OF SOUTHWARK COUNCIL,4000040767,271650
Department for Education,DEPARTMENT FOR EDUCATION,25/11/2010,CURRENT GRANTS,Children and Families Early Years Extended Schools and Special Needs,LONDON BOROUGH OF SUTTON,4000040768,181075
Department for Education,DEPARTMENT FOR EDUCATION,25/11/2010,CURRENT GRANTS,Children and Families Early Years Extended Schools and Special Needs,LONDON BOROUGH OF TOWER HAMLETS COUNCIL,4000040769,281900
Department for Education,DEPARTMENT FOR EDUCATION,25/11/2010,CURRENT GRANTS,Children and Families Early Years Extended Schools and Special Needs,LONDON BOROUGH OF WALTHAM FOREST COUNCIL,4000040770,214500
Department for Education,DEPARTMENT FOR EDUCATION,25/11/2010,CURRENT GRANTS,Children and Families Early Years Extended Schools and Special Needs,LONDON BOROUGH OF WANDSWORTH COUNCIL,4000040771,228150
Department for Education,DEPARTMENT FOR EDUCATION,25/11/2010,CURRENT GRANTS,Children and Families Early Years Extended Schools and Special Needs,MANCHESTER CITY COUNCIL,4000040772,494025
Department for Education,DEPARTMENT FOR EDUCATION,25/11/2010,CURRENT GRANTS,Children and Families Early Years Extended Schools and Special Needs,MEDWAY COUNCIL,4000040773,270425
Department for Education,DEPARTMENT FOR EDUCATION,25/11/2010,CURRENT GRANTS,Children and Families Early Years Extended Schools and Special Needs,METROPOLITAN BOROUGH OF WIRRAL,4000040774,403925
Department for Education,DEPARTMENT FOR EDUCATION,25/11/2010,CURRENT GRANTS,Children and Families Early Years Extended Schools and Special Needs,MIDDLESBROUGH COUNCIL,4000040775,175475
Department for Education,DEPARTMENT FOR EDUCATION,25/11/2010,CURRENT GRANTS,Children and Families Early Years Extended Schools and Special Needs,MILTON KEYNES COUNCIL,4000040776,195500
Department for Education,DEPARTMENT FOR EDUCATION,25/11/2010,CURRENT GRANTS,Children and Families Early Years Extended Schools and Special Needs,NEWCASTLE CITY COUNCIL,4000040777,269290
Department for Education,DEPARTMENT FOR EDUCATION,25/11/2010,CURRENT GRANTS,Children and Families Early Years Extended Schools and Special Needs,NORFOLK COUNTY COUNCIL,4000040778,642400
Department for Education,DEPARTMENT FOR EDUCATION,25/11/2010,CURRENT GRANTS,Children and Families Early Years Extended Schools and Special Needs,NORTH EAST LINCOLNSHIRE COUNCIL,4000040779,159350
Department for Education,DEPARTMENT FOR EDUCATION,25/11/2010,CURRENT GRANTS,Children and Families Early Years Extended Schools and Special Needs,NORTH LINCOLNSHIRE COUNCIL,4000040780,151175
Department for Education,DEPARTMENT FOR EDUCATION,25/11/2010,CURRENT GRANTS,Children and Families Early Years Extended Schools and Special Needs,NORTH SOMERSET COUNCIL,4000040781,147075
Department for Education,DEPARTMENT FOR EDUCATION,25/11/2010,CURRENT GRANTS,Children and Families Early Years Extended Schools and Special Needs,NORTH TYNESIDE,4000040782,149475
Department for Education,DEPARTMENT FOR EDUCATION,25/11/2010,CURRENT GRANTS,Children and Families Early Years Extended Schools and Special Needs,NORTH YORKSHIRE COUNTY COUNCIL,4000040783,435775
Department for Education,DEPARTMENT FOR EDUCATION,25/11/2010,CURRENT GRANTS,Children and Families Early Years Extended Schools and Special Needs,NORTHAMPTONSHIRE COUNTY COUNCIL,4000040784,588450
Department for Education,DEPARTMENT FOR EDUCATION,25/11/2010,CURRENT GRANTS,Children and Families Early Years Extended Schools and Special Needs,NORTHUMBERLAND COUNTY COUNCIL,4000040785,255975
Department for Education,DEPARTMENT FOR EDUCATION,25/11/2010,CURRENT GRANTS,Children and Families Early Years Extended Schools and Special Needs,NOTTINGHAM CITY COUNCIL,4000040786,270100
Department for Education,DEPARTMENT FOR EDUCATION,25/11/2010,CURRENT GRANTS,Children and Families Early Years Extended Schools and Special Needs,NOTTINGHAMSHIRE COUNTY COUNCIL,4000040787,566667
Department for Education,DEPARTMENT FOR EDUCATION,25/11/2010,CURRENT GRANTS,Children and Families Early Years Extended Schools and Special Needs,NOTTINGHAMSHIRE COUNTY COUNCIL,4000040787,639750
Department for Education,DEPARTMENT FOR EDUCATION,25/11/2010,CURRENT GRANTS,Children and Families Early Years Extended Schools and Special Needs,OLDHAM MBC,4000040788,566667
Department for Education,DEPARTMENT FOR EDUCATION,25/11/2010,CURRENT GRANTS,Children and Families Early Years Extended Schools and Special Needs,OLDHAM MBC,4000040788,196175
Department for Education,DEPARTMENT FOR EDUCATION,25/11/2010,CURRENT GRANTS,Children and Families Early Years Extended Schools and Special Needs,OXFORDSHIRE COUNTY COUNCIL,4000040789,509275
Department for Education,DEPARTMENT FOR EDUCATION,25/11/2010,CURRENT GRANTS,Children and Families Early Years Extended Schools and Special Needs,PETERBOROUGH CITY COUNCIL,4000040790,150625
Department for Education,DEPARTMENT FOR EDUCATION,25/11/2010,CURRENT GRANTS,Children and Families Early Years Extended Schools and Special Needs,PLYMOUTH CITY COUNCIL,4000040791,185075
Department for Education,DEPARTMENT FOR EDUCATION,25/11/2010,CURRENT GRANTS,Children and Families Early Years Extended Schools and Special Needs,POOLE BOROUGH COUNCIL,4000040792,85100
Department for Education,DEPARTMENT FOR EDUCATION,25/11/2010,CURRENT GRANTS,Children and Families Early Years Extended Schools and Special Needs,PORTSMOUTH CITY COUNCIL,4000040793,146800
Department for Education,DEPARTMENT FOR EDUCATION,25/11/2010,CURRENT GRANTS,Children and Families Early Years Extended Schools and Special Needs,READING BOROUGH COUNCIL,4000040794,117925
Department for Education,DEPARTMENT FOR EDUCATION,25/11/2010,CURRENT GRANTS,Children and Families Early Years Extended Schools and Special Needs,REDCAR & CLEVELAND BOROUGH COUNCIL,4000040795,566667
Department for Education,DEPARTMENT FOR EDUCATION,25/11/2010,CURRENT GRANTS,Children and Families Early Years Extended Schools and Special Needs,REDCAR & CLEVELAND BOROUGH COUNCIL,4000040795,142850
Department for Education,DEPARTMENT FOR EDUCATION,25/11/2010,CURRENT GRANTS,Children and Families Early Years Extended Schools and Special Needs,ROCHDALE MBC,4000040796,206550
Department for Education,DEPARTMENT FOR EDUCATION,25/11/2010,CURRENT GRANTS,Children and Families Early Years Extended Schools and Special Needs,ROTHERHAM MBC,4000040797,278325
Department for Education,DEPARTMENT FOR EDUCATION,25/11/2010,CURRENT GRANTS,Children and Families Early Years Extended Schools and Special Needs,RUTLAND COUNTY COUNCIL,4000040798,28000
Department for Education,DEPARTMENT FOR EDUCATION,25/11/2010,CURRENT GRANTS,Children and Families Early Years Extended Schools and Special Needs,SALFORD CITY COUNCIL,4000040799,228800
Department for Education,DEPARTMENT FOR EDUCATION,25/11/2010,CURRENT GRANTS,Children and Families Early Years Extended Schools and Special Needs,SANDWELL MBC,4000040800,218075
Department for Education,DEPARTMENT FOR EDUCATION,25/11/2010,CURRENT GRANTS,Children and Families Early Years Extended Schools and Special Needs,SEFTON COUNCIL,4000040801,269150
Department for Education,DEPARTMENT FOR EDUCATION,25/11/2010,CURRENT GRANTS,Children and Families Early Years Extended Schools and Special Needs,SHEFFIELD CITY COUNCIL,4000040802,566667
Department for Education,DEPARTMENT FOR EDUCATION,25/11/2010,CURRENT GRANTS,Children and Families Early Years Extended Schools and Special Needs,SHEFFIELD CITY COUNCIL,4000040802,506375
Department for Education,DEPARTMENT FOR EDUCATION,25/11/2010,CURRENT GRANTS,Children and Families Early Years Extended Schools and Special Needs,SHROPSHIRE COUNCIL,4000040803,218350
Department for Education,DEPARTMENT FOR EDUCATION,25/11/2010,CURRENT GRANTS,Children and Families Early Years Extended Schools and Special Needs,SLOUGH BOROUGH COUNCIL,4000040804,99200
Department for Education,DEPARTMENT FOR EDUCATION,25/11/2010,CURRENT GRANTS,Children and Families Early Years Extended Schools and Special Needs,SOLIHULL MBC,4000040805,163825
Department for Education,DEPARTMENT FOR EDUCATION,25/11/2010,CURRENT GRANTS,Children and Families Early Years Extended Schools and Special Needs,SOMERSET COUNTY COUNCIL,4000040806,354800
Department for Education,DEPARTMENT FOR EDUCATION,25/11/2010,CURRENT GRANTS,Children and Families Early Years Extended Schools and Special Needs,SOUTH GLOUCEST,4000040807,208375
Department for Education,DEPARTMENT FOR EDUCATION,25/11/2010,CURRENT GRANTS,Children and Families Early Years Extended Schools and Special Needs,SOUTH TYNESIDE,4000040808,134850
Department for Education,DEPARTMENT FOR EDUCATION,25/11/2010,CURRENT GRANTS,Children and Families Early Years Extended Schools and Special Needs,SOUTHAMPTON CITY COUNCIL,4000040809,176725
Department for Education,DEPARTMENT FOR EDUCATION,25/11/2010,CURRENT GRANTS,Children and Families Early Years Extended Schools and Special Needs,SOUTHEND ON SEA BOROUGH COUNCIL,4000040810,142300
Department for Education,DEPARTMENT FOR EDUCATION,25/11/2010,CURRENT GRANTS,Children and Families Early Years Extended Schools and Special Needs,ST HELENS MBC,4000040811,172375
Department for Education,DEPARTMENT FOR EDUCATION,25/11/2010,CURRENT GRANTS,Children and Families Early Years Extended Schools and Special Needs,STAFFORDSHIRE COUNCIL,4000040812,642175
Department for Education,DEPARTMENT FOR EDUCATION,25/11/2010,CURRENT GRANTS,Children and Families Early Years Extended Schools and Special Needs,STOCKPORT MBC,4000040813,250825
Department for Education,DEPARTMENT FOR EDUCATION,25/11/2010,CURRENT GRANTS,Children and Families Early Years Extended Schools and Special Needs,STOCKTON ON TEES,4000040814,203025
Department for Education,DEPARTMENT FOR EDUCATION,25/11/2010,CURRENT GRANTS,Children and Families Early Years Extended Schools and Special Needs,STOKE ON TRENT CITY COUNCIL,4000040815,188500
Department for Education,DEPARTMENT FOR EDUCATION,25/11/2010,CURRENT GRANTS,Children and Families Early Years Extended Schools and Special Needs,SUFFOLK COUNTY COUNCIL,4000040816,615500
Department for Education,DEPARTMENT FOR EDUCATION,25/11/2010,CURRENT GRANTS,Children and Families Early Years Extended Schools and Special Needs,SUNDERLAND CITY COUNCIL,4000040817,236175
Department for Education,DEPARTMENT FOR EDUCATION,25/11/2010,CURRENT GRANTS,Children and Families Early Years Extended Schools and Special Needs,SURREY COUNTY COUNCIL,4000040818,998425
Department for Education,DEPARTMENT FOR EDUCATION,25/11/2010,CURRENT GRANTS,Children and Families Early Years Extended Schools and Special Needs,SWINDON BOROUGH COUNCIL,4000040819,148175
Department for Education,DEPARTMENT FOR EDUCATION,25/11/2010,CURRENT GRANTS,Children and Families Early Years Extended Schools and Special Needs,TAMESIDE MBC,4000040820,189975
Department for Education,DEPARTMENT FOR EDUCATION,25/11/2010,CURRENT GRANTS,Children and Families Early Years Extended Schools and Special Needs,TELFORD & WREKIN COUNCIL,4000040821,171275
Department for Education,DEPARTMENT FOR EDUCATION,25/11/2010,CURRENT GRANTS,Children and Families Early Years Extended Schools and Special Needs,THE ROYAL BOROUGH OF WINDSOR & MAIDENHEAD,4000040822,112375
Department for Education,DEPARTMENT FOR EDUCATION,25/11/2010,CURRENT GRANTS,Children and Families Early Years Extended Schools and Special Needs,THURROCK COUNCIL,4000040823,174225
Department for Education,DEPARTMENT FOR EDUCATION,25/11/2010,CURRENT GRANTS,Children and Families Early Years Extended Schools and Special Needs,TORBAY COUNCIL,4000040824,100375
Department for Education,DEPARTMENT FOR EDUCATION,25/11/2010,CURRENT GRANTS,Children and Families Early Years Extended Schools and Special Needs,TRAFFORD MB COUNCIL,4000040825,162475
Department for Education,DEPARTMENT FOR EDUCATION,25/11/2010,CURRENT GRANTS,Children and Families Early Years Extended Schools and Special Needs,WAKEFIELD MDC,4000040826,280850
Department for Education,DEPARTMENT FOR EDUCATION,25/11/2010,CURRENT GRANTS,Children and Families Early Years Extended Schools and Special Needs,WALSALL MBC,4000040827,187950
Department for Education,DEPARTMENT FOR EDUCATION,25/11/2010,CURRENT GRANTS,Children and Families Early Years Extended Schools and Special Needs,WARRINGTON BOROUGH COUNCIL,4000040828,176375
Department for Education,DEPARTMENT FOR EDUCATION,25/11/2010,CURRENT GRANTS,Children and Families Early Years Extended Schools and Special Needs,WARWICKSHIRE COUNTY COUNCIL,4000040829,424200
Department for Education,DEPARTMENT FOR EDUCATION,25/11/2010,CURRENT GRANTS,Children and Families Early Years Extended Schools and Special Needs,WEST BERKSHIRE COUNCIL,4000040830,129125
Department for Education,DEPARTMENT FOR EDUCATION,25/11/2010,CURRENT GRANTS,Children and Families Early Years Extended Schools and Special Needs,WEST SUSSEX COUNTY COUNCIL,4000040831,602425
Department for Education,DEPARTMENT FOR EDUCATION,25/11/2010,CURRENT GRANTS,Children and Families Early Years Extended Schools and Special Needs,WIGAN MBC,4000040832,285150
Department for Education,DEPARTMENT FOR EDUCATION,25/11/2010,CURRENT GRANTS,Children and Families Early Years Extended Schools and Special Needs,WILTSHIRE COUNCIL,4000040833,362925
Department for Education,DEPARTMENT FOR EDUCATION,25/11/2010,CURRENT GRANTS,Children and Families Early Years Extended Schools and Special Needs,WOKINGHAM BOROUGH COUNCIL,4000040834,133425
Department for Education,DEPARTMENT FOR EDUCATION,25/11/2010,CURRENT GRANTS,Children and Families Early Years Extended Schools and Special Needs,WOLVERHAMPTON CITY COUNCIL,4000040835,196625
Department for Education,DEPARTMENT FOR EDUCATION,25/11/2010,CURRENT GRANTS,Children and Families Early Years Extended Schools and Special Needs,WORCESTERSHIRE COUNTY COUNCIL,4000040836,475750
Department for Education,DEPARTMENT FOR EDUCATION,25/11/2010,CURRENT GRANTS,Children and Families Early Years Extended Schools and Special Needs,YORK CITY COUNCIL,4000040837,118200
Department for Education,DEPARTMENT FOR EDUCATION,03/11/2010,CURRENT GRANTS,School Resources Group,BARNSLEY MBC,4000039013,5178240
Department for Education,DEPARTMENT FOR EDUCATION,03/11/2010,CURRENT GRANTS,School Resources Group,BATH & NORTH EAST SOMERSET COUNCIL,4000039014,1901120
Department for Education,DEPARTMENT FOR EDUCATION,03/11/2010,CURRENT GRANTS,School Resources Group,BEDFORD BOROUGH COUNCIL,4000039015,3848080
Department for Education,DEPARTMENT FOR EDUCATION,03/11/2010,CURRENT GRANTS,School Resources Group,BIRMINGHAM CITY COUNCIL,4000039016,31591680
Department for Education,DEPARTMENT FOR EDUCATION,03/11/2010,CURRENT GRANTS,School Resources Group,BLACKBURN WITH DARWEN BOROUGH COUNCIL,4000039017,4238720
Department for Education,DEPARTMENT FOR EDUCATION,03/11/2010,CURRENT GRANTS,School Resources Group,BLACKPOOL BOROUGH COUNCIL,4000039018,3469320
Department for Education,DEPARTMENT FOR EDUCATION,03/11/2010,CURRENT GRANTS,School Resources Group,BOLTON MBC,4000039019,6745880
Department for Education,DEPARTMENT FOR EDUCATION,03/11/2010,CURRENT GRANTS,School Resources Group,BOURNEMOUTH BOROUGH COUNCIL,4000039020,3171600
Department for Education,DEPARTMENT FOR EDUCATION,03/11/2010,CURRENT GRANTS,School Resources Group,BRACKNELL FOREST BOROUGH COUNCIL,4000039021,2618280
Department for Education,DEPARTMENT FOR EDUCATION,03/11/2010,CURRENT GRANTS,School Resources Group,BRIGHTON & HOVE CITY COUNCIL,4000039022,5263760
Department for Education,DEPARTMENT FOR EDUCATION,03/11/2010,CURRENT GRANTS,School Resources Group,BRISTOL CITY COUNCIL,4000039023,8043440
Department for Education,DEPARTMENT FOR EDUCATION,03/11/2010,CURRENT GRANTS,School Resources Group,BUCKINGHAMSHIRE COUNTY COUNCIL,4000039024,11854480
Department for Education,DEPARTMENT FOR EDUCATION,03/11/2010,CURRENT GRANTS,School Resources Group,BURY MBC,4000039025,4663120
Department for Education,DEPARTMENT FOR EDUCATION,03/11/2010,CURRENT GRANTS,School Resources Group,CALDERDALE MBC,4000039026,5414840
Department for Education,DEPARTMENT FOR EDUCATION,03/11/2010,CURRENT GRANTS,School Resources Group,CAMBRIDGESHIRE COUNTY COUNCIL,4000039027,12089160
Department for Education,DEPARTMENT FOR EDUCATION,03/11/2010,CURRENT GRANTS,School Resources Group,CENTRAL BEDFORDSHIRE COUNCIL,4000039028,5593240
Department for Education,DEPARTMENT FOR EDUCATION,03/11/2010,CURRENT GRANTS,School Resources Group,CHESHIRE EAST COUNCIL,4000039029,5045840
Department for Education,DEPARTMENT FOR EDUCATION,03/11/2010,CURRENT GRANTS,School Resources Group,CHESHIRE WEST & CHESTER COUNCIL,4000039030,5416120
Department for Education,DEPARTMENT FOR EDUCATION,03/11/2010,CURRENT GRANTS,School Resources Group,CITY OF BRADFORD METROPOLITAN DISTRICT COUNCIL,4000039031,14011320
Department for Education,DEPARTMENT FOR EDUCATION,03/11/2010,CURRENT GRANTS,School Resources Group,CITY OF LONDON,4000039032,80840
Department for Education,DEPARTMENT FOR EDUCATION,03/11/2010,CURRENT GRANTS,School Resources Group,CITY OF WESTMINSTER,4000039033,3881800
Department for Education,DEPARTMENT FOR EDUCATION,03/11/2010,CURRENT GRANTS,School Resources Group,CORNWALL COUNCIL,4000039034,10948240
Department for Education,DEPARTMENT FOR EDUCATION,03/11/2010,CURRENT GRANTS,School Resources Group,COUNCIL OF THE ISLES OF SCILLY,4000039035,116653
Department for Education,DEPARTMENT FOR EDUCATION,03/11/2010,CURRENT GRANTS,School Resources Group,COVENTRY CITY COUNCIL,4000039036,7912280
Department for Education,DEPARTMENT FOR EDUCATION,03/11/2010,CURRENT GRANTS,School Resources Group,CUMBRIA COUNTY COUNCIL,4000039037,10171880
Department for Education,DEPARTMENT FOR EDUCATION,03/11/2010,CURRENT GRANTS,School Resources Group,DARLINGTON BOROUGH COUNCIL,4000039038,2436360
Department for Education,DEPARTMENT FOR EDUCATION,03/11/2010,CURRENT GRANTS,School Resources Group,DERBY CITY COUNCIL,4000039039,6162040
Department for Education,DEPARTMENT FOR EDUCATION,03/11/2010,CURRENT GRANTS,School Resources Group,DERBYSHIRE COUNTY COUNCIL,4000039040,17088520
Department for Education,DEPARTMENT FOR EDUCATION,03/11/2010,CURRENT GRANTS,School Resources Group,DEVON COUNTY COUNCIL,4000039041,13108560
Department for Education,DEPARTMENT FOR EDUCATION,03/11/2010,CURRENT GRANTS,School Resources Group,DONCASTER MBC,4000039042,6844920
Department for Education,DEPARTMENT FOR EDUCATION,03/11/2010,CURRENT GRANTS,School Resources Group,DORSET COUNTY COUNCIL,4000039043,8547120
Department for Education,DEPARTMENT FOR EDUCATION,03/11/2010,CURRENT GRANTS,School Resources Group,DUDLEY MBC,4000039044,7990600
Department for Education,DEPARTMENT FOR EDUCATION,03/11/2010,CURRENT GRANTS,School Resources Group,DURHAM COUNTY COUNCIL,4000039045,11539720
Department for Education,DEPARTMENT FOR EDUCATION,03/11/2010,CURRENT GRANTS,School Resources Group,EAST RIDING OF YORKSHIRE,4000039046,7269240
Department for Education,DEPARTMENT FOR EDUCATION,03/11/2010,CURRENT GRANTS,School Resources Group,EAST SUSSEX COUNTY COUNCIL,4000039047,11027960
Department for Education,DEPARTMENT FOR EDUCATION,03/11/2010,CURRENT GRANTS,School Resources Group,ESSEX COUNTY COUNCIL,4000039048,31667560
Department for Education,DEPARTMENT FOR EDUCATION,03/11/2010,CURRENT GRANTS,School Resources Group,GATESHEAD MBC,4000039049,4333400
Department for Education,DEPARTMENT FOR EDUCATION,03/11/2010,CURRENT GRANTS,School Resources Group,GLOUCESTERSHIRE COUNTY COUNCIL,4000039050,11196120
Department for Education,DEPARTMENT FOR EDUCATION,03/11/2010,CURRENT GRANTS,School Resources Group,HALTON BOROUGH COUNCIL,4000039051,3241800
Department for Education,DEPARTMENT FOR EDUCATION,03/11/2010,CURRENT GRANTS,School Resources Group,HAMPSHIRE COUNTY COUNCIL,4000039052,28759720
Department for Education,DEPARTMENT FOR EDUCATION,03/11/2010,CURRENT GRANTS,School Resources Group,HARTLEPOOL BOROUGH COUNCIL,4000039053,2468680
Department for Education,DEPARTMENT FOR EDUCATION,03/11/2010,CURRENT GRANTS,School Resources Group,HEREFORDSHIRE COUNCIL,4000039054,3405400
Department for Education,DEPARTMENT FOR EDUCATION,03/11/2010,CURRENT GRANTS,School Resources Group,HERTFORDSHIRE,4000039055,24220400
Department for Education,DEPARTMENT FOR EDUCATION,03/11/2010,CURRENT GRANTS,School Resources Group,ISLE OF WIGHT COUNCIL,4000039056,3054840
Department for Education,DEPARTMENT FOR EDUCATION,03/11/2010,CURRENT GRANTS,School Resources Group,KENT COUNTY COUNCIL,4000039057,27667360
Department for Education,DEPARTMENT FOR EDUCATION,03/11/2010,CURRENT GRANTS,School Resources Group,KINGSTON UPON HULL COUNCIL,4000039058,6159800
Department for Education,DEPARTMENT FOR EDUCATION,03/11/2010,CURRENT GRANTS,School Resources Group,KIRKLEES COUNCIL,4000039059,9527680
Department for Education,DEPARTMENT FOR EDUCATION,03/11/2010,CURRENT GRANTS,School Resources Group,KNOWSLEY MBC,4000039060,4026920
Department for Education,DEPARTMENT FOR EDUCATION,03/11/2010,CURRENT GRANTS,School Resources Group,LANCASHIRE COUNTY COUNCIL,4000039061,27224160
Department for Education,DEPARTMENT FOR EDUCATION,03/11/2010,CURRENT GRANTS,School Resources Group,LEEDS CITY COUNCIL,4000039062,16560640
Department for Education,DEPARTMENT FOR EDUCATION,03/11/2010,CURRENT GRANTS,School Resources Group,LEICESTER CITY COUNCIL,4000039063,8166560
Department for Education,DEPARTMENT FOR EDUCATION,03/11/2010,CURRENT GRANTS,School Resources Group,LEICESTERSHIRE COUNTY COUNCIL,4000039064,13977160
Department for Education,DEPARTMENT FOR EDUCATION,03/11/2010,CURRENT GRANTS,School Resources Group,LINCOLNSHIRE COUNTY COUNCIL,4000039065,12832000
Department for Education,DEPARTMENT FOR EDUCATION,03/11/2010,CURRENT GRANTS,School Resources Group,LIVERPOOL CITY COUNCIL,4000039066,10600080
Department for Education,DEPARTMENT FOR EDUCATION,03/11/2010,CURRENT GRANTS,School Resources Group,LONDON BOROUGH OF BARKING & DAGENHAM COUNCIL,4000039067,6092840
Department for Education,DEPARTMENT FOR EDUCATION,03/11/2010,CURRENT GRANTS,School Resources Group,LONDON BOROUGH OF BARNET COUNCIL,4000039068,5502520
Department for Education,DEPARTMENT FOR EDUCATION,03/11/2010,CURRENT GRANTS,School Resources Group,LONDON BOROUGH OF BEXLEY COUNCIL,4000039069,3224040
Department for Education,DEPARTMENT FOR EDUCATION,03/11/2010,CURRENT GRANTS,School Resources Group,LONDON BOROUGH OF BRENT,4000039070,7966960
Department for Education,DEPARTMENT FOR EDUCATION,03/11/2010,CURRENT GRANTS,School Resources Group,LONDON BOROUGH OF BROMLEY COUNCIL,4000039071,6036200
Department for Education,DEPARTMENT FOR EDUCATION,03/11/2010,CURRENT GRANTS,School Resources Group,LONDON BOROUGH OF CAMDEN,4000039072,5362960
Department for Education,DEPARTMENT FOR EDUCATION,03/11/2010,CURRENT GRANTS,School Resources Group,LONDON BOROUGH OF CROYDON COUNCIL,4000039073,8215920
Department for Education,DEPARTMENT FOR EDUCATION,03/11/2010,CURRENT GRANTS,School Resources Group,LONDON BOROUGH OF EALING COUNCIL,4000039074,8653480
Department for Education,DEPARTMENT FOR EDUCATION,03/11/2010,CURRENT GRANTS,School Resources Group,LONDON BOROUGH OF ENFIELD COUNCIL,4000039075,6002480
Department for Education,DEPARTMENT FOR EDUCATION,03/11/2010,CURRENT GRANTS,School Resources Group,LONDON BOROUGH OF GREENWICH,4000039076,7536280
Department for Education,DEPARTMENT FOR EDUCATION,03/11/2010,CURRENT GRANTS,School Resources Group,LONDON BOROUGH OF HAMMERSMITH & FULHAM COUNCIL,4000039077,3755280
Department for Education,DEPARTMENT FOR EDUCATION,03/11/2010,CURRENT GRANTS,School Resources Group,LONDON BOROUGH OF HARINGEY,4000039078,6885160
Department for Education,DEPARTMENT FOR EDUCATION,03/11/2010,CURRENT GRANTS,School Resources Group,LONDON BOROUGH OF HARROW COUNCIL,4000039079,5775080
Department for Education,DEPARTMENT FOR EDUCATION,03/11/2010,CURRENT GRANTS,School Resources Group,LONDON BOROUGH OF HAVERING COUNCIL,4000039080,6340000
Department for Education,DEPARTMENT FOR EDUCATION,03/11/2010,CURRENT GRANTS,School Resources Group,LONDON BOROUGH OF HILLINGDON  COUNCIL,4000039081,7300200
Department for Education,DEPARTMENT FOR EDUCATION,03/11/2010,CURRENT GRANTS,School Resources Group,LONDON BOROUGH OF HOUNSLOW COUNCIL,4000039082,4749600
Department for Education,DEPARTMENT FOR EDUCATION,03/11/2010,CURRENT GRANTS,School Resources Group,LONDON BOROUGH OF ISLINGTON COUNCIL,4000039083,5286640
Department for Education,DEPARTMENT FOR EDUCATION,03/11/2010,CURRENT GRANTS,School Resources Group,LONDON BOROUGH OF LAMBETH COUNCIL,4000039084,5972240
Department for Education,DEPARTMENT FOR EDUCATION,03/11/2010,CURRENT GRANTS,School Resources Group,LONDON BOROUGH OF LEWISHAM,4000039085,7625280
Department for Education,DEPARTMENT FOR EDUCATION,03/11/2010,CURRENT GRANTS,School Resources Group,LONDON BOROUGH OF MERTON COUNCIL,4000039086,4223280
Department for Education,DEPARTMENT FOR EDUCATION,03/11/2010,CURRENT GRANTS,School Resources Group,LONDON BOROUGH OF NEWHAM,4000039087,10653200
Department for Education,DEPARTMENT FOR EDUCATION,03/11/2010,CURRENT GRANTS,School Resources Group,LONDON BOROUGH OF REDBRIDGE,4000039088,6338840
Department for Education,DEPARTMENT FOR EDUCATION,03/11/2010,CURRENT GRANTS,School Resources Group,LONDON BOROUGH OF RICHMOND UPON THAMES,4000039089,3768920
Department for Education,DEPARTMENT FOR EDUCATION,03/11/2010,CURRENT GRANTS,School Resources Group,LONDON BOROUGH OF SOUTHWARK COUNCIL,4000039090,5855120
Department for Education,DEPARTMENT FOR EDUCATION,03/11/2010,CURRENT GRANTS,School Resources Group,LONDON BOROUGH OF SUTTON,4000039091,5290320
Department for Education,DEPARTMENT FOR EDUCATION,03/11/2010,CURRENT GRANTS,School Resources Group,LONDON BOROUGH OF TOWER HAMLETS COUNCIL,4000039092,9824840
Department for Education,DEPARTMENT FOR EDUCATION,03/11/2010,CURRENT GRANTS,School Resources Group,LONDON BOROUGH OF WALTHAM FOREST COUNCIL,4000039093,7035880
Department for Education,DEPARTMENT FOR EDUCATION,03/11/2010,CURRENT GRANTS,School Resources Group,LONDON BOROUGH OF WANDSWORTH COUNCIL,4000039094,6147120
Department for Education,DEPARTMENT FOR EDUCATION,03/11/2010,CURRENT GRANTS,School Resources Group,LUTON BOROUGH COUNCIL,4000039095,5735320
Department for Education,DEPARTMENT FOR EDUCATION,03/11/2010,CURRENT GRANTS,School Resources Group,MANCHESTER CITY COUNCIL,4000039096,11518120
Department for Education,DEPARTMENT FOR EDUCATION,03/11/2010,CURRENT GRANTS,School Resources Group,MEDWAY COUNCIL,4000039097,6520040
Department for Education,DEPARTMENT FOR EDUCATION,03/11/2010,CURRENT GRANTS,School Resources Group,METROPOLITAN BOROUGH OF WIRRAL,4000039098,7638720
Department for Education,DEPARTMENT FOR EDUCATION,03/11/2010,CURRENT GRANTS,School Resources Group,MIDDLESBROUGH COUNCIL,4000039099,3269640
Department for Education,DEPARTMENT FOR EDUCATION,03/11/2010,CURRENT GRANTS,School Resources Group,MILTON KEYNES COUNCIL,4000039100,5969400
Department for Education,DEPARTMENT FOR EDUCATION,03/11/2010,CURRENT GRANTS,School Resources Group,NEWCASTLE CITY COUNCIL,4000039101,5921520
Department for Education,DEPARTMENT FOR EDUCATION,03/11/2010,CURRENT GRANTS,School Resources Group,NORFOLK COUNTY COUNCIL,4000039102,17029480
Department for Education,DEPARTMENT FOR EDUCATION,03/11/2010,CURRENT GRANTS,School Resources Group,NORTH LINCOLNSHIRE COUNCIL,4000039103,3701800
Department for Education,DEPARTMENT FOR EDUCATION,03/11/2010,CURRENT GRANTS,School Resources Group,NORTH SOMERSET COUNCIL,4000039104,5680360
Department for Education,DEPARTMENT FOR EDUCATION,03/11/2010,CURRENT GRANTS,School Resources Group,NORTH TYNESIDE,4000039105,4454560
Department for Education,DEPARTMENT FOR EDUCATION,03/11/2010,CURRENT GRANTS,School Resources Group,NORTH YORKSHIRE COUNTY COUNCIL,4000039106,13119960
Department for Education,DEPARTMENT FOR EDUCATION,03/11/2010,CURRENT GRANTS,School Resources Group,NORTHAMPTONSHIRE COUNTY COUNCIL,4000039107,14242160
Department for Education,DEPARTMENT FOR EDUCATION,03/11/2010,CURRENT GRANTS,School Resources Group,NORTHUMBERLAND COUNTY COUNCIL,4000039108,6747240
Department for Education,DEPARTMENT FOR EDUCATION,03/11/2010,CURRENT GRANTS,School Resources Group,NOTTINGHAM CITY COUNCIL,4000039109,6283800
Department for Education,DEPARTMENT FOR EDUCATION,03/11/2010,CURRENT GRANTS,School Resources Group,NOTTINGHAMSHIRE COUNTY COUNCIL,4000039110,16471160
Department for Education,DEPARTMENT FOR EDUCATION,03/11/2010,CURRENT GRANTS,School Resources Group,OLDHAM MBC,4000039111,6208120
Department for Education,DEPARTMENT FOR EDUCATION,03/11/2010,CURRENT GRANTS,School Resources Group,OXFORDSHIRE COUNTY COUNCIL,4000039112,13434040
Department for Education,DEPARTMENT FOR EDUCATION,03/11/2010,CURRENT GRANTS,School Resources Group,PETERBOROUGH CITY COUNCIL,4000039113,2922400
Department for Education,DEPARTMENT FOR EDUCATION,03/11/2010,CURRENT GRANTS,School Resources Group,PLYMOUTH CITY COUNCIL,4000039114,5648320
Department for Education,DEPARTMENT FOR EDUCATION,03/11/2010,CURRENT GRANTS,School Resources Group,POOLE BOROUGH COUNCIL,4000039115,2807640
Department for Education,DEPARTMENT FOR EDUCATION,03/11/2010,CURRENT GRANTS,School Resources Group,PORTSMOUTH CITY COUNCIL,4000039116,4161880
Department for Education,DEPARTMENT FOR EDUCATION,03/11/2010,CURRENT GRANTS,School Resources Group,READING BOROUGH COUNCIL,4000039117,2953400
Department for Education,DEPARTMENT FOR EDUCATION,03/11/2010,CURRENT GRANTS,School Resources Group,REDCAR & CLEVELAND BOROUGH COUNCIL,4000039118,3483680
Department for Education,DEPARTMENT FOR EDUCATION,03/11/2010,CURRENT GRANTS,School Resources Group,ROCHDALE MBC,4000039119,5736320
Department for Education,DEPARTMENT FOR EDUCATION,03/11/2010,CURRENT GRANTS,School Resources Group,ROTHERHAM MBC,4000039120,3190000
Department for Education,DEPARTMENT FOR EDUCATION,03/11/2010,CURRENT GRANTS,School Resources Group,ROYAL BOROUGH OF KINGSTON UPON THAMES COUNCIL,4000039121,3694040
Department for Education,DEPARTMENT FOR EDUCATION,03/11/2010,CURRENT GRANTS,School Resources Group,RUTLAND COUNTY COUNCIL,4000039122,863040
Department for Education,DEPARTMENT FOR EDUCATION,03/11/2010,CURRENT GRANTS,School Resources Group,SALFORD CITY COUNCIL,4000039123,5419120
Department for Education,DEPARTMENT FOR EDUCATION,03/11/2010,CURRENT GRANTS,School Resources Group,SANDWELL MBC,4000039124,7795160
Department for Education,DEPARTMENT FOR EDUCATION,03/11/2010,CURRENT GRANTS,School Resources Group,SEFTON COUNCIL,4000039125,6583040
Department for Education,DEPARTMENT FOR EDUCATION,03/11/2010,CURRENT GRANTS,School Resources Group,SHEFFIELD CITY COUNCIL,4000039126,11655440
Department for Education,DEPARTMENT FOR EDUCATION,03/11/2010,CURRENT GRANTS,School Resources Group,SHROPSHIRE COUNCIL,4000039127,6099880
Department for Education,DEPARTMENT FOR EDUCATION,03/11/2010,CURRENT GRANTS,School Resources Group,SLOUGH BOROUGH COUNCIL,4000039128,3945920
Department for Education,DEPARTMENT FOR EDUCATION,03/11/2010,CURRENT GRANTS,School Resources Group,SOLIHULL MBC,4000039129,2257240
Department for Education,DEPARTMENT FOR EDUCATION,03/11/2010,CURRENT GRANTS,School Resources Group,SOMERSET COUNTY COUNCIL,4000039130,7898760
Department for Education,DEPARTMENT FOR EDUCATION,03/11/2010,CURRENT GRANTS,School Resources Group,SOUTH GLOUCEST,4000039131,5794000
Department for Education,DEPARTMENT FOR EDUCATION,03/11/2010,CURRENT GRANTS,School Resources Group,SOUTH TYNESIDE,4000039132,3650440
Department for Education,DEPARTMENT FOR EDUCATION,03/11/2010,CURRENT GRANTS,School Resources Group,SOUTHAMPTON CITY COUNCIL,4000039133,4673720
Department for Education,DEPARTMENT FOR EDUCATION,03/11/2010,CURRENT GRANTS,School Resources Group,SOUTHEND ON SEA BOROUGH COUNCIL,4000039134,356640
Department for Education,DEPARTMENT FOR EDUCATION,03/11/2010,CURRENT GRANTS,School Resources Group,ST HELENS MBC,4000039135,4158080
Department for Education,DEPARTMENT FOR EDUCATION,03/11/2010,CURRENT GRANTS,School Resources Group,STAFFORDSHIRE COUNCIL,4000039136,18632200
Department for Education,DEPARTMENT FOR EDUCATION,03/11/2010,CURRENT GRANTS,School Resources Group,STOCKPORT MBC,4000039137,6326840
Department for Education,DEPARTMENT FOR EDUCATION,03/11/2010,CURRENT GRANTS,School Resources Group,STOCKTON ON TEES,4000039138,4225120
Department for Education,DEPARTMENT FOR EDUCATION,03/11/2010,CURRENT GRANTS,School Resources Group,STOKE ON TRENT CITY COUNCIL,4000039139,5702080
Department for Education,DEPARTMENT FOR EDUCATION,03/11/2010,CURRENT GRANTS,School Resources Group,SUFFOLK COUNTY COUNCIL,4000039140,14552480
Department for Education,DEPARTMENT FOR EDUCATION,03/11/2010,CURRENT GRANTS,School Resources Group,SUNDERLAND CITY COUNCIL,4000039141,5756720
Department for Education,DEPARTMENT FOR EDUCATION,03/11/2010,CURRENT GRANTS,School Resources Group,SURREY COUNTY COUNCIL,4000039142,24167160
Department for Education,DEPARTMENT FOR EDUCATION,03/11/2010,CURRENT GRANTS,School Resources Group,SWINDON BOROUGH COUNCIL,4000039143,4179680
Department for Education,DEPARTMENT FOR EDUCATION,03/11/2010,CURRENT GRANTS,School Resources Group,TAMESIDE MBC,4000039144,3849640
Department for Education,DEPARTMENT FOR EDUCATION,03/11/2010,CURRENT GRANTS,School Resources Group,TELFORD & WREKIN COUNCIL,4000039145,3965760
Department for Education,DEPARTMENT FOR EDUCATION,03/11/2010,CURRENT GRANTS,School Resources Group,THE LONDON BOROUGH OF HACKNEY,4000039146,6391280
Department for Education,DEPARTMENT FOR EDUCATION,03/11/2010,CURRENT GRANTS,School Resources Group,THE ROYAL BOROUGH OF KENSINGTON & CHELSEA COUNCIL,4000039147,2703160
Department for Education,DEPARTMENT FOR EDUCATION,03/11/2010,CURRENT GRANTS,School Resources Group,THE ROYAL BOROUGH OF WINDSOR & MAIDENHEAD,4000039148,3205120
Department for Education,DEPARTMENT FOR EDUCATION,03/11/2010,CURRENT GRANTS,School Resources Group,THURROCK COUNCIL,4000039149,3925080
Department for Education,DEPARTMENT FOR EDUCATION,03/11/2010,CURRENT GRANTS,School Resources Group,TORBAY COUNCIL,4000039150,2929320
Department for Education,DEPARTMENT FOR EDUCATION,03/11/2010,CURRENT GRANTS,School Resources Group,TRAFFORD MB COUNCIL,4000039151,4629320
Department for Education,DEPARTMENT FOR EDUCATION,03/11/2010,CURRENT GRANTS,School Resources Group,WAKEFIELD MDC,4000039152,7544760
Department for Education,DEPARTMENT FOR EDUCATION,03/11/2010,CURRENT GRANTS,School Resources Group,WALSALL MBC,4000039153,6708120
Department for Education,DEPARTMENT FOR EDUCATION,03/11/2010,CURRENT GRANTS,School Resources Group,WARRINGTON BOROUGH COUNCIL,4000039154,4965000
Department for Education,DEPARTMENT FOR EDUCATION,03/11/2010,CURRENT GRANTS,School Resources Group,WARWICKSHIRE COUNTY COUNCIL,4000039155,11809920
Department for Education,DEPARTMENT FOR EDUCATION,03/11/2010,CURRENT GRANTS,School Resources Group,WEST BERKSHIRE COUNCIL,4000039156,4008920
Department for Education,DEPARTMENT FOR EDUCATION,03/11/2010,CURRENT GRANTS,School Resources Group,WEST SUSSEX COUNTY COUNCIL,4000039157,16521400
Department for Education,DEPARTMENT FOR EDUCATION,03/11/2010,CURRENT GRANTS,School Resources Group,WIGAN MBC,4000039158,7709240
Department for Education,DEPARTMENT FOR EDUCATION,03/11/2010,CURRENT GRANTS,School Resources Group,WILTSHIRE COUNCIL,4000039159,8139280
Department for Education,DEPARTMENT FOR EDUCATION,03/11/2010,CURRENT GRANTS,School Resources Group,WOKINGHAM BOROUGH COUNCIL,4000039160,3690800
Department for Education,DEPARTMENT FOR EDUCATION,03/11/2010,CURRENT GRANTS,School Resources Group,WOLVERHAMPTON CITY COUNCIL,4000039161,5779880
Department for Education,DEPARTMENT FOR EDUCATION,03/11/2010,CURRENT GRANTS,School Resources Group,WORCESTERSHIRE COUNTY COUNCIL,4000039162,11902720
Department for Education,DEPARTMENT FOR EDUCATION,03/11/2010,CURRENT GRANTS,School Resources Group,YORK CITY COUNCIL,4000039163,3716200
Department for Education,DEPARTMENT FOR EDUCATION,19/11/2010,CURRENT GRANTS,School Resources Group,BARNSLEY MBC,4000040157,5178240
Department for Education,DEPARTMENT FOR EDUCATION,19/11/2010,CURRENT GRANTS,School Resources Group,BATH & NORTH EAST SOMERSET COUNCIL,4000040158,3835520
Department for Education,DEPARTMENT FOR EDUCATION,19/11/2010,CURRENT GRANTS,School Resources Group,BEDFORD BOROUGH COUNCIL,4000040159,3848080
Department for Education,DEPARTMENT FOR EDUCATION,19/11/2010,CURRENT GRANTS,School Resources Group,BIRMINGHAM CITY COUNCIL,4000040160,31591680
Department for Education,DEPARTMENT FOR EDUCATION,19/11/2010,CURRENT GRANTS,School Resources Group,BLACKBURN WITH DARWEN BOROUGH COUNCIL,4000040161,4369520
Department for Education,DEPARTMENT FOR EDUCATION,19/11/2010,CURRENT GRANTS,School Resources Group,BLACKPOOL BOROUGH COUNCIL,4000040162,3469320
Department for Education,DEPARTMENT FOR EDUCATION,19/11/2010,CURRENT GRANTS,School Resources Group,BOLTON MBC,4000040163,7019480
Department for Education,DEPARTMENT FOR EDUCATION,19/11/2010,CURRENT GRANTS,School Resources Group,BOURNEMOUTH BOROUGH COUNCIL,4000040164,3171600
Department for Education,DEPARTMENT FOR EDUCATION,19/11/2010,CURRENT GRANTS,School Resources Group,BRACKNELL FOREST BOROUGH COUNCIL,4000040165,2618280
Department for Education,DEPARTMENT FOR EDUCATION,19/11/2010,CURRENT GRANTS,School Resources Group,BRIGHTON & HOVE CITY COUNCIL,4000040166,5263760
Department for Education,DEPARTMENT FOR EDUCATION,19/11/2010,CURRENT GRANTS,School Resources Group,BRISTOL CITY COUNCIL,4000040167,8043440
Department for Education,DEPARTMENT FOR EDUCATION,19/11/2010,CURRENT GRANTS,School Resources Group,BUCKINGHAMSHIRE COUNTY COUNCIL,4000040168,11854480
Department for Education,DEPARTMENT FOR EDUCATION,19/11/2010,CURRENT GRANTS,School Resources Group,BURY MBC,4000040169,4663120
Department for Education,DEPARTMENT FOR EDUCATION,19/11/2010,CURRENT GRANTS,School Resources Group,CALDERDALE MBC,4000040170,5414840
Department for Education,DEPARTMENT FOR EDUCATION,19/11/2010,CURRENT GRANTS,School Resources Group,CAMBRIDGESHIRE COUNTY COUNCIL,4000040171,12743160
Department for Education,DEPARTMENT FOR EDUCATION,19/11/2010,CURRENT GRANTS,School Resources Group,CENTRAL BEDFORDSHIRE COUNCIL,4000040172,5857240
Department for Education,DEPARTMENT FOR EDUCATION,19/11/2010,CURRENT GRANTS,School Resources Group,CHESHIRE EAST COUNCIL,4000040173,7839440
Department for Education,DEPARTMENT FOR EDUCATION,19/11/2010,CURRENT GRANTS,School Resources Group,CHESHIRE WEST & CHESTER COUNCIL,4000040174,7488520
Department for Education,DEPARTMENT FOR EDUCATION,19/11/2010,CURRENT GRANTS,School Resources Group,CITY OF BRADFORD METROPOLITAN DISTRICT COUNCIL,4000040175,14011320
Department for Education,DEPARTMENT FOR EDUCATION,19/11/2010,CURRENT GRANTS,School Resources Group,CITY OF LONDON,4000040176,80840
Department for Education,DEPARTMENT FOR EDUCATION,19/11/2010,CURRENT GRANTS,School Resources Group,CITY OF WESTMINSTER,4000040177,3881800
Department for Education,DEPARTMENT FOR EDUCATION,19/11/2010,CURRENT GRANTS,School Resources Group,CORNWALL COUNCIL,4000040178,11082040
Department for Education,DEPARTMENT FOR EDUCATION,19/11/2010,CURRENT GRANTS,School Resources Group,COUNCIL OF THE ISLES OF SCILLY,4000040179,116654
Department for Education,DEPARTMENT FOR EDUCATION,19/11/2010,CURRENT GRANTS,School Resources Group,COVENTRY CITY COUNCIL,4000040180,7920080
Department for Education,DEPARTMENT FOR EDUCATION,19/11/2010,CURRENT GRANTS,School Resources Group,CUMBRIA COUNTY COUNCIL,4000040181,10384280
Department for Education,DEPARTMENT FOR EDUCATION,19/11/2010,CURRENT GRANTS,School Resources Group,DARLINGTON BOROUGH COUNCIL,4000040182,2436360
Department for Education,DEPARTMENT FOR EDUCATION,19/11/2010,CURRENT GRANTS,School Resources Group,DERBY CITY COUNCIL,4000040183,6162040
Department for Education,DEPARTMENT FOR EDUCATION,19/11/2010,CURRENT GRANTS,School Resources Group,DERBYSHIRE COUNTY COUNCIL,4000040184,17034520
Department for Education,DEPARTMENT FOR EDUCATION,19/11/2010,CURRENT GRANTS,School Resources Group,DEVON COUNTY COUNCIL,4000040185,14745360
Department for Education,DEPARTMENT FOR EDUCATION,19/11/2010,CURRENT GRANTS,School Resources Group,DONCASTER MBC,4000040186,6844920
Department for Education,DEPARTMENT FOR EDUCATION,19/11/2010,CURRENT GRANTS,School Resources Group,DORSET COUNTY COUNCIL,4000040187,8547120
Department for Education,DEPARTMENT FOR EDUCATION,19/11/2010,CURRENT GRANTS,School Resources Group,DUDLEY MBC,4000040188,7990600
Department for Education,DEPARTMENT FOR EDUCATION,19/11/2010,CURRENT GRANTS,School Resources Group,DURHAM COUNTY COUNCIL,4000040189,11539720
Department for Education,DEPARTMENT FOR EDUCATION,19/11/2010,CURRENT GRANTS,School Resources Group,EAST RIDING OF YORKSHIRE,4000040190,7269240
Department for Education,DEPARTMENT FOR EDUCATION,19/11/2010,CURRENT GRANTS,School Resources Group,EAST SUSSEX COUNTY COUNCIL,4000040191,11037560
Department for Education,DEPARTMENT FOR EDUCATION,19/11/2010,CURRENT GRANTS,School Resources Group,ESSEX COUNTY COUNCIL,4000040192,31344160
Department for Education,DEPARTMENT FOR EDUCATION,19/11/2010,CURRENT GRANTS,School Resources Group,GATESHEAD MBC,4000040193,4333400
Department for Education,DEPARTMENT FOR EDUCATION,19/11/2010,CURRENT GRANTS,School Resources Group,GLOUCESTERSHIRE COUNTY COUNCIL,4000040194,12855720
Department for Education,DEPARTMENT FOR EDUCATION,19/11/2010,CURRENT GRANTS,School Resources Group,HALTON BOROUGH COUNCIL,4000040195,3241800
Department for Education,DEPARTMENT FOR EDUCATION,19/11/2010,CURRENT GRANTS,School Resources Group,HAMPSHIRE COUNTY COUNCIL,4000040196,28759720
Department for Education,DEPARTMENT FOR EDUCATION,19/11/2010,CURRENT GRANTS,School Resources Group,HARTLEPOOL BOROUGH COUNCIL,4000040197,2468680
Department for Education,DEPARTMENT FOR EDUCATION,19/11/2010,CURRENT GRANTS,School Resources Group,HEREFORDSHIRE COUNCIL,4000040198,3495400
Department for Education,DEPARTMENT FOR EDUCATION,19/11/2010,CURRENT GRANTS,School Resources Group,HERTFORDSHIRE,4000040199,26669000
Department for Education,DEPARTMENT FOR EDUCATION,19/11/2010,CURRENT GRANTS,School Resources Group,ISLE OF WIGHT COUNCIL,4000040200,3054840
Department for Education,DEPARTMENT FOR EDUCATION,19/11/2010,CURRENT GRANTS,School Resources Group,KENT COUNTY COUNCIL,4000040201,32062960
Department for Education,DEPARTMENT FOR EDUCATION,19/11/2010,CURRENT GRANTS,School Resources Group,KINGSTON UPON HULL COUNCIL,4000040202,5921600
Department for Education,DEPARTMENT FOR EDUCATION,19/11/2010,CURRENT GRANTS,School Resources Group,KIRKLEES COUNCIL,4000040203,10376680
Department for Education,DEPARTMENT FOR EDUCATION,19/11/2010,CURRENT GRANTS,School Resources Group,KNOWSLEY MBC,4000040204,4026920
Department for Education,DEPARTMENT FOR EDUCATION,19/11/2010,CURRENT GRANTS,School Resources Group,LANCASHIRE COUNTY COUNCIL,4000040205,27252360
Department for Education,DEPARTMENT FOR EDUCATION,19/11/2010,CURRENT GRANTS,School Resources Group,LEEDS CITY COUNCIL,4000040206,16560640
Department for Education,DEPARTMENT FOR EDUCATION,19/11/2010,CURRENT GRANTS,School Resources Group,LEICESTER CITY COUNCIL,4000040207,8166560
Department for Education,DEPARTMENT FOR EDUCATION,19/11/2010,CURRENT GRANTS,School Resources Group,LEICESTERSHIRE COUNTY COUNCIL,4000040208,13977160
Department for Education,DEPARTMENT FOR EDUCATION,19/11/2010,CURRENT GRANTS,School Resources Group,LINCOLNSHIRE COUNTY COUNCIL,4000040209,14717200
Department for Education,DEPARTMENT FOR EDUCATION,19/11/2010,CURRENT GRANTS,School Resources Group,LIVERPOOL CITY COUNCIL,4000040210,10881480
Department for Education,DEPARTMENT FOR EDUCATION,19/11/2010,CURRENT GRANTS,School Resources Group,LONDON BOROUGH OF BARKING & DAGENHAM COUNCIL,4000040211,6092840
Department for Education,DEPARTMENT FOR EDUCATION,19/11/2010,CURRENT GRANTS,School Resources Group,LONDON BOROUGH OF BARNET COUNCIL,4000040212,8341720
Department for Education,DEPARTMENT FOR EDUCATION,19/11/2010,CURRENT GRANTS,School Resources Group,LONDON BOROUGH OF BEXLEY COUNCIL,4000040213,6166440
Department for Education,DEPARTMENT FOR EDUCATION,19/11/2010,CURRENT GRANTS,School Resources Group,LONDON BOROUGH OF BRENT,4000040214,7966960
Department for Education,DEPARTMENT FOR EDUCATION,19/11/2010,CURRENT GRANTS,School Resources Group,LONDON BOROUGH OF BROMLEY COUNCIL,4000040215,7402400
Department for Education,DEPARTMENT FOR EDUCATION,19/11/2010,CURRENT GRANTS,School Resources Group,LONDON BOROUGH OF CAMDEN,4000040216,5362960
Department for Education,DEPARTMENT FOR EDUCATION,19/11/2010,CURRENT GRANTS,School Resources Group,LONDON BOROUGH OF CROYDON COUNCIL,4000040217,8215920
Department for Education,DEPARTMENT FOR EDUCATION,19/11/2010,CURRENT GRANTS,School Resources Group,LONDON BOROUGH OF EALING COUNCIL,4000040218,8653480
Department for Education,DEPARTMENT FOR EDUCATION,19/11/2010,CURRENT GRANTS,School Resources Group,LONDON BOROUGH OF ENFIELD COUNCIL,4000040219,8464280
Department for Education,DEPARTMENT FOR EDUCATION,19/11/2010,CURRENT GRANTS,School Resources Group,LONDON BOROUGH OF GREENWICH,4000040220,7536280
Department for Education,DEPARTMENT FOR EDUCATION,19/11/2010,CURRENT GRANTS,School Resources Group,LONDON BOROUGH OF HAMMERSMITH & FULHAM COUNCIL,4000040221,3755280
Department for Education,DEPARTMENT FOR EDUCATION,19/11/2010,CURRENT GRANTS,School Resources Group,LONDON BOROUGH OF HARINGEY,4000040222,6885160
Department for Education,DEPARTMENT FOR EDUCATION,19/11/2010,CURRENT GRANTS,School Resources Group,LONDON BOROUGH OF HARROW COUNCIL,4000040223,5775080
Department for Education,DEPARTMENT FOR EDUCATION,19/11/2010,CURRENT GRANTS,School Resources Group,LONDON BOROUGH OF HAVERING COUNCIL,4000040224,6318400
Department for Education,DEPARTMENT FOR EDUCATION,19/11/2010,CURRENT GRANTS,School Resources Group,LONDON BOROUGH OF HILLINGDON  COUNCIL,4000040225,7300200
Department for Education,DEPARTMENT FOR EDUCATION,19/11/2010,CURRENT GRANTS,School Resources Group,LONDON BOROUGH OF HOUNSLOW COUNCIL,4000040226,6522000
Department for Education,DEPARTMENT FOR EDUCATION,19/11/2010,CURRENT GRANTS,School Resources Group,LONDON BOROUGH OF ISLINGTON COUNCIL,4000040227,5202640
Department for Education,DEPARTMENT FOR EDUCATION,19/11/2010,CURRENT GRANTS,School Resources Group,LONDON BOROUGH OF LAMBETH COUNCIL,4000040228,7358840
Department for Education,DEPARTMENT FOR EDUCATION,19/11/2010,CURRENT GRANTS,School Resources Group,LONDON BOROUGH OF LEWISHAM,4000040229,7483680
Department for Education,DEPARTMENT FOR EDUCATION,19/11/2010,CURRENT GRANTS,School Resources Group,LONDON BOROUGH OF MERTON COUNCIL,4000040230,4223280
Department for Education,DEPARTMENT FOR EDUCATION,19/11/2010,CURRENT GRANTS,School Resources Group,LONDON BOROUGH OF NEWHAM,4000040231,10653200
Department for Education,DEPARTMENT FOR EDUCATION,19/11/2010,CURRENT GRANTS,School Resources Group,LONDON BOROUGH OF REDBRIDGE,4000040232,7755440
Department for Education,DEPARTMENT FOR EDUCATION,19/11/2010,CURRENT GRANTS,School Resources Group,LONDON BOROUGH OF RICHMOND UPON THAMES,4000040233,3768920
Department for Education,DEPARTMENT FOR EDUCATION,19/11/2010,CURRENT GRANTS,School Resources Group,LONDON BOROUGH OF SOUTHWARK COUNCIL,4000040234,6992720
Department for Education,DEPARTMENT FOR EDUCATION,19/11/2010,CURRENT GRANTS,School Resources Group,LONDON BOROUGH OF SUTTON,4000040235,5290320
Department for Education,DEPARTMENT FOR EDUCATION,19/11/2010,CURRENT GRANTS,School Resources Group,LONDON BOROUGH OF TOWER HAMLETS COUNCIL,4000040236,9824840
Department for Education,DEPARTMENT FOR EDUCATION,19/11/2010,CURRENT GRANTS,School Resources Group,LONDON BOROUGH OF WALTHAM FOREST COUNCIL,4000040237,7035880
Department for Education,DEPARTMENT FOR EDUCATION,19/11/2010,CURRENT GRANTS,School Resources Group,LONDON BOROUGH OF WANDSWORTH COUNCIL,4000040238,6147120
Department for Education,DEPARTMENT FOR EDUCATION,19/11/2010,CURRENT GRANTS,School Resources Group,LUTON BOROUGH COUNCIL,4000040239,5735320
Department for Education,DEPARTMENT FOR EDUCATION,19/11/2010,CURRENT GRANTS,School Resources Group,MANCHESTER CITY COUNCIL,4000040240,11518120
Department for Education,DEPARTMENT FOR EDUCATION,19/11/2010,CURRENT GRANTS,School Resources Group,MEDWAY COUNCIL,4000040241,6520040
Department for Education,DEPARTMENT FOR EDUCATION,19/11/2010,CURRENT GRANTS,School Resources Group,METROPOLITAN BOROUGH OF WIRRAL,4000040242,7638720
Department for Education,DEPARTMENT FOR EDUCATION,19/11/2010,CURRENT GRANTS,School Resources Group,MIDDLESBROUGH COUNCIL,4000040243,3269640
Department for Education,DEPARTMENT FOR EDUCATION,19/11/2010,CURRENT GRANTS,School Resources Group,MILTON KEYNES COUNCIL,4000040244,6401400
Department for Education,DEPARTMENT FOR EDUCATION,19/11/2010,CURRENT GRANTS,School Resources Group,NEWCASTLE CITY COUNCIL,4000040245,5771520
Department for Education,DEPARTMENT FOR EDUCATION,19/11/2010,CURRENT GRANTS,School Resources Group,NORFOLK COUNTY COUNCIL,4000040246,17029480
Department for Education,DEPARTMENT FOR EDUCATION,19/11/2010,CURRENT GRANTS,School Resources Group,NORTH EAST LINCOLNSHIRE COUNCIL,4000040247,2865160
Department for Education,DEPARTMENT FOR EDUCATION,19/11/2010,CURRENT GRANTS,School Resources Group,NORTH LINCOLNSHIRE COUNCIL,4000040248,3818200
Department for Education,DEPARTMENT FOR EDUCATION,19/11/2010,CURRENT GRANTS,School Resources Group,NORTH SOMERSET COUNCIL,4000040249,4510360
Department for Education,DEPARTMENT FOR EDUCATION,19/11/2010,CURRENT GRANTS,School Resources Group,NORTH TYNESIDE,4000040250,4454560
Department for Education,DEPARTMENT FOR EDUCATION,19/11/2010,CURRENT GRANTS,School Resources Group,NORTH YORKSHIRE COUNTY COUNCIL,4000040251,13119960
Department for Education,DEPARTMENT FOR EDUCATION,19/11/2010,CURRENT GRANTS,School Resources Group,NORTHAMPTONSHIRE COUNTY COUNCIL,4000040252,15489560
Department for Education,DEPARTMENT FOR EDUCATION,19/11/2010,CURRENT GRANTS,School Resources Group,NORTHUMBERLAND COUNTY COUNCIL,4000040253,6410040
Department for Education,DEPARTMENT FOR EDUCATION,19/11/2010,CURRENT GRANTS,School Resources Group,NOTTINGHAM CITY COUNCIL,4000040254,6283800
Department for Education,DEPARTMENT FOR EDUCATION,19/11/2010,CURRENT GRANTS,School Resources Group,NOTTINGHAMSHIRE COUNTY COUNCIL,4000040255,17504360
Department for Education,DEPARTMENT FOR EDUCATION,19/11/2010,CURRENT GRANTS,School Resources Group,OLDHAM MBC,4000040256,6515320
Department for Education,DEPARTMENT FOR EDUCATION,19/11/2010,CURRENT GRANTS,School Resources Group,OXFORDSHIRE COUNTY COUNCIL,4000040257,13434040
Department for Education,DEPARTMENT FOR EDUCATION,19/11/2010,CURRENT GRANTS,School Resources Group,PETERBOROUGH CITY COUNCIL,4000040258,4596400
Department for Education,DEPARTMENT FOR EDUCATION,19/11/2010,CURRENT GRANTS,School Resources Group,PLYMOUTH CITY COUNCIL,4000040259,5648320
Department for Education,DEPARTMENT FOR EDUCATION,19/11/2010,CURRENT GRANTS,School Resources Group,POOLE BOROUGH COUNCIL,4000040260,2807640
Department for Education,DEPARTMENT FOR EDUCATION,19/11/2010,CURRENT GRANTS,School Resources Group,PORTSMOUTH CITY COUNCIL,4000040261,4161880
Department for Education,DEPARTMENT FOR EDUCATION,19/11/2010,CURRENT GRANTS,School Resources Group,READING BOROUGH COUNCIL,4000040262,2953400
Department for Education,DEPARTMENT FOR EDUCATION,19/11/2010,CURRENT GRANTS,School Resources Group,REDCAR & CLEVELAND BOROUGH COUNCIL,4000040263,3522680
Department for Education,DEPARTMENT FOR EDUCATION,19/11/2010,CURRENT GRANTS,School Resources Group,ROCHDALE MBC,4000040264,5736320
Department for Education,DEPARTMENT FOR EDUCATION,19/11/2010,CURRENT GRANTS,School Resources Group,ROTHERHAM MBC,4000040265,6637000
Department for Education,DEPARTMENT FOR EDUCATION,19/11/2010,CURRENT GRANTS,School Resources Group,ROYAL BOROUGH OF KINGSTON UPON THAMES COUNCIL,4000040266,3694040
Department for Education,DEPARTMENT FOR EDUCATION,19/11/2010,CURRENT GRANTS,School Resources Group,RUTLAND COUNTY COUNCIL,4000040267,863040
Department for Education,DEPARTMENT FOR EDUCATION,19/11/2010,CURRENT GRANTS,School Resources Group,SALFORD CITY COUNCIL,4000040268,5419120
Department for Education,DEPARTMENT FOR EDUCATION,19/11/2010,CURRENT GRANTS,School Resources Group,SANDWELL MBC,4000040269,7795160
Department for Education,DEPARTMENT FOR EDUCATION,19/11/2010,CURRENT GRANTS,School Resources Group,SEFTON COUNCIL,4000040270,6583040
Department for Education,DEPARTMENT FOR EDUCATION,19/11/2010,CURRENT GRANTS,School Resources Group,SHEFFIELD CITY COUNCIL,4000040271,11655440
Department for Education,DEPARTMENT FOR EDUCATION,19/11/2010,CURRENT GRANTS,School Resources Group,SHROPSHIRE COUNCIL,4000040272,6099880
Department for Education,DEPARTMENT FOR EDUCATION,19/11/2010,CURRENT GRANTS,School Resources Group,SLOUGH BOROUGH COUNCIL,4000040273,3945920
Department for Education,DEPARTMENT FOR EDUCATION,19/11/2010,CURRENT GRANTS,School Resources Group,SOLIHULL MBC,4000040274,4873840
Department for Education,DEPARTMENT FOR EDUCATION,19/11/2010,CURRENT GRANTS,School Resources Group,SOMERSET COUNTY COUNCIL,4000040275,10839960
Department for Education,DEPARTMENT FOR EDUCATION,19/11/2010,CURRENT GRANTS,School Resources Group,SOUTH GLOUCEST,4000040276,5651800
Department for Education,DEPARTMENT FOR EDUCATION,19/11/2010,CURRENT GRANTS,School Resources Group,SOUTH TYNESIDE,4000040277,3650440
Department for Education,DEPARTMENT FOR EDUCATION,19/11/2010,CURRENT GRANTS,School Resources Group,SOUTHAMPTON CITY COUNCIL,4000040278,4673720
Department for Education,DEPARTMENT FOR EDUCATION,19/11/2010,CURRENT GRANTS,School Resources Group,SOUTHEND ON SEA BOROUGH COUNCIL,4000040279,6573880
Department for Education,DEPARTMENT FOR EDUCATION,19/11/2010,CURRENT GRANTS,School Resources Group,ST HELENS MBC,4000040280,4158080
Department for Education,DEPARTMENT FOR EDUCATION,19/11/2010,CURRENT GRANTS,School Resources Group,STAFFORDSHIRE COUNCIL,4000040281,18632200
Department for Education,DEPARTMENT FOR EDUCATION,19/11/2010,CURRENT GRANTS,School Resources Group,STOCKPORT MBC,4000040282,6326840
Department for Education,DEPARTMENT FOR EDUCATION,19/11/2010,CURRENT GRANTS,School Resources Group,STOCKTON ON TEES,4000040283,4549120
Department for Education,DEPARTMENT FOR EDUCATION,19/11/2010,CURRENT GRANTS,School Resources Group,STOKE ON TRENT CITY COUNCIL,4000040284,5795080
Department for Education,DEPARTMENT FOR EDUCATION,19/11/2010,CURRENT GRANTS,School Resources Group,SUFFOLK COUNTY COUNCIL,4000040285,15105080
Department for Education,DEPARTMENT FOR EDUCATION,19/11/2010,CURRENT GRANTS,School Resources Group,SUNDERLAND CITY COUNCIL,4000040286,6287120
Department for Education,DEPARTMENT FOR EDUCATION,19/11/2010,CURRENT GRANTS,School Resources Group,SURREY COUNTY COUNCIL,4000040287,24167160
Department for Education,DEPARTMENT FOR EDUCATION,19/11/2010,CURRENT GRANTS,School Resources Group,SWINDON BOROUGH COUNCIL,4000040288,4622480
Department for Education,DEPARTMENT FOR EDUCATION,19/11/2010,CURRENT GRANTS,School Resources Group,TAMESIDE MBC,4000040289,5235040
Department for Education,DEPARTMENT FOR EDUCATION,19/11/2010,CURRENT GRANTS,School Resources Group,TELFORD & WREKIN COUNCIL,4000040290,3965760
Department for Education,DEPARTMENT FOR EDUCATION,19/11/2010,CURRENT GRANTS,School Resources Group,THE LONDON BOROUGH OF HACKNEY,4000040291,6486680
Department for Education,DEPARTMENT FOR EDUCATION,19/11/2010,CURRENT GRANTS,School Resources Group,THE ROYAL BOROUGH OF KENSINGTON & CHELSEA COUNCIL,4000040292,2703160
Department for Education,DEPARTMENT FOR EDUCATION,19/11/2010,CURRENT GRANTS,School Resources Group,THE ROYAL BOROUGH OF WINDSOR & MAIDENHEAD,4000040293,3205120
Department for Education,DEPARTMENT FOR EDUCATION,19/11/2010,CURRENT GRANTS,School Resources Group,THURROCK COUNCIL,4000040294,3925080
Department for Education,DEPARTMENT FOR EDUCATION,19/11/2010,CURRENT GRANTS,School Resources Group,TORBAY COUNCIL,4000040295,2929320
Department for Education,DEPARTMENT FOR EDUCATION,19/11/2010,CURRENT GRANTS,School Resources Group,TRAFFORD MB COUNCIL,4000040296,5571320
Department for Education,DEPARTMENT FOR EDUCATION,19/11/2010,CURRENT GRANTS,School Resources Group,WAKEFIELD MDC,4000040297,7544760
Department for Education,DEPARTMENT FOR EDUCATION,19/11/2010,CURRENT GRANTS,School Resources Group,WALSALL MBC,4000040298,6997920
Department for Education,DEPARTMENT FOR EDUCATION,19/11/2010,CURRENT GRANTS,School Resources Group,WARRINGTON BOROUGH COUNCIL,4000040299,4965000
Department for Education,DEPARTMENT FOR EDUCATION,19/11/2010,CURRENT GRANTS,School Resources Group,WARWICKSHIRE COUNTY COUNCIL,4000040300,11809920
Department for Education,DEPARTMENT FOR EDUCATION,19/11/2010,CURRENT GRANTS,School Resources Group,WEST BERKSHIRE COUNCIL,4000040301,4008920
Department for Education,DEPARTMENT FOR EDUCATION,19/11/2010,CURRENT GRANTS,School Resources Group,WEST SUSSEX COUNTY COUNCIL,4000040302,16521400
Department for Education,DEPARTMENT FOR EDUCATION,19/11/2010,CURRENT GRANTS,School Resources Group,WIGAN MBC,4000040303,7709240
Department for Education,DEPARTMENT FOR EDUCATION,19/11/2010,CURRENT GRANTS,School Resources Group,WILTSHIRE COUNCIL,4000040304,9873280
Department for Education,DEPARTMENT FOR EDUCATION,19/11/2010,CURRENT GRANTS,School Resources Group,WOKINGHAM BOROUGH COUNCIL,4000040305,3690800
Department for Education,DEPARTMENT FOR EDUCATION,19/11/2010,CURRENT GRANTS,School Resources Group,WOLVERHAMPTON CITY COUNCIL,4000040306,6030680
Department for Education,DEPARTMENT FOR EDUCATION,19/11/2010,CURRENT GRANTS,School Resources Group,WORCESTERSHIRE COUNTY COUNCIL,4000040307,11899120
Department for Education,DEPARTMENT FOR EDUCATION,19/11/2010,CURRENT GRANTS,School Resources Group,YORK CITY COUNCIL,4000040308,3716200
Department for Education,DEPARTMENT FOR EDUCATION,30/11/2010,CURRENT GRANTS,School Resources Group,BARNSLEY MBC,4000041026,5178240
Department for Education,DEPARTMENT FOR EDUCATION,30/11/2010,CURRENT GRANTS,School Resources Group,BATH & NORTH EAST SOMERSET COUNCIL,4000041027,3835520
Department for Education,DEPARTMENT FOR EDUCATION,30/11/2010,CURRENT GRANTS,School Resources Group,BEDFORD BOROUGH COUNCIL,4000041028,3848080
Department for Education,DEPARTMENT FOR EDUCATION,30/11/2010,CURRENT GRANTS,School Resources Group,BIRMINGHAM CITY COUNCIL,4000041029,31591680
Department for Education,DEPARTMENT FOR EDUCATION,30/11/2010,CURRENT GRANTS,School Resources Group,BLACKBURN WITH DARWEN BOROUGH COUNCIL,4000041030,4369520
Department for Education,DEPARTMENT FOR EDUCATION,30/11/2010,CURRENT GRANTS,School Resources Group,BLACKPOOL BOROUGH COUNCIL,4000041031,3469320
Department for Education,DEPARTMENT FOR EDUCATION,30/11/2010,CURRENT GRANTS,School Resources Group,BOLTON MBC,4000041032,7019480
Department for Education,DEPARTMENT FOR EDUCATION,30/11/2010,CURRENT GRANTS,School Resources Group,BOURNEMOUTH BOROUGH COUNCIL,4000041033,3171600
Department for Education,DEPARTMENT FOR EDUCATION,30/11/2010,CURRENT GRANTS,School Resources Group,BRACKNELL FOREST BOROUGH COUNCIL,4000041034,2618280
Department for Education,DEPARTMENT FOR EDUCATION,30/11/2010,CURRENT GRANTS,School Resources Group,BRIGHTON & HOVE CITY COUNCIL,4000041035,5263760
Department for Education,DEPARTMENT FOR EDUCATION,30/11/2010,CURRENT GRANTS,School Resources Group,BRISTOL CITY COUNCIL,4000041036,8043440
Department for Education,DEPARTMENT FOR EDUCATION,30/11/2010,CURRENT GRANTS,School Resources Group,BUCKINGHAMSHIRE COUNTY COUNCIL,4000041037,11854480
Department for Education,DEPARTMENT FOR EDUCATION,30/11/2010,CURRENT GRANTS,School Resources Group,BURY MBC,4000041038,4663120
Department for Education,DEPARTMENT FOR EDUCATION,30/11/2010,CURRENT GRANTS,School Resources Group,CALDERDALE MBC,4000041039,5414840
Department for Education,DEPARTMENT FOR EDUCATION,30/11/2010,CURRENT GRANTS,School Resources Group,CAMBRIDGESHIRE COUNTY COUNCIL,4000041040,12743160
Department for Education,DEPARTMENT FOR EDUCATION,30/11/2010,CURRENT GRANTS,School Resources Group,CENTRAL BEDFORDSHIRE COUNCIL,4000041041,5857240
Department for Education,DEPARTMENT FOR EDUCATION,30/11/2010,CURRENT GRANTS,School Resources Group,CHESHIRE EAST COUNCIL,4000041042,7839440
Department for Education,DEPARTMENT FOR EDUCATION,30/11/2010,CURRENT GRANTS,School Resources Group,CHESHIRE WEST & CHESTER COUNCIL,4000041043,7488520
Department for Education,DEPARTMENT FOR EDUCATION,30/11/2010,CURRENT GRANTS,School Resources Group,CITY OF BRADFORD METROPOLITAN DISTRICT COUNCIL,4000041044,14011320
Department for Education,DEPARTMENT FOR EDUCATION,30/11/2010,CURRENT GRANTS,School Resources Group,CITY OF LONDON,4000041045,80840
Department for Education,DEPARTMENT FOR EDUCATION,30/11/2010,CURRENT GRANTS,School Resources Group,CITY OF WESTMINSTER,4000041046,3881800
Department for Education,DEPARTMENT FOR EDUCATION,30/11/2010,CURRENT GRANTS,School Resources Group,CORNWALL COUNCIL,4000041047,11082040
Department for Education,DEPARTMENT FOR EDUCATION,30/11/2010,CURRENT GRANTS,School Resources Group,COUNCIL OF THE ISLES OF SCILLY,4000041048,116653
Department for Education,DEPARTMENT FOR EDUCATION,30/11/2010,CURRENT GRANTS,School Resources Group,COVENTRY CITY COUNCIL,4000041049,7920080
Department for Education,DEPARTMENT FOR EDUCATION,30/11/2010,CURRENT GRANTS,School Resources Group,CUMBRIA COUNTY COUNCIL,4000041050,10384280
Department for Education,DEPARTMENT FOR EDUCATION,30/11/2010,CURRENT GRANTS,School Resources Group,DARLINGTON BOROUGH COUNCIL,4000041051,2436360
Department for Education,DEPARTMENT FOR EDUCATION,30/11/2010,CURRENT GRANTS,School Resources Group,DERBY CITY COUNCIL,4000041052,6162040
Department for Education,DEPARTMENT FOR EDUCATION,30/11/2010,CURRENT GRANTS,School Resources Group,DERBYSHIRE COUNTY COUNCIL,4000041053,17034520
Department for Education,DEPARTMENT FOR EDUCATION,30/11/2010,CURRENT GRANTS,School Resources Group,DEVON COUNTY COUNCIL,4000041054,14745360
Department for Education,DEPARTMENT FOR EDUCATION,30/11/2010,CURRENT GRANTS,School Resources Group,DONCASTER MBC,4000041055,6844920
Department for Education,DEPARTMENT FOR EDUCATION,30/11/2010,CURRENT GRANTS,School Resources Group,DORSET COUNTY COUNCIL,4000041056,8547120
Department for Education,DEPARTMENT FOR EDUCATION,30/11/2010,CURRENT GRANTS,School Resources Group,DUDLEY MBC,4000041057,7990600
Department for Education,DEPARTMENT FOR EDUCATION,30/11/2010,CURRENT GRANTS,School Resources Group,DURHAM COUNTY COUNCIL,4000041058,11539720
Department for Education,DEPARTMENT FOR EDUCATION,30/11/2010,CURRENT GRANTS,School Resources Group,EAST RIDING OF YORKSHIRE,4000041059,7269240
Department for Education,DEPARTMENT FOR EDUCATION,30/11/2010,CURRENT GRANTS,School Resources Group,EAST SUSSEX COUNTY COUNCIL,4000041060,11037560
Department for Education,DEPARTMENT FOR EDUCATION,30/11/2010,CURRENT GRANTS,School Resources Group,ESSEX COUNTY COUNCIL,4000041061,31344160
Department for Education,DEPARTMENT FOR EDUCATION,30/11/2010,CURRENT GRANTS,School Resources Group,GATESHEAD MBC,4000041062,4333400
Department for Education,DEPARTMENT FOR EDUCATION,30/11/2010,CURRENT GRANTS,School Resources Group,GLOUCESTERSHIRE COUNTY COUNCIL,4000041063,12855720
Department for Education,DEPARTMENT FOR EDUCATION,30/11/2010,CURRENT GRANTS,School Resources Group,HALTON BOROUGH COUNCIL,4000041064,3241800
Department for Education,DEPARTMENT FOR EDUCATION,30/11/2010,CURRENT GRANTS,School Resources Group,HAMPSHIRE COUNTY COUNCIL,4000041065,28759720
Department for Education,DEPARTMENT FOR EDUCATION,30/11/2010,CURRENT GRANTS,School Resources Group,HARTLEPOOL BOROUGH COUNCIL,4000041066,2468680
Department for Education,DEPARTMENT FOR EDUCATION,30/11/2010,CURRENT GRANTS,School Resources Group,HEREFORDSHIRE COUNCIL,4000041067,3495400
Department for Education,DEPARTMENT FOR EDUCATION,30/11/2010,CURRENT GRANTS,School Resources Group,HERTFORDSHIRE,4000041068,26669000
Department for Education,DEPARTMENT FOR EDUCATION,30/11/2010,CURRENT GRANTS,School Resources Group,ISLE OF WIGHT COUNCIL,4000041069,3054840
Department for Education,DEPARTMENT FOR EDUCATION,30/11/2010,CURRENT GRANTS,School Resources Group,KENT COUNTY COUNCIL,4000041070,32062960
Department for Education,DEPARTMENT FOR EDUCATION,30/11/2010,CURRENT GRANTS,School Resources Group,KINGSTON UPON HULL COUNCIL,4000041071,5921600
Department for Education,DEPARTMENT FOR EDUCATION,30/11/2010,CURRENT GRANTS,School Resources Group,KIRKLEES COUNCIL,4000041072,10376680
Department for Education,DEPARTMENT FOR EDUCATION,30/11/2010,CURRENT GRANTS,School Resources Group,KNOWSLEY MBC,4000041073,4026920
Department for Education,DEPARTMENT FOR EDUCATION,30/11/2010,CURRENT GRANTS,School Resources Group,LANCASHIRE COUNTY COUNCIL,4000041074,27252360
Department for Education,DEPARTMENT FOR EDUCATION,30/11/2010,CURRENT GRANTS,School Resources Group,LEEDS CITY COUNCIL,4000041075,16560640
Department for Education,DEPARTMENT FOR EDUCATION,30/11/2010,CURRENT GRANTS,School Resources Group,LEICESTER CITY COUNCIL,4000041076,8166560
Department for Education,DEPARTMENT FOR EDUCATION,30/11/2010,CURRENT GRANTS,School Resources Group,LEICESTERSHIRE COUNTY COUNCIL,4000041077,13977160
Department for Education,DEPARTMENT FOR EDUCATION,30/11/2010,CURRENT GRANTS,School Resources Group,LINCOLNSHIRE COUNTY COUNCIL,4000041078,14717200
Department for Education,DEPARTMENT FOR EDUCATION,30/11/2010,CURRENT GRANTS,School Resources Group,LIVERPOOL CITY COUNCIL,4000041079,10881480
Department for Education,DEPARTMENT FOR EDUCATION,30/11/2010,CURRENT GRANTS,School Resources Group,LONDON BOROUGH OF BARKING & DAGENHAM COUNCIL,4000041080,6092840
Department for Education,DEPARTMENT FOR EDUCATION,30/11/2010,CURRENT GRANTS,School Resources Group,LONDON BOROUGH OF BARNET COUNCIL,4000041081,8341720
Department for Education,DEPARTMENT FOR EDUCATION,30/11/2010,CURRENT GRANTS,School Resources Group,LONDON BOROUGH OF BEXLEY COUNCIL,4000041082,6166440
Department for Education,DEPARTMENT FOR EDUCATION,30/11/2010,CURRENT GRANTS,School Resources Group,LONDON BOROUGH OF BRENT,4000041083,7966960
Department for Education,DEPARTMENT FOR EDUCATION,30/11/2010,CURRENT GRANTS,School Resources Group,LONDON BOROUGH OF BROMLEY COUNCIL,4000041084,7402400
Department for Education,DEPARTMENT FOR EDUCATION,30/11/2010,CURRENT GRANTS,School Resources Group,LONDON BOROUGH OF CAMDEN,4000041085,5362960
Department for Education,DEPARTMENT FOR EDUCATION,30/11/2010,CURRENT GRANTS,School Resources Group,LONDON BOROUGH OF CROYDON COUNCIL,4000041086,8215920
Department for Education,DEPARTMENT FOR EDUCATION,30/11/2010,CURRENT GRANTS,School Resources Group,LONDON BOROUGH OF EALING COUNCIL,4000041087,8653480
Department for Education,DEPARTMENT FOR EDUCATION,30/11/2010,CURRENT GRANTS,School Resources Group,LONDON BOROUGH OF ENFIELD COUNCIL,4000041088,8464280
Department for Education,DEPARTMENT FOR EDUCATION,30/11/2010,CURRENT GRANTS,School Resources Group,LONDON BOROUGH OF GREENWICH,4000041089,7536280
Department for Education,DEPARTMENT FOR EDUCATION,30/11/2010,CURRENT GRANTS,School Resources Group,LONDON BOROUGH OF HAMMERSMITH & FULHAM COUNCIL,4000041090,3755280
